Workbook

Sheet INTRO
C1: Cette version sera utilisée par les pays endémiques à la Loase
B2: Formulaire de demande commune de médicaments pour CP v.3 (L)
B4: Dans le cadre des efforts mondiaux entrepris pour accélérer l'expansion de la chimioprévention (CP) pour l'élimination de la filariose lymphatique et la lutte contre la schistosomiase et les géohelminthiases, l'Organisation mondiale de la Santé (OMS) facilite l'approvisionnement en albendazole, comprimés de 400 mg (GSK), pour les programmes nationaux d'élimination de la filariose lymphatique et programmes nationaux de lutte contre les géohelminthiases; en diethylcarbamazine, comprimés de 100 mg (Eisai), pour les programmes nationaux d'élimination de la filariose lymphatique; en mebendazole, comprimés de 500 mg (J&J) pour les programmes nationaux de lutte contre les géohelminthiases et en praziquantel, comprimés de 600 mg (Merck KGaA), destinés aux enfants d'âge scolaire, pour les programmes nationaux de lutte contre la schistosomiase. L'OMS contribue également à l'approvisionnement en ivermectine, comprimés de 3 mg (Merck), pour les programmes de donation pour l'onchocercose et la filariose lymphatique. Cet outil Excel est concu pour aider les pays à quantifier le nombre de comprimés nécessaires, selon le traitement de chimioprévention requis, pour atteindre les objectifs de couverture de traitement de populations et districts pour l'année de la demande de médicaments. Le résultat de cet outil est une demande commune de médicaments pour la chimioprévention des maladies tropicales négligées, qui peut être imprimée, signée et soumise à l'OMS pour la demande de ces médicaments.
B6: Structure de l'application (feuilles de travail) :
B8: INTRO | C8: Cette feuille contient des instructions pour compléter le formulaire de demande de médicaments pour la chimioprévention et des informations sur le statut de la chimioprévention pour les maladies d'endémie du pays.
B9: COUNTRY_INFO | C9: Cette feuille contient des informations sur la structure administrative du pays, la population par groupe d'âge, le statut d'endémicité pour chaque maladie, la population devant être traitée par chimioprévention et les interventions prévues.
B10: DEC, ALB_MBD, PZQ et IVM | C10: Ces feuilles contiennent des informations sur l'endémicité des districts ciblés pour le traitement aux médicaments spécifiques à la chimioprévention, les plans de traitement, et le nombre de comprimés requis et demandés.
B11: SUMMARY | C11: Cette feuille inclut un résumé du nombre de comprimés demandés, des informations concernant le stock et les dates de soumission de la demande de médicaments. Avant de générer le rapport (run macros), veuillez sélectionner le médicament pour lequel le rapport est nécessaire. Veuillez suivre la même règle pour voir le nombre de personnes à traiter pour les maladies spécifiques. Cette feuille doit être imprimée et soumise en tant que "Formulaire de demande commune de médicaments pour chimioprévention" (voir les instructions pour la soumission du formulaire sous la feuille SUMMARY).
B13: Instructions pour la saisie des données
B15: La plupart des cellules des feuilles de travail mentionnées ci-dessus contiennent des formules calculées automatiquement en fonction du protocole de traitement recommandé par l'OMS pour chaque maladie. Voir : http://www.who.int/neglected_diseases/preventive_chemotherapy/pct_manual/en/index.html
B17: Veuillez entrer vos données dans les cellules en fonction de leur code de couleur :
C19: Blanc - la cellule n'est pas protégée. Veuillez entrer la valeur de l'indicateur demandé.
C21: Jaune - la cellule est protégée et inclut le nom de l'indicateur. Aucune entrée de données requise.
C23: Orange - la cellule n'est pas protégée et contient un menu déroulant. Veuillez sélectionner la valeur dans le menu déroulant.
C26: Vert - la cellule n'est pas protégée et contient des formules. Veuillez changer la valeur indiquée uniquement si vos données sont différentes de celles calculées automatiquement.
C29: Bleu - la cellule est protégée et contient des formules. Aucune entrée de données requise.
B31: Données pays
B33: PAYS | E33: Congo
B35: Année de la demande de médicaments | E35: 2019
B37: Le pays est-il endémique à la filariose lymphatique (FL) ? | E37: Endémique
B39: Le pays est-il endémique à l'onchocercose (ONCHO) ? | E39: Endémique
B41: Le pays est-il endémique aux géohelminthiases (STH) ? | E41: Endémique
B43: Le pays est-il endémique à la schistosomiase (SCH) ? | E43: Endémique
B45: Combien d'unités administratives compte le pays ? | E45: 45
B47: Si les données démographiques par groupe d'âge ne sont pas disponibles au second niveau administratif, veuillez entrer la proportion (%) de population, par groupe d'âge, du pays. Si les données sont disponibles, veuillez laisser les cellules vierges.
B48: 1-4 ans | C48: Enfants d'âge pré-scolaire (EAPréS) | E48: 0.16
B49: 5-14 ans | C49: Enfants d'âge scolaire (EAS) | E49: 0.24
B50: 15 ans et plus | C50: Adultes | E50: 0.553

Sheet COUNTRY_INFO
A1: INFORMATIONS PAYS
A2: Struture administrative, population par groupe d'âge, statut d'endémicité et interventions planifiées
A4: TOTAL | D4: =SUM(D$9:D$1000) -> 4680078 | E4: =SUM(E$9:E$1000) -> 748814 | F4: =SUM(F$9:F$1000) -> 1123218 | G4: =SUM(G$9:G$1000) -> 2588086 | M4: =SUM(M$9:M$1000) -> 987698 | N4: =SUM(N$9:N$1000) -> 647345 | O4: =SUM(O$9:O$1000) -> 744825 | P4: =SUM(P$9:P$1000) -> 264426.06
A6: Structure administrative du pays | D6: Population | H6: Endémicité | M6: Population nécessitant la CP | Q6: Nombre de tournées de traitement prévues pour l'année | U6: Enquêtes épidémiologiques planifiées pour l’année
A7: Pays | B7: Région/Département | C7: District | D7: Total | E7: EAPréS | F7: EAS | G7: Adultes | H7: FL | I7: Oncho | J7: STH | K7: SCH | L7: Loa | M7: FL | N7: Oncho | O7: STH | P7: SCH | Q7: FL | R7: Oncho | S7: STH | T7: SCH | U7: FL | V7: Oncho | W7: STH | X7: SCH | Y7: IU_ID | Z7: IU_Name
A9: =IF(INTRO!$E$33<>0,INTRO!$E$33, " ") -> Congo | B9: Bouenza | C9: Loudima | D9: 149589 | E9: =IF(INTRO!$E$48="","",ROUND($D9*INTRO!$E$48,0)) -> 23934 | F9: =IF(INTRO!$E$49="","",ROUND($D9*INTRO!$E$49,0)) -> 35901 | G9: =IF(INTRO!$E$50="","",ROUND($D9*INTRO!$E$50,0)) -> 82723 | H9: 0 | I9: 1 | J9: 2 | K9: 1 | L9: 1 | M9: =IF(INTRO!$E$37="Endémique",IF($H9>0,IF($H9=4,"Inconnu",IF($H9=99,"Interrompu",$D9)),0),"Non requis") -> 0 | N9: 48953 | O9: =IF(INTRO!$E$41="Endémique", IF(AND($J9>1,$J9<5), IF($J9=4, "Inconnu", E9+F9), 0),"Non requis") -> 59835 | P9: =IF(INTRO!$E$43="Endémique", IF(AND($K9>0,$K9<5), IF($K9=4,"Inconnu", IF($K9=1, $F9*0.33, IF($K9=2, $F9*0.5+$G9*0.2, SUM(F9:G9)))), 0),"Non requis") -> 11847.33 | Q9: 0 | R9: 1 | S9: 1 | T9: 1 | Y9: 12762 | Z9: Loudima
A10: =IF(INTRO!$E$33<>0,INTRO!$E$33, " ") -> Congo | B10: Bouenza | C10: Loutété | D10: 56397 | E10: =IF(INTRO!$E$48="","",ROUND($D10*INTRO!$E$48,0)) -> 9024 | F10: =IF(INTRO!$E$49="","",ROUND($D10*INTRO!$E$49,0)) -> 13535 | G10: =IF(INTRO!$E$50="","",ROUND($D10*INTRO!$E$50,0)) -> 31188 | H10: 1 | I10: 1 | J10: 2 | K10: 1 | L10: 1 | M10: =IF(INTRO!$E$37="Endémique",IF($H10>0,IF($H10=4,"Inconnu",IF($H10=99,"Interrompu",$D10)),0),"Non requis") -> 56397 | N10: 31419 | O10: =IF(INTRO!$E$41="Endémique", IF(AND($J10>1,$J10<5), IF($J10=4, "Inconnu", E10+F10), 0),"Non requis") -> 22559 | P10: =IF(INTRO!$E$43="Endémique", IF(AND($K10>0,$K10<5), IF($K10=4,"Inconnu", IF($K10=1, $F10*0.33, IF($K10=2, $F10*0.5+$G10*0.2, SUM(F10:G10)))), 0),"Non requis") -> 4466.55 | Q10: 1 | R10: 1 | S10: 1 | T10: 1 | Y10: 12823 | Z10: Loutété
A11: =IF(INTRO!$E$33<>0,INTRO!$E$33, " ") -> Congo | B11: Bouenza | C11: Madingou | D11: 111036 | E11: =IF(INTRO!$E$48="","",ROUND($D11*INTRO!$E$48,0)) -> 17766 | F11: =IF(INTRO!$E$49="","",ROUND($D11*INTRO!$E$49,0)) -> 26649 | G11: =IF(INTRO!$E$50="","",ROUND($D11*INTRO!$E$50,0)) -> 61403 | H11: 1 | I11: 1 | J11: 2 | K11: 1 | L11: 1 | M11: =IF(INTRO!$E$37="Endémique",IF($H11>0,IF($H11=4,"Inconnu",IF($H11=99,"Interrompu",$D11)),0),"Non requis") -> 111036 | N11: 56712 | O11: =IF(INTRO!$E$41="Endémique", IF(AND($J11>1,$J11<5), IF($J11=4, "Inconnu", E11+F11), 0),"Non requis") -> 44415 | P11: =IF(INTRO!$E$43="Endémique", IF(AND($K11>0,$K11<5), IF($K11=4,"Inconnu", IF($K11=1, $F11*0.33, IF($K11=2, $F11*0.5+$G11*0.2, SUM(F11:G11)))), 0),"Non requis") -> 8794.17 | Q11: 1 | R11: 1 | S11: 1 | T11: 1 | Y11: 12763 | Z11: Madingou
A12: =IF(INTRO!$E$33<>0,INTRO!$E$33, " ") -> Congo | B12: Bouenza | C12: Mouyondzi | D12: 76426 | E12: =IF(INTRO!$E$48="","",ROUND($D12*INTRO!$E$48,0)) -> 12228 | F12: =IF(INTRO!$E$49="","",ROUND($D12*INTRO!$E$49,0)) -> 18342 | G12: =IF(INTRO!$E$50="","",ROUND($D12*INTRO!$E$50,0)) -> 42264 | H12: 1 | I12: 1 | J12: 3 | K12: 1 | L12: 1 | M12: =IF(INTRO!$E$37="Endémique",IF($H12>0,IF($H12=4,"Inconnu",IF($H12=99,"Interrompu",$D12)),0),"Non requis") -> 76426 | N12: 34931 | O12: =IF(INTRO!$E$41="Endémique", IF(AND($J12>1,$J12<5), IF($J12=4, "Inconnu", E12+F12), 0),"Non requis") -> 30570 | P12: =IF(INTRO!$E$43="Endémique", IF(AND($K12>0,$K12<5), IF($K12=4,"Inconnu", IF($K12=1, $F12*0.33, IF($K12=2, $F12*0.5+$G12*0.2, SUM(F12:G12)))), 0),"Non requis") -> 6052.86 | Q12: 1 | R12: 1 | S12: 2 | T12: 1 | Y12: 12765 | Z12: Mouyondzi
A13: =IF(INTRO!$E$33<>0,INTRO!$E$33, " ") -> Congo | B13: Brazzaville | C13: Bacongo | D13: 125878 | E13: =IF(INTRO!$E$48="","",ROUND($D13*INTRO!$E$48,0)) -> 20140 | F13: =IF(INTRO!$E$49="","",ROUND($D13*INTRO!$E$49,0)) -> 30211 | G13: =IF(INTRO!$E$50="","",ROUND($D13*INTRO!$E$50,0)) -> 69611 | H13: 0 | I13: 1 | J13: 1 | K13: 1 | L13: 1 | M13: =IF(INTRO!$E$37="Endémique",IF($H13>0,IF($H13=4,"Inconnu",IF($H13=99,"Interrompu",$D13)),0),"Non requis") -> 0 | N13: 99822 | O13: =IF(INTRO!$E$41="Endémique", IF(AND($J13>1,$J13<5), IF($J13=4, "Inconnu", E13+F13), 0),"Non requis") -> 0 | P13: =IF(INTRO!$E$43="Endémique", IF(AND($K13>0,$K13<5), IF($K13=4,"Inconnu", IF($K13=1, $F13*0.33, IF($K13=2, $F13*0.5+$G13*0.2, SUM(F13:G13)))), 0),"Non requis") -> 9969.63 | Q13: 0 | R13: 1 | S13: 0 | T13: 1 | Y13: 12800 | Z13: Bacongo
A14: =IF(INTRO!$E$33<>0,INTRO!$E$33, " ") -> Congo | B14: Brazzaville | C14: Makélékélé | D14: 224940 | E14: =IF(INTRO!$E$48="","",ROUND($D14*INTRO!$E$48,0)) -> 35990 | F14: =IF(INTRO!$E$49="","",ROUND($D14*INTRO!$E$49,0)) -> 53986 | G14: =IF(INTRO!$E$50="","",ROUND($D14*INTRO!$E$50,0)) -> 124392 | H14: 0 | I14: 1 | J14: 1 | K14: 0 | L14: 1 | M14: =IF(INTRO!$E$37="Endémique",IF($H14>0,IF($H14=4,"Inconnu",IF($H14=99,"Interrompu",$D14)),0),"Non requis") -> 0 | N14: 60112 | O14: =IF(INTRO!$E$41="Endémique", IF(AND($J14>1,$J14<5), IF($J14=4, "Inconnu", E14+F14), 0),"Non requis") -> 0 | P14: =IF(INTRO!$E$43="Endémique", IF(AND($K14>0,$K14<5), IF($K14=4,"Inconnu", IF($K14=1, $F14*0.33, IF($K14=2, $F14*0.5+$G14*0.2, SUM(F14:G14)))), 0),"Non requis") -> 0 | Q14: 0 | R14: 1 | S14: 0 | T14: 0 | Y14: 12805 | Z14: Makélékélé
A15: =IF(INTRO!$E$33<>0,INTRO!$E$33, " ") -> Congo | B15: Brazzaville | C15: Mfilou | D15: 250564 | E15: =IF(INTRO!$E$48="","",ROUND($D15*INTRO!$E$48,0)) -> 40090 | F15: =IF(INTRO!$E$49="","",ROUND($D15*INTRO!$E$49,0)) -> 60135 | G15: =IF(INTRO!$E$50="","",ROUND($D15*INTRO!$E$50,0)) -> 138562 | H15: 0 | I15: 1 | J15: 1 | K15: 0 | L15: 1 | M15: =IF(INTRO!$E$37="Endémique",IF($H15>0,IF($H15=4,"Inconnu",IF($H15=99,"Interrompu",$D15)),0),"Non requis") -> 0 | N15: 97203 | O15: =IF(INTRO!$E$41="Endémique", IF(AND($J15>1,$J15<5), IF($J15=4, "Inconnu", E15+F15), 0),"Non requis") -> 0 | P15: =IF(INTRO!$E$43="Endémique", IF(AND($K15>0,$K15<5), IF($K15=4,"Inconnu", IF($K15=1, $F15*0.33, IF($K15=2, $F15*0.5+$G15*0.2, SUM(F15:G15)))), 0),"Non requis") -> 0 | Q15: 0 | R15: 1 | S15: 0 | T15: 0 | Y15: 12806 | Z15: Mfilou
A16: =IF(INTRO!$E$33<>0,INTRO!$E$33, " ") -> Congo | B16: Brazzaville | C16: Moungali | D16: 212577 | E16: =IF(INTRO!$E$48="","",ROUND($D16*INTRO!$E$48,0)) -> 34012 | F16: =IF(INTRO!$E$49="","",ROUND($D16*INTRO!$E$49,0)) -> 51018 | G16: =IF(INTRO!$E$50="","",ROUND($D16*INTRO!$E$50,0)) -> 117555 | H16: 0 | I16: 0 | J16: 1 | K16: 1 | L16: 1 | M16: =IF(INTRO!$E$37="Endémique",IF($H16>0,IF($H16=4,"Inconnu",IF($H16=99,"Interrompu",$D16)),0),"Non requis") -> 0 | O16: =IF(INTRO!$E$41="Endémique", IF(AND($J16>1,$J16<5), IF($J16=4, "Inconnu", E16+F16), 0),"Non requis") -> 0 | P16: =IF(INTRO!$E$43="Endémique", IF(AND($K16>0,$K16<5), IF($K16=4,"Inconnu", IF($K16=1, $F16*0.33, IF($K16=2, $F16*0.5+$G16*0.2, SUM(F16:G16)))), 0),"Non requis") -> 16835.94 | Q16: 0 | R16: 0 | S16: 0 | T16: 1 | Y16: 12808 | Z16: Moungali
A17: =IF(INTRO!$E$33<>0,INTRO!$E$33, " ") -> Congo | B17: Brazzaville | C17: Ouenzé | D17: 231873 | E17: =IF(INTRO!$E$48="","",ROUND($D17*INTRO!$E$48,0)) -> 37100 | F17: =IF(INTRO!$E$49="","",ROUND($D17*INTRO!$E$49,0)) -> 55650 | G17: =IF(INTRO!$E$50="","",ROUND($D17*INTRO!$E$50,0)) -> 128226 | H17: 0 | I17: 0 | J17: 1 | K17: 1 | L17: 1 | M17: =IF(INTRO!$E$37="Endémique",IF($H17>0,IF($H17=4,"Inconnu",IF($H17=99,"Interrompu",$D17)),0),"Non requis") -> 0 | O17: =IF(INTRO!$E$41="Endémique", IF(AND($J17>1,$J17<5), IF($J17=4, "Inconnu", E17+F17), 0),"Non requis") -> 0 | P17: =IF(INTRO!$E$43="Endémique", IF(AND($K17>0,$K17<5), IF($K17=4,"Inconnu", IF($K17=1, $F17*0.33, IF($K17=2, $F17*0.5+$G17*0.2, SUM(F17:G17)))), 0),"Non requis") -> 18364.5 | Q17: 0 | R17: 0 | S17: 0 | T17: 1 | Y17: 12810 | Z17: Ouenzé
A18: =IF(INTRO!$E$33<>0,INTRO!$E$33, " ") -> Congo | B18: Brazzaville | C18: Poto-Poto | D18: 118539 | E18: =IF(INTRO!$E$48="","",ROUND($D18*INTRO!$E$48,0)) -> 18966 | F18: =IF(INTRO!$E$49="","",ROUND($D18*INTRO!$E$49,0)) -> 28449 | G18: =IF(INTRO!$E$50="","",ROUND($D18*INTRO!$E$50,0)) -> 65552 | H18: 0 | I18: 0 | J18: 1 | K18: 0 | L18: 1 | M18: =IF(INTRO!$E$37="Endémique",IF($H18>0,IF($H18=4,"Inconnu",IF($H18=99,"Interrompu",$D18)),0),"Non requis") -> 0 | O18: =IF(INTRO!$E$41="Endémique", IF(AND($J18>1,$J18<5), IF($J18=4, "Inconnu", E18+F18), 0),"Non requis") -> 0 | P18: =IF(INTRO!$E$43="Endémique", IF(AND($K18>0,$K18<5), IF($K18=4,"Inconnu", IF($K18=1, $F18*0.33, IF($K18=2, $F18*0.5+$G18*0.2, SUM(F18:G18)))), 0),"Non requis") -> 0 | Q18: 0 | R18: 0 | S18: 0 | T18: 0 | Y18: 12811 | Z18: Poto-Poto
A19: =IF(INTRO!$E$33<>0,INTRO!$E$33, " ") -> Congo | B19: Brazzaville | C19: Talangaî | D19: 276889 | E19: =IF(INTRO!$E$48="","",ROUND($D19*INTRO!$E$48,0)) -> 44302 | F19: =IF(INTRO!$E$49="","",ROUND($D19*INTRO!$E$49,0)) -> 66453 | G19: =IF(INTRO!$E$50="","",ROUND($D19*INTRO!$E$50,0)) -> 153120 | H19: 0 | I19: 0 | J19: 1 | K19: 0 | L19: 1 | M19: =IF(INTRO!$E$37="Endémique",IF($H19>0,IF($H19=4,"Inconnu",IF($H19=99,"Interrompu",$D19)),0),"Non requis") -> 0 | O19: =IF(INTRO!$E$41="Endémique", IF(AND($J19>1,$J19<5), IF($J19=4, "Inconnu", E19+F19), 0),"Non requis") -> 0 | P19: =IF(INTRO!$E$43="Endémique", IF(AND($K19>0,$K19<5), IF($K19=4,"Inconnu", IF($K19=1, $F19*0.33, IF($K19=2, $F19*0.5+$G19*0.2, SUM(F19:G19)))), 0),"Non requis") -> 0 | Q19: 0 | R19: 0 | S19: 0 | T19: 0 | Y19: 12812 | Z19: Talangaî
A20: =IF(INTRO!$E$33<>0,INTRO!$E$33, " ") -> Congo | B20: Brazzaville | C20: Madibou | D20: 155034 | E20: =IF(INTRO!$E$48="","",ROUND($D20*INTRO!$E$48,0)) -> 24805 | F20: =IF(INTRO!$E$49="","",ROUND($D20*INTRO!$E$49,0)) -> 37208 | G20: =IF(INTRO!$E$50="","",ROUND($D20*INTRO!$E$50,0)) -> 85734 | H20: 0 | I20: 1 | J20: 1 | K20: 0 | L20: 1 | M20: =IF(INTRO!$E$37="Endémique",IF($H20>0,IF($H20=4,"Inconnu",IF($H20=99,"Interrompu",$D20)),0),"Non requis") -> 0 | N20: 111809 | O20: =IF(INTRO!$E$41="Endémique", IF(AND($J20>1,$J20<5), IF($J20=4, "Inconnu", E20+F20), 0),"Non requis") -> 0 | P20: =IF(INTRO!$E$43="Endémique", IF(AND($K20>0,$K20<5), IF($K20=4,"Inconnu", IF($K20=1, $F20*0.33, IF($K20=2, $F20*0.5+$G20*0.2, SUM(F20:G20)))), 0),"Non requis") -> 0 | Q20: 0 | R20: 1 | S20: 0 | T20: 0 | Y20: 12824 | Z20: Madibou
A21: =IF(INTRO!$E$33<>0,INTRO!$E$33, " ") -> Congo | B21: Brazzaville | C21: Djiri | D21: 153918 | E21: =IF(INTRO!$E$48="","",ROUND($D21*INTRO!$E$48,0)) -> 24627 | F21: =IF(INTRO!$E$49="","",ROUND($D21*INTRO!$E$49,0)) -> 36940 | G21: =IF(INTRO!$E$50="","",ROUND($D21*INTRO!$E$50,0)) -> 85117 | H21: 0 | I21: 0 | J21: 1 | K21: 0 | L21: 1 | M21: =IF(INTRO!$E$37="Endémique",IF($H21>0,IF($H21=4,"Inconnu",IF($H21=99,"Interrompu",$D21)),0),"Non requis") -> 0 | O21: =IF(INTRO!$E$41="Endémique", IF(AND($J21>1,$J21<5), IF($J21=4, "Inconnu", E21+F21), 0),"Non requis") -> 0 | P21: =IF(INTRO!$E$43="Endémique", IF(AND($K21>0,$K21<5), IF($K21=4,"Inconnu", IF($K21=1, $F21*0.33, IF($K21=2, $F21*0.5+$G21*0.2, SUM(F21:G21)))), 0),"Non requis") -> 0 | Q21: 0 | R21: 0 | S21: 0 | T21: 0 | Y21: 12821 | Z21: Djiri
A22: =IF(INTRO!$E$33<>0,INTRO!$E$33, " ") -> Congo | B22: Cuvette | C22: Mossaka Loukoléla | D22: 59934 | E22: =IF(INTRO!$E$48="","",ROUND($D22*INTRO!$E$48,0)) -> 9589 | F22: =IF(INTRO!$E$49="","",ROUND($D22*INTRO!$E$49,0)) -> 14384 | G22: =IF(INTRO!$E$50="","",ROUND($D22*INTRO!$E$50,0)) -> 33144 | H22: 0 | I22: 0 | J22: 2 | K22: 1 | L22: 1 | M22: =IF(INTRO!$E$37="Endémique",IF($H22>0,IF($H22=4,"Inconnu",IF($H22=99,"Interrompu",$D22)),0),"Non requis") -> 0 | O22: =IF(INTRO!$E$41="Endémique", IF(AND($J22>1,$J22<5), IF($J22=4, "Inconnu", E22+F22), 0),"Non requis") -> 23973 | P22: =IF(INTRO!$E$43="Endémique", IF(AND($K22>0,$K22<5), IF($K22=4,"Inconnu", IF($K22=1, $F22*0.33, IF($K22=2, $F22*0.5+$G22*0.2, SUM(F22:G22)))), 0),"Non requis") -> 4746.72 | Q22: 0 | R22: 0 | S22: 1 | T22: 1 | Y22: 12773 | Z22: Mossaka Loukoléla
A23: =IF(INTRO!$E$33<>0,INTRO!$E$33, " ") -> Congo | B23: Cuvette | C23: Owando | D23: 87925 | E23: =IF(INTRO!$E$48="","",ROUND($D23*INTRO!$E$48,0)) -> 14068 | F23: =IF(INTRO!$E$49="","",ROUND($D23*INTRO!$E$49,0)) -> 21102 | G23: =IF(INTRO!$E$50="","",ROUND($D23*INTRO!$E$50,0)) -> 48623 | H23: 1 | I23: 0 | J23: 1 | K23: 1 | L23: 1 | M23: =IF(INTRO!$E$37="Endémique",IF($H23>0,IF($H23=4,"Inconnu",IF($H23=99,"Interrompu",$D23)),0),"Non requis") -> 87925 | O23: =IF(INTRO!$E$41="Endémique", IF(AND($J23>1,$J23<5), IF($J23=4, "Inconnu", E23+F23), 0),"Non requis") -> 0 | P23: =IF(INTRO!$E$43="Endémique", IF(AND($K23>0,$K23<5), IF($K23=4,"Inconnu", IF($K23=1, $F23*0.33, IF($K23=2, $F23*0.5+$G23*0.2, SUM(F23:G23)))), 0),"Non requis") -> 6963.66 | Q23: 1 | R23: 0 | S23: 0 | T23: 1 | Y23: 12775 | Z23: Owando
A24: =IF(INTRO!$E$33<>0,INTRO!$E$33, " ") -> Congo | B24: Cuvette | C24: Oyo | D24: 50873 | E24: =IF(INTRO!$E$48="","",ROUND($D24*INTRO!$E$48,0)) -> 8140 | F24: =IF(INTRO!$E$49="","",ROUND($D24*INTRO!$E$49,0)) -> 12210 | G24: =IF(INTRO!$E$50="","",ROUND($D24*INTRO!$E$50,0)) -> 28133 | H24: 0 | I24: 0 | J24: 1 | K24: 0 | L24: 1 | M24: =IF(INTRO!$E$37="Endémique",IF($H24>0,IF($H24=4,"Inconnu",IF($H24=99,"Interrompu",$D24)),0),"Non requis") -> 0 | O24: =IF(INTRO!$E$41="Endémique", IF(AND($J24>1,$J24<5), IF($J24=4, "Inconnu", E24+F24), 0),"Non requis") -> 0 | P24: =IF(INTRO!$E$43="Endémique", IF(AND($K24>0,$K24<5), IF($K24=4,"Inconnu", IF($K24=1, $F24*0.33, IF($K24=2, $F24*0.5+$G24*0.2, SUM(F24:G24)))), 0),"Non requis") -> 0 | Q24: 0 | R24: 0 | S24: 0 | T24: 0 | Y24: 12829 | Z24: Oyo
A25: =IF(INTRO!$E$33<>0,INTRO!$E$33, " ") -> Congo | B25: Cuvette-Ouest | C25: Etoumbi | D25: 44246 | E25: =IF(INTRO!$E$48="","",ROUND($D25*INTRO!$E$48,0)) -> 7079 | F25: =IF(INTRO!$E$49="","",ROUND($D25*INTRO!$E$49,0)) -> 10619 | G25: =IF(INTRO!$E$50="","",ROUND($D25*INTRO!$E$50,0)) -> 24468 | H25: 1 | I25: 0 | J25: 2 | K25: 0 | L25: 1 | M25: =IF(INTRO!$E$37="Endémique",IF($H25>0,IF($H25=4,"Inconnu",IF($H25=99,"Interrompu",$D25)),0),"Non requis") -> 44246 | O25: =IF(INTRO!$E$41="Endémique", IF(AND($J25>1,$J25<5), IF($J25=4, "Inconnu", E25+F25), 0),"Non requis") -> 17698 | P25: =IF(INTRO!$E$43="Endémique", IF(AND($K25>0,$K25<5), IF($K25=4,"Inconnu", IF($K25=1, $F25*0.33, IF($K25=2, $F25*0.5+$G25*0.2, SUM(F25:G25)))), 0),"Non requis") -> 0 | Q25: 1 | R25: 0 | S25: 1 | T25: 0 | Y25: 12822 | Z25: Etoumbi
A26: =IF(INTRO!$E$33<>0,INTRO!$E$33, " ") -> Congo | B26: Cuvette-Ouest | C26: Ewo | D26: 48683 | E26: =IF(INTRO!$E$48="","",ROUND($D26*INTRO!$E$48,0)) -> 7789 | F26: =IF(INTRO!$E$49="","",ROUND($D26*INTRO!$E$49,0)) -> 11684 | G26: =IF(INTRO!$E$50="","",ROUND($D26*INTRO!$E$50,0)) -> 26922 | H26: 1 | I26: 0 | J26: 2 | K26: 1 | L26: 1 | M26: =IF(INTRO!$E$37="Endémique",IF($H26>0,IF($H26=4,"Inconnu",IF($H26=99,"Interrompu",$D26)),0),"Non requis") -> 48683 | O26: =IF(INTRO!$E$41="Endémique", IF(AND($J26>1,$J26<5), IF($J26=4, "Inconnu", E26+F26), 0),"Non requis") -> 19473 | P26: =IF(INTRO!$E$43="Endémique", IF(AND($K26>0,$K26<5), IF($K26=4,"Inconnu", IF($K26=1, $F26*0.33, IF($K26=2, $F26*0.5+$G26*0.2, SUM(F26:G26)))), 0),"Non requis") -> 3855.72 | Q26: 1 | R26: 0 | S26: 1 | T26: 1 | Y26: 12768 | Z26: Ewo
A27: =IF(INTRO!$E$33<>0,INTRO!$E$33, " ") -> Congo | B27: Kouilou | C27: Hinda-Mvouti | D27: 86245 | E27: =IF(INTRO!$E$48="","",ROUND($D27*INTRO!$E$48,0)) -> 13799 | F27: =IF(INTRO!$E$49="","",ROUND($D27*INTRO!$E$49,0)) -> 20699 | G27: =IF(INTRO!$E$50="","",ROUND($D27*INTRO!$E$50,0)) -> 47693 | H27: 0 | I27: 0 | J27: 3 | K27: 3 | L27: 1 | M27: =IF(INTRO!$E$37="Endémique",IF($H27>0,IF($H27=4,"Inconnu",IF($H27=99,"Interrompu",$D27)),0),"Non requis") -> 0 | O27: =IF(INTRO!$E$41="Endémique", IF(AND($J27>1,$J27<5), IF($J27=4, "Inconnu", E27+F27), 0),"Non requis") -> 34498 | P27: =IF(INTRO!$E$43="Endémique", IF(AND($K27>0,$K27<5), IF($K27=4,"Inconnu", IF($K27=1, $F27*0.33, IF($K27=2, $F27*0.5+$G27*0.2, SUM(F27:G27)))), 0),"Non requis") -> 68392 | Q27: 0 | R27: 0 | S27: 2 | T27: 1 | Y27: 12781 | Z27: Hinda-Mvouti
A28: =IF(INTRO!$E$33<>0,INTRO!$E$33, " ") -> Congo | B28: Kouilou | C28: Madingo Kayes | D28: 30861 | E28: =IF(INTRO!$E$48="","",ROUND($D28*INTRO!$E$48,0)) -> 4938 | F28: =IF(INTRO!$E$49="","",ROUND($D28*INTRO!$E$49,0)) -> 7407 | G28: =IF(INTRO!$E$50="","",ROUND($D28*INTRO!$E$50,0)) -> 17066 | H28: 0 | I28: 1 | J28: 3 | K28: 3 | L28: 1 | M28: =IF(INTRO!$E$37="Endémique",IF($H28>0,IF($H28=4,"Inconnu",IF($H28=99,"Interrompu",$D28)),0),"Non requis") -> 0 | N28: 1051 | O28: =IF(INTRO!$E$41="Endémique", IF(AND($J28>1,$J28<5), IF($J28=4, "Inconnu", E28+F28), 0),"Non requis") -> 12345 | P28: =IF(INTRO!$E$43="Endémique", IF(AND($K28>0,$K28<5), IF($K28=4,"Inconnu", IF($K28=1, $F28*0.33, IF($K28=2, $F28*0.5+$G28*0.2, SUM(F28:G28)))), 0),"Non requis") -> 24473 | Q28: 0 | R28: 1 | S28: 2 | T28: 1 | Y28: 12816 | Z28: Madingo Kayes
A29: =IF(INTRO!$E$33<>0,INTRO!$E$33, " ") -> Congo | B29: Lékoumou | C29: Sibiti | D29: 95291 | E29: =IF(INTRO!$E$48="","",ROUND($D29*INTRO!$E$48,0)) -> 15247 | F29: =IF(INTRO!$E$49="","",ROUND($D29*INTRO!$E$49,0)) -> 22870 | G29: =IF(INTRO!$E$50="","",ROUND($D29*INTRO!$E$50,0)) -> 52696 | H29: 0 | I29: 1 | J29: 3 | K29: 1 | L29: 1 | M29: =IF(INTRO!$E$37="Endémique",IF($H29>0,IF($H29=4,"Inconnu",IF($H29=99,"Interrompu",$D29)),0),"Non requis") -> 0 | N29: 710 | O29: =IF(INTRO!$E$41="Endémique", IF(AND($J29>1,$J29<5), IF($J29=4, "Inconnu", E29+F29), 0),"Non requis") -> 38117 | P29: =IF(INTRO!$E$43="Endémique", IF(AND($K29>0,$K29<5), IF($K29=4,"Inconnu", IF($K29=1, $F29*0.33, IF($K29=2, $F29*0.5+$G29*0.2, SUM(F29:G29)))), 0),"Non requis") -> 7547.1 | Q29: 0 | R29: 1 | S29: 2 | T29: 1 | Y29: 12784 | Z29: Sibiti
A30: =IF(INTRO!$E$33<>0,INTRO!$E$33, " ") -> Congo | B30: Lékoumou | C30: Zanaga | D30: 27437 | E30: =IF(INTRO!$E$48="","",ROUND($D30*INTRO!$E$48,0)) -> 4390 | F30: =IF(INTRO!$E$49="","",ROUND($D30*INTRO!$E$49,0)) -> 6585 | G30: =IF(INTRO!$E$50="","",ROUND($D30*INTRO!$E$50,0)) -> 15173 | H30: 0 | I30: 0 | J30: 3 | K30: 0 | L30: 1 | M30: =IF(INTRO!$E$37="Endémique",IF($H30>0,IF($H30=4,"Inconnu",IF($H30=99,"Interrompu",$D30)),0),"Non requis") -> 0 | O30: =IF(INTRO!$E$41="Endémique", IF(AND($J30>1,$J30<5), IF($J30=4, "Inconnu", E30+F30), 0),"Non requis") -> 10975 | P30: =IF(INTRO!$E$43="Endémique", IF(AND($K30>0,$K30<5), IF($K30=4,"Inconnu", IF($K30=1, $F30*0.33, IF($K30=2, $F30*0.5+$G30*0.2, SUM(F30:G30)))), 0),"Non requis") -> 0 | Q30: 0 | R30: 0 | S30: 2 | T30: 0 | Y30: 12785 | Z30: Zanaga
A31: =IF(INTRO!$E$33<>0,INTRO!$E$33, " ") -> Congo | B31: Likouala | C31: Bétou | D31: 64841 | E31: =IF(INTRO!$E$48="","",ROUND($D31*INTRO!$E$48,0)) -> 10375 | F31: =IF(INTRO!$E$49="","",ROUND($D31*INTRO!$E$49,0)) -> 15562 | G31: =IF(INTRO!$E$50="","",ROUND($D31*INTRO!$E$50,0)) -> 35857 | H31: 0 | I31: 0 | J31: 2 | K31: 0 | L31: 1 | M31: =IF(INTRO!$E$37="Endémique",IF($H31>0,IF($H31=4,"Inconnu",IF($H31=99,"Interrompu",$D31)),0),"Non requis") -> 0 | O31: =IF(INTRO!$E$41="Endémique", IF(AND($J31>1,$J31<5), IF($J31=4, "Inconnu", E31+F31), 0),"Non requis") -> 25937 | P31: =IF(INTRO!$E$43="Endémique", IF(AND($K31>0,$K31<5), IF($K31=4,"Inconnu", IF($K31=1, $F31*0.33, IF($K31=2, $F31*0.5+$G31*0.2, SUM(F31:G31)))), 0),"Non requis") -> 0 | Q31: 0 | R31: 0 | S31: 1 | T31: 0 | Y31: 12786 | Z31: Bétou
A32: =IF(INTRO!$E$33<>0,INTRO!$E$33, " ") -> Congo | B32: Likouala | C32: Impfondo | D32: 131366 | E32: =IF(INTRO!$E$48="","",ROUND($D32*INTRO!$E$48,0)) -> 21019 | F32: =IF(INTRO!$E$49="","",ROUND($D32*INTRO!$E$49,0)) -> 31528 | G32: =IF(INTRO!$E$50="","",ROUND($D32*INTRO!$E$50,0)) -> 72645 | H32: 1 | I32: 0 | J32: 2 | K32: 0 | L32: 1 | M32: =IF(INTRO!$E$37="Endémique",IF($H32>0,IF($H32=4,"Inconnu",IF($H32=99,"Interrompu",$D32)),0),"Non requis") -> 131366 | O32: =IF(INTRO!$E$41="Endémique", IF(AND($J32>1,$J32<5), IF($J32=4, "Inconnu", E32+F32), 0),"Non requis") -> 52547 | P32: =IF(INTRO!$E$43="Endémique", IF(AND($K32>0,$K32<5), IF($K32=4,"Inconnu", IF($K32=1, $F32*0.33, IF($K32=2, $F32*0.5+$G32*0.2, SUM(F32:G32)))), 0),"Non requis") -> 0 | Q32: 1 | R32: 0 | S32: 1 | T32: 0 | Y32: 12789 | Z32: Impfondo
A33: =IF(INTRO!$E$33<>0,INTRO!$E$33, " ") -> Congo | B33: Niari | C33: Dolisie | D33: 177054 | E33: =IF(INTRO!$E$48="","",ROUND($D33*INTRO!$E$48,0)) -> 28329 | F33: =IF(INTRO!$E$49="","",ROUND($D33*INTRO!$E$49,0)) -> 42493 | G33: =IF(INTRO!$E$50="","",ROUND($D33*INTRO!$E$50,0)) -> 97911 | H33: 1 | I33: 1 | J33: 3 | K33: 1 | L33: 1 | M33: =IF(INTRO!$E$37="Endémique",IF($H33>0,IF($H33=4,"Inconnu",IF($H33=99,"Interrompu",$D33)),0),"Non requis") -> 177054 | N33: 7667 | O33: =IF(INTRO!$E$41="Endémique", IF(AND($J33>1,$J33<5), IF($J33=4, "Inconnu", E33+F33), 0),"Non requis") -> 70822 | P33: =IF(INTRO!$E$43="Endémique", IF(AND($K33>0,$K33<5), IF($K33=4,"Inconnu", IF($K33=1, $F33*0.33, IF($K33=2, $F33*0.5+$G33*0.2, SUM(F33:G33)))), 0),"Non requis") -> 14022.69 | Q33: 1 | R33: 1 | S33: 2 | T33: 1 | Y33: 12827 | Z33: Dolisie
A34: =IF(INTRO!$E$33<>0,INTRO!$E$33, " ") -> Congo | B34: Niari | C34: Kibangou | D34: 60766 | E34: =IF(INTRO!$E$48="","",ROUND($D34*INTRO!$E$48,0)) -> 9723 | F34: =IF(INTRO!$E$49="","",ROUND($D34*INTRO!$E$49,0)) -> 14584 | G34: =IF(INTRO!$E$50="","",ROUND($D34*INTRO!$E$50,0)) -> 33604 | H34: 1 | I34: 1 | J34: 3 | K34: 0 | L34: 1 | M34: =IF(INTRO!$E$37="Endémique",IF($H34>0,IF($H34=4,"Inconnu",IF($H34=99,"Interrompu",$D34)),0),"Non requis") -> 60766 | N34: 16757 | O34: =IF(INTRO!$E$41="Endémique", IF(AND($J34>1,$J34<5), IF($J34=4, "Inconnu", E34+F34), 0),"Non requis") -> 24307 | P34: =IF(INTRO!$E$43="Endémique", IF(AND($K34>0,$K34<5), IF($K34=4,"Inconnu", IF($K34=1, $F34*0.33, IF($K34=2, $F34*0.5+$G34*0.2, SUM(F34:G34)))), 0),"Non requis") -> 0 | Q34: 1 | R34: 1 | S34: 2 | T34: 0 | Y34: 12791 | Z34: Kibangou
A35: =IF(INTRO!$E$33<>0,INTRO!$E$33, " ") -> Congo | B35: Niari | C35: Mossendjo | D35: 56578 | E35: =IF(INTRO!$E$48="","",ROUND($D35*INTRO!$E$48,0)) -> 9052 | F35: =IF(INTRO!$E$49="","",ROUND($D35*INTRO!$E$49,0)) -> 13579 | G35: =IF(INTRO!$E$50="","",ROUND($D35*INTRO!$E$50,0)) -> 31288 | H35: 0 | I35: 0 | J35: 3 | K35: 0 | L35: 1 | M35: =IF(INTRO!$E$37="Endémique",IF($H35>0,IF($H35=4,"Inconnu",IF($H35=99,"Interrompu",$D35)),0),"Non requis") -> 0 | O35: =IF(INTRO!$E$41="Endémique", IF(AND($J35>1,$J35<5), IF($J35=4, "Inconnu", E35+F35), 0),"Non requis") -> 22631 | P35: =IF(INTRO!$E$43="Endémique", IF(AND($K35>0,$K35<5), IF($K35=4,"Inconnu", IF($K35=1, $F35*0.33, IF($K35=2, $F35*0.5+$G35*0.2, SUM(F35:G35)))), 0),"Non requis") -> 0 | Q35: 0 | R35: 0 | S35: 2 | T35: 0 | Y35: 12795 | Z35: Mossendjo
A36: =IF(INTRO!$E$33<>0,INTRO!$E$33, " ") -> Congo | B36: Plateaux | C36: Abala | D36: 47364 | E36: =IF(INTRO!$E$48="","",ROUND($D36*INTRO!$E$48,0)) -> 7578 | F36: =IF(INTRO!$E$49="","",ROUND($D36*INTRO!$E$49,0)) -> 11367 | G36: =IF(INTRO!$E$50="","",ROUND($D36*INTRO!$E$50,0)) -> 26192 | H36: 0 | I36: 0 | J36: 1 | K36: 0 | L36: 1 | M36: =IF(INTRO!$E$37="Endémique",IF($H36>0,IF($H36=4,"Inconnu",IF($H36=99,"Interrompu",$D36)),0),"Non requis") -> 0 | O36: =IF(INTRO!$E$41="Endémique", IF(AND($J36>1,$J36<5), IF($J36=4, "Inconnu", E36+F36), 0),"Non requis") -> 0 | P36: =IF(INTRO!$E$43="Endémique", IF(AND($K36>0,$K36<5), IF($K36=4,"Inconnu", IF($K36=1, $F36*0.33, IF($K36=2, $F36*0.5+$G36*0.2, SUM(F36:G36)))), 0),"Non requis") -> 0 | Q36: 0 | R36: 0 | S36: 0 | T36: 0 | Y36: 12830 | Z36: Abala
A37: =IF(INTRO!$E$33<>0,INTRO!$E$33, " ") -> Congo | B37: Plateaux | C37: Djambala-Lékana | D37: 80480 | E37: =IF(INTRO!$E$48="","",ROUND($D37*INTRO!$E$48,0)) -> 12877 | F37: =IF(INTRO!$E$49="","",ROUND($D37*INTRO!$E$49,0)) -> 19315 | G37: =IF(INTRO!$E$50="","",ROUND($D37*INTRO!$E$50,0)) -> 44505 | H37: 0 | I37: 0 | J37: 3 | K37: 0 | L37: 1 | M37: =IF(INTRO!$E$37="Endémique",IF($H37>0,IF($H37=4,"Inconnu",IF($H37=99,"Interrompu",$D37)),0),"Non requis") -> 0 | O37: =IF(INTRO!$E$41="Endémique", IF(AND($J37>1,$J37<5), IF($J37=4, "Inconnu", E37+F37), 0),"Non requis") -> 32192 | P37: =IF(INTRO!$E$43="Endémique", IF(AND($K37>0,$K37<5), IF($K37=4,"Inconnu", IF($K37=1, $F37*0.33, IF($K37=2, $F37*0.5+$G37*0.2, SUM(F37:G37)))), 0),"Non requis") -> 0 | Q37: 0 | R37: 0 | S37: 2 | T37: 0 | Y37: 12797 | Z37: Djambala-Lékana
A38: =IF(INTRO!$E$33<>0,INTRO!$E$33, " ") -> Congo | B38: Plateaux | C38: Gamboma | D38: 94408 | E38: =IF(INTRO!$E$48="","",ROUND($D38*INTRO!$E$48,0)) -> 15105 | F38: =IF(INTRO!$E$49="","",ROUND($D38*INTRO!$E$49,0)) -> 22658 | G38: =IF(INTRO!$E$50="","",ROUND($D38*INTRO!$E$50,0)) -> 52208 | H38: 0 | I38: 0 | J38: 3 | K38: 0 | L38: 1 | M38: =IF(INTRO!$E$37="Endémique",IF($H38>0,IF($H38=4,"Inconnu",IF($H38=99,"Interrompu",$D38)),0),"Non requis") -> 0 | O38: =IF(INTRO!$E$41="Endémique", IF(AND($J38>1,$J38<5), IF($J38=4, "Inconnu", E38+F38), 0),"Non requis") -> 37763 | P38: =IF(INTRO!$E$43="Endémique", IF(AND($K38>0,$K38<5), IF($K38=4,"Inconnu", IF($K38=1, $F38*0.33, IF($K38=2, $F38*0.5+$G38*0.2, SUM(F38:G38)))), 0),"Non requis") -> 0 | Q38: 0 | R38: 0 | S38: 2 | T38: 0 | Y38: 12798 | Z38: Gamboma
A39: =IF(INTRO!$E$33<>0,INTRO!$E$33, " ") -> Congo | B39: Pointe-Noire | C39: Ngoyo | D39: 32943 | E39: =IF(INTRO!$E$48="","",ROUND($D39*INTRO!$E$48,0)) -> 5271 | F39: =IF(INTRO!$E$49="","",ROUND($D39*INTRO!$E$49,0)) -> 7906 | G39: =IF(INTRO!$E$50="","",ROUND($D39*INTRO!$E$50,0)) -> 18217 | H39: 0 | I39: 0 | J39: 1 | K39: 0 | L39: 1 | M39: =IF(INTRO!$E$37="Endémique",IF($H39>0,IF($H39=4,"Inconnu",IF($H39=99,"Interrompu",$D39)),0),"Non requis") -> 0 | O39: =IF(INTRO!$E$41="Endémique", IF(AND($J39>1,$J39<5), IF($J39=4, "Inconnu", E39+F39), 0),"Non requis") -> 0 | P39: =IF(INTRO!$E$43="Endémique", IF(AND($K39>0,$K39<5), IF($K39=4,"Inconnu", IF($K39=1, $F39*0.33, IF($K39=2, $F39*0.5+$G39*0.2, SUM(F39:G39)))), 0),"Non requis") -> 0 | Q39: 0 | R39: 0 | S39: 0 | T39: 0 | Y39: 12826 | Z39: Ngoyo
A40: =IF(INTRO!$E$33<>0,INTRO!$E$33, " ") -> Congo | B40: Pointe-Noire | C40: Mongo-Poukou | D40: 121085 | E40: =IF(INTRO!$E$48="","",ROUND($D40*INTRO!$E$48,0)) -> 19374 | F40: =IF(INTRO!$E$49="","",ROUND($D40*INTRO!$E$49,0)) -> 29060 | G40: =IF(INTRO!$E$50="","",ROUND($D40*INTRO!$E$50,0)) -> 66960 | H40: 0 | I40: 0 | J40: 1 | K40: 0 | L40: 1 | M40: =IF(INTRO!$E$37="Endémique",IF($H40>0,IF($H40=4,"Inconnu",IF($H40=99,"Interrompu",$D40)),0),"Non requis") -> 0 | O40: =IF(INTRO!$E$41="Endémique", IF(AND($J40>1,$J40<5), IF($J40=4, "Inconnu", E40+F40), 0),"Non requis") -> 0 | P40: =IF(INTRO!$E$43="Endémique", IF(AND($K40>0,$K40<5), IF($K40=4,"Inconnu", IF($K40=1, $F40*0.33, IF($K40=2, $F40*0.5+$G40*0.2, SUM(F40:G40)))), 0),"Non requis") -> 0 | Q40: 0 | R40: 0 | S40: 0 | T40: 0 | Y40: 12825 | Z40: Mongo-Poukou
A41: =IF(INTRO!$E$33<>0,INTRO!$E$33, " ") -> Congo | B41: Pointe-Noire | C41: Loandjili | D41: 252075 | E41: =IF(INTRO!$E$48="","",ROUND($D41*INTRO!$E$48,0)) -> 40332 | F41: =IF(INTRO!$E$49="","",ROUND($D41*INTRO!$E$49,0)) -> 60498 | G41: =IF(INTRO!$E$50="","",ROUND($D41*INTRO!$E$50,0)) -> 139397 | H41: 0 | I41: 0 | J41: 1 | K41: 1 | L41: 1 | M41: =IF(INTRO!$E$37="Endémique",IF($H41>0,IF($H41=4,"Inconnu",IF($H41=99,"Interrompu",$D41)),0),"Non requis") -> 0 | O41: =IF(INTRO!$E$41="Endémique", IF(AND($J41>1,$J41<5), IF($J41=4, "Inconnu", E41+F41), 0),"Non requis") -> 0 | P41: =IF(INTRO!$E$43="Endémique", IF(AND($K41>0,$K41<5), IF($K41=4,"Inconnu", IF($K41=1, $F41*0.33, IF($K41=2, $F41*0.5+$G41*0.2, SUM(F41:G41)))), 0),"Non requis") -> 19964.34 | Q41: 0 | R41: 0 | S41: 0 | T41: 1 | Y41: 12777 | Z41: Loandjili
A42: =IF(INTRO!$E$33<>0,INTRO!$E$33, " ") -> Congo | B42: Pointe-Noire | C42: Lumumba | D42: 138700 | E42: =IF(INTRO!$E$48="","",ROUND($D42*INTRO!$E$48,0)) -> 22192 | F42: =IF(INTRO!$E$49="","",ROUND($D42*INTRO!$E$49,0)) -> 33288 | G42: =IF(INTRO!$E$50="","",ROUND($D42*INTRO!$E$50,0)) -> 76701 | H42: 0 | I42: 0 | J42: 1 | K42: 1 | L42: 1 | M42: =IF(INTRO!$E$37="Endémique",IF($H42>0,IF($H42=4,"Inconnu",IF($H42=99,"Interrompu",$D42)),0),"Non requis") -> 0 | O42: =IF(INTRO!$E$41="Endémique", IF(AND($J42>1,$J42<5), IF($J42=4, "Inconnu", E42+F42), 0),"Non requis") -> 0 | P42: =IF(INTRO!$E$43="Endémique", IF(AND($K42>0,$K42<5), IF($K42=4,"Inconnu", IF($K42=1, $F42*0.33, IF($K42=2, $F42*0.5+$G42*0.2, SUM(F42:G42)))), 0),"Non requis") -> 10985.04 | Q42: 0 | R42: 0 | S42: 0 | T42: 1 | Y42: 12778 | Z42: Lumumba
A43: =IF(INTRO!$E$33<>0,INTRO!$E$33, " ") -> Congo | B43: Pointe-Noire | C43: Mvoumvou | D43: 111123 | E43: =IF(INTRO!$E$48="","",ROUND($D43*INTRO!$E$48,0)) -> 17780 | F43: =IF(INTRO!$E$49="","",ROUND($D43*INTRO!$E$49,0)) -> 26670 | G43: =IF(INTRO!$E$50="","",ROUND($D43*INTRO!$E$50,0)) -> 61451 | H43: 0 | I43: 0 | J43: 1 | K43: 1 | L43: 1 | M43: =IF(INTRO!$E$37="Endémique",IF($H43>0,IF($H43=4,"Inconnu",IF($H43=99,"Interrompu",$D43)),0),"Non requis") -> 0 | O43: =IF(INTRO!$E$41="Endémique", IF(AND($J43>1,$J43<5), IF($J43=4, "Inconnu", E43+F43), 0),"Non requis") -> 0 | P43: =IF(INTRO!$E$43="Endémique", IF(AND($K43>0,$K43<5), IF($K43=4,"Inconnu", IF($K43=1, $F43*0.33, IF($K43=2, $F43*0.5+$G43*0.2, SUM(F43:G43)))), 0),"Non requis") -> 8801.1 | Q43: 0 | R43: 0 | S43: 0 | T43: 1 | Y43: 12780 | Z43: Mvoumvou
A44: =IF(INTRO!$E$33<>0,INTRO!$E$33, " ") -> Congo | B44: Pointe-Noire | C44: Tie-Tie | D44: 225722 | E44: =IF(INTRO!$E$48="","",ROUND($D44*INTRO!$E$48,0)) -> 36116 | F44: =IF(INTRO!$E$49="","",ROUND($D44*INTRO!$E$49,0)) -> 54173 | G44: =IF(INTRO!$E$50="","",ROUND($D44*INTRO!$E$50,0)) -> 124824 | H44: 0 | I44: 0 | J44: 1 | K44: 0 | L44: 1 | M44: =IF(INTRO!$E$37="Endémique",IF($H44>0,IF($H44=4,"Inconnu",IF($H44=99,"Interrompu",$D44)),0),"Non requis") -> 0 | O44: =IF(INTRO!$E$41="Endémique", IF(AND($J44>1,$J44<5), IF($J44=4, "Inconnu", E44+F44), 0),"Non requis") -> 0 | P44: =IF(INTRO!$E$43="Endémique", IF(AND($K44>0,$K44<5), IF($K44=4,"Inconnu", IF($K44=1, $F44*0.33, IF($K44=2, $F44*0.5+$G44*0.2, SUM(F44:G44)))), 0),"Non requis") -> 0 | Q44: 0 | R44: 0 | S44: 0 | T44: 0 | Y44: 12819 | Z44: Tie-Tie
A45: =IF(INTRO!$E$33<>0,INTRO!$E$33, " ") -> Congo | B45: Pool | C45: Goma tsétsé | D45: 32272 | E45: =IF(INTRO!$E$48="","",ROUND($D45*INTRO!$E$48,0)) -> 5164 | F45: =IF(INTRO!$E$49="","",ROUND($D45*INTRO!$E$49,0)) -> 7745 | G45: =IF(INTRO!$E$50="","",ROUND($D45*INTRO!$E$50,0)) -> 17846 | H45: 0 | I45: 1 | J45: 2 | K45: 0 | L45: 1 | M45: =IF(INTRO!$E$37="Endémique",IF($H45>0,IF($H45=4,"Inconnu",IF($H45=99,"Interrompu",$D45)),0),"Non requis") -> 0 | N45: 12272 | O45: =IF(INTRO!$E$41="Endémique", IF(AND($J45>1,$J45<5), IF($J45=4, "Inconnu", E45+F45), 0),"Non requis") -> 12909 | P45: =IF(INTRO!$E$43="Endémique", IF(AND($K45>0,$K45<5), IF($K45=4,"Inconnu", IF($K45=1, $F45*0.33, IF($K45=2, $F45*0.5+$G45*0.2, SUM(F45:G45)))), 0),"Non requis") -> 0 | Q45: 0 | R45: 1 | S45: 1 | T45: 0 | Y45: 12802 | Z45: Goma tsétsé
A46: =IF(INTRO!$E$33<>0,INTRO!$E$33, " ") -> Congo | B46: Pool | C46: Ignié | D46: 84550 | E46: =IF(INTRO!$E$48="","",ROUND($D46*INTRO!$E$48,0)) -> 13528 | F46: =IF(INTRO!$E$49="","",ROUND($D46*INTRO!$E$49,0)) -> 20292 | G46: =IF(INTRO!$E$50="","",ROUND($D46*INTRO!$E$50,0)) -> 46756 | H46: 1 | I46: 1 | J46: 2 | K46: 1 | L46: 1 | M46: =IF(INTRO!$E$37="Endémique",IF($H46>0,IF($H46=4,"Inconnu",IF($H46=99,"Interrompu",$D46)),0),"Non requis") -> 84550 | N46: 1251 | O46: =IF(INTRO!$E$41="Endémique", IF(AND($J46>1,$J46<5), IF($J46=4, "Inconnu", E46+F46), 0),"Non requis") -> 33820 | P46: =IF(INTRO!$E$43="Endémique", IF(AND($K46>0,$K46<5), IF($K46=4,"Inconnu", IF($K46=1, $F46*0.33, IF($K46=2, $F46*0.5+$G46*0.2, SUM(F46:G46)))), 0),"Non requis") -> 6696.36 | Q46: 1 | R46: 1 | S46: 1 | T46: 1 | Y46: 12828 | Z46: Ignié
A47: =IF(INTRO!$E$33<>0,INTRO!$E$33, " ") -> Congo | B47: Pool | C47: Kindamba | D47: 35287 | E47: =IF(INTRO!$E$48="","",ROUND($D47*INTRO!$E$48,0)) -> 5646 | F47: =IF(INTRO!$E$49="","",ROUND($D47*INTRO!$E$49,0)) -> 8469 | G47: =IF(INTRO!$E$50="","",ROUND($D47*INTRO!$E$50,0)) -> 19514 | H47: 0 | I47: 1 | J47: 2 | K47: 0 | L47: 1 | M47: =IF(INTRO!$E$37="Endémique",IF($H47>0,IF($H47=4,"Inconnu",IF($H47=99,"Interrompu",$D47)),0),"Non requis") -> 0 | N47: 4198 | O47: =IF(INTRO!$E$41="Endémique", IF(AND($J47>1,$J47<5), IF($J47=4, "Inconnu", E47+F47), 0),"Non requis") -> 14115 | P47: =IF(INTRO!$E$43="Endémique", IF(AND($K47>0,$K47<5), IF($K47=4,"Inconnu", IF($K47=1, $F47*0.33, IF($K47=2, $F47*0.5+$G47*0.2, SUM(F47:G47)))), 0),"Non requis") -> 0 | Q47: 0 | R47: 1 | S47: 1 | T47: 0 | Y47: 12803 | Z47: Kindamba
A48: =IF(INTRO!$E$33<>0,INTRO!$E$33, " ") -> Congo | B48: Pool | C48: Kinkala-Boko | D48: 80854 | E48: =IF(INTRO!$E$48="","",ROUND($D48*INTRO!$E$48,0)) -> 12937 | F48: =IF(INTRO!$E$49="","",ROUND($D48*INTRO!$E$49,0)) -> 19405 | G48: =IF(INTRO!$E$50="","",ROUND($D48*INTRO!$E$50,0)) -> 44712 | H48: 0 | I48: 1 | J48: 2 | K48: 0 | L48: 1 | M48: =IF(INTRO!$E$37="Endémique",IF($H48>0,IF($H48=4,"Inconnu",IF($H48=99,"Interrompu",$D48)),0),"Non requis") -> 0 | N48: 36101 | O48: =IF(INTRO!$E$41="Endémique", IF(AND($J48>1,$J48<5), IF($J48=4, "Inconnu", E48+F48), 0),"Non requis") -> 32342 | P48: =IF(INTRO!$E$43="Endémique", IF(AND($K48>0,$K48<5), IF($K48=4,"Inconnu", IF($K48=1, $F48*0.33, IF($K48=2, $F48*0.5+$G48*0.2, SUM(F48:G48)))), 0),"Non requis") -> 0 | Q48: 0 | R48: 1 | S48: 1 | T48: 0 | Y48: 12804 | Z48: Kinkala-Boko
A49: =IF(INTRO!$E$33<>0,INTRO!$E$33, " ") -> Congo | B49: Pool | C49: Mindouli | D49: 68206 | E49: =IF(INTRO!$E$48="","",ROUND($D49*INTRO!$E$48,0)) -> 10913 | F49: =IF(INTRO!$E$49="","",ROUND($D49*INTRO!$E$49,0)) -> 16369 | G49: =IF(INTRO!$E$50="","",ROUND($D49*INTRO!$E$50,0)) -> 37718 | H49: 0 | I49: 1 | J49: 2 | K49: 1 | L49: 1 | M49: =IF(INTRO!$E$37="Endémique",IF($H49>0,IF($H49=4,"Inconnu",IF($H49=99,"Interrompu",$D49)),0),"Non requis") -> 0 | N49: 26377 | O49: =IF(INTRO!$E$41="Endémique", IF(AND($J49>1,$J49<5), IF($J49=4, "Inconnu", E49+F49), 0),"Non requis") -> 27282 | P49: =IF(INTRO!$E$43="Endémique", IF(AND($K49>0,$K49<5), IF($K49=4,"Inconnu", IF($K49=1, $F49*0.33, IF($K49=2, $F49*0.5+$G49*0.2, SUM(F49:G49)))), 0),"Non requis") -> 5401.77 | Q49: 0 | R49: 1 | S49: 1 | T49: 1 | Y49: 12807 | Z49: Mindouli
A50: =IF(INTRO!$E$33<>0,INTRO!$E$33, " ") -> Congo | B50: Sangha | C50: Ouesso | D50: 78857 | E50: =IF(INTRO!$E$48="","",ROUND($D50*INTRO!$E$48,0)) -> 12617 | F50: =IF(INTRO!$E$49="","",ROUND($D50*INTRO!$E$49,0)) -> 18926 | G50: =IF(INTRO!$E$50="","",ROUND($D50*INTRO!$E$50,0)) -> 43608 | H50: 1 | I50: 0 | J50: 3 | K50: 1 | L50: 1 | M50: =IF(INTRO!$E$37="Endémique",IF($H50>0,IF($H50=4,"Inconnu",IF($H50=99,"Interrompu",$D50)),0),"Non requis") -> 78857 | O50: =IF(INTRO!$E$41="Endémique", IF(AND($J50>1,$J50<5), IF($J50=4, "Inconnu", E50+F50), 0),"Non requis") -> 31543 | P50: =IF(INTRO!$E$43="Endémique", IF(AND($K50>0,$K50<5), IF($K50=4,"Inconnu", IF($K50=1, $F50*0.33, IF($K50=2, $F50*0.5+$G50*0.2, SUM(F50:G50)))), 0),"Non requis") -> 6245.58 | Q50: 1 | R50: 0 | S50: 2 | T50: 1 | Y50: 12813 | Z50: Ouesso
A51: =IF(INTRO!$E$33<>0,INTRO!$E$33, " ") -> Congo | B51: Sangha | C51: Sembé-Souanké | D51: 30392 | E51: =IF(INTRO!$E$48="","",ROUND($D51*INTRO!$E$48,0)) -> 4863 | F51: =IF(INTRO!$E$49="","",ROUND($D51*INTRO!$E$49,0)) -> 7294 | G51: =IF(INTRO!$E$50="","",ROUND($D51*INTRO!$E$50,0)) -> 16807 | H51: 1 | I51: 0 | J51: 3 | K51: 0 | L51: 1 | M51: =IF(INTRO!$E$37="Endémique",IF($H51>0,IF($H51=4,"Inconnu",IF($H51=99,"Interrompu",$D51)),0),"Non requis") -> 30392 | O51: =IF(INTRO!$E$41="Endémique", IF(AND($J51>1,$J51<5), IF($J51=4, "Inconnu", E51+F51), 0),"Non requis") -> 12157 | P51: =IF(INTRO!$E$43="Endémique", IF(AND($K51>0,$K51<5), IF($K51=4,"Inconnu", IF($K51=1, $F51*0.33, IF($K51=2, $F51*0.5+$G51*0.2, SUM(F51:G51)))), 0),"Non requis") -> 0 | Q51: 1 | R51: 0 | S51: 2 | T51: 0 | Y51: 12814 | Z51: Sembé-Souanké
A52: =IF(INTRO!$E$33<>0,INTRO!$E$33, " ") -> Congo | E52: =IF(INTRO!$E$48="","",ROUND($D52*INTRO!$E$48,0)) -> 0 | F52: =IF(INTRO!$E$49="","",ROUND($D52*INTRO!$E$49,0)) -> 0 | G52: =IF(INTRO!$E$50="","",ROUND($D52*INTRO!$E$50,0)) -> 0 | M52: =IF(INTRO!$E$37="Endémique",IF($H52>0,IF($H52=4,"Inconnu",IF($H52=99,"Interrompu",$D52)),0),"Non requis") -> 0 | O52: =IF(INTRO!$E$41="Endémique", IF(AND($J52>1,$J52<5), IF($J52=4, "Inconnu", E52+F52), 0),"Non requis") -> 0 | P52: =IF(INTRO!$E$43="Endémique", IF(AND($K52>0,$K52<5), IF($K52=4,"Inconnu", IF($K52=1, $F52*0.33, IF($K52=2, $F52*0.5+$G52*0.2, SUM(F52:G52)))), 0),"Non requis") -> 0
A53: =IF(INTRO!$E$33<>0,INTRO!$E$33, " ") -> Congo | E53: =IF(INTRO!$E$48="","",ROUND($D53*INTRO!$E$48,0)) -> 0 | F53: =IF(INTRO!$E$49="","",ROUND($D53*INTRO!$E$49,0)) -> 0 | G53: =IF(INTRO!$E$50="","",ROUND($D53*INTRO!$E$50,0)) -> 0 | M53: =IF(INTRO!$E$37="Endémique",IF($H53>0,IF($H53=4,"Inconnu",IF($H53=99,"Interrompu",$D53)),0),"Non requis") -> 0 | O53: =IF(INTRO!$E$41="Endémique", IF(AND($J53>1,$J53<5), IF($J53=4, "Inconnu", E53+F53), 0),"Non requis") -> 0 | P53: =IF(INTRO!$E$43="Endémique", IF(AND($K53>0,$K53<5), IF($K53=4,"Inconnu", IF($K53=1, $F53*0.33, IF($K53=2, $F53*0.5+$G53*0.2, SUM(F53:G53)))), 0),"Non requis") -> 0

Sheet ALB_MBD
A1: Albendazole (ALB) et Mebendazole (MBD)
A2: Structure administrative, population ciblée par groupe d'âge, plan de traitement et information sur les comprimés
A4: TOTAL | D4: =SUM(D$9:D$1000) -> 748814 | E4: =SUM(E$9:E$1000) -> 1123218 | F4: =SUM(F$9:F$1000) -> 1872032 | I4: =SUM(I$9:I$1000) -> 266813 | J4: =SUM(J$9:J$1000) -> 516434 | M4: =SUM(M$9:M$1000) -> 441099 | N4: =SUM(N$9:N$1000) -> 525751 | O4: =SUM(O$9:O$1000) -> 0 | P4: =SUM(P$9:P$1000) -> 966850 | Q4: =SUM(Q$9:Q$1000) -> 0 | R4: =SUM(R$9:R$1000) -> 0 | S4: 0 | T4: 0 | U4: 0 | V4: 1299681 | W4: 6506 | X4: 0 | Y4: 525751 | Z4: 2638 | AA4: 0 | AB4: 0 | AC4: 0
A6: Structure administrative du pays | D6: Population nécessitant un traitement avec ALB/MBD | G6: Plan de traitement | I6: Population couverte par le PEFL avec ALB | J6: Endémique à la Loase | L6: Médicament choisi pour le traitement des STH | M6: Population cible | U6: Albendazole (ALB) | AA6: Mebendazole (MBD)
A7: Pays | B7: Région/Département | C7: District | D7: EAPréS | E7: EAS | F7: Total | G7: FL | H7: STH | J7: Population | K7: Tours planifiés | M7: STH (ALB) | Q7: STH (MBD) | U7: Reste en stock (FL) | V7: Comprimés devant être fournis (FL) | W7: Flacons (400mg) 200 comprimés (FL) | X7: Reste en stock (STH) | Y7: Comprimés devant être fournis pour EAS (STH) | Z7: Flacons (400mg) 200 comprimés (STH) | AA7: Reste en stock | AB7: Comprimés devant être fournis pour EAS | AC7: Flacons (500mg) 150 comprimés
M8: EAPréS | N8: EAS | O8: Autres | P8: Total | Q8: EAPréS | R8: EAS | S8: Autres | T8: Total
A9: =IF(AND(INTRO!$E$37="Non endémique",INTRO!$E$41="Non endémique")," ",IF(COUNTRY_INFO!A9=0," ",COUNTRY_INFO!A9)) -> Congo | B9: =IF(AND(INTRO!$E$37="Non endémique",INTRO!$E$41="Non endémique")," ",IF(COUNTRY_INFO!B9=0," ",COUNTRY_INFO!B9)) -> Bouenza | C9: =IF(AND(INTRO!$E$37="Non endémique",INTRO!$E$41="Non endémique")," ",IF(COUNTRY_INFO!C9=0," ",COUNTRY_INFO!C9)) -> Loudima | D9: =IF(AND(INTRO!$E$37="Non endémique",INTRO!$E$41="Non endémique"),0,IF(AND(OR(COUNTRY_INFO!$H9=0,COUNTRY_INFO!$H9=4,COUNTRY_INFO!$H9=99),OR(COUNTRY_INFO!$J9=0,COUNTRY_INFO!$J9=4)),0,COUNTRY_INFO!$E9)) -> 23934 | E9: =IF(AND(INTRO!$E$37="Non endémique",INTRO!$E$41="Non endémique"),0,IF(AND(OR(COUNTRY_INFO!$H9=0,COUNTRY_INFO!$H9=4,COUNTRY_INFO!$H9=99),OR(COUNTRY_INFO!$J9=0,COUNTRY_INFO!$J9=4)),0,COUNTRY_INFO!$F9)) -> 35901 | F9: =SUM(D9:E9) -> 59835 | G9: =IF(AND(INTRO!$E$37="Non endémique",INTRO!$E$41="Non endémique"),0,COUNTRY_INFO!Q9) -> 0 | H9: =IF(AND(INTRO!$E$37="Non endémique",INTRO!$E$41="Non endémique"),0,COUNTRY_INFO!S9) -> 1 | I9: =IF($G9=1,IVM!$G9,0) -> 0 | J9: =IF($G9=0, " ", IF(COUNTRY_INFO!$H9=1, IF(COUNTRY_INFO!$L9=1, 0," ")," ")) ->  | L9: ALB | M9: =IF($L9="ALB", IF(INTRO!$E$39="Non endémique",IF($H9<>0,$D9*($H9-$G9),0),$D9*$H9), 0) -> 23934 | N9: =IF($L9="ALB", IF($H9<>0, IF($I9=0, $E9*$H9, $E9*($H9-$G9)),0), 0) -> 35901 | P9: =SUM(M9:O9) -> 59835 | Q9: =IF($L9="MBD", IF(INTRO!$E$39="Non endémique",IF($H9<>0,$D9*($H9-$G9),0),$D9*$H9),0) -> 0 | R9: =IF($L9="MBD", IF($H9<>0,IF($I9=0, $E9*$H9, $E9*($H9-$G9)),0), 0 ) -> 0 | T9: =SUM(Q9:S9) -> 0 | V9: =IF($J9<>" ", IF(($I9+$J9*$K9)>$U9, ($I9+$J9*$K9)-$U9,0), IF($I9>$U9, $I9-$U9, 0)) -> 0 | W9: =IF($J9<>" ", ROUNDUP(($I9+$J9*$K9)/200,0), ROUNDUP($I9/200,0)) -> 0 | Y9: =IF($N9>$X9,$N9-$X9,0) -> 35901 | Z9: =ROUNDUP($N9/200,0) -> 180 | AB9: =IF($R9>$AA9,$R9-$AA9,0) -> 0 | AC9: =ROUNDUP($R9/150,0) -> 0
A10: =IF(AND(INTRO!$E$37="Non endémique",INTRO!$E$41="Non endémique")," ",IF(COUNTRY_INFO!A10=0," ",COUNTRY_INFO!A10)) -> Congo | B10: =IF(AND(INTRO!$E$37="Non endémique",INTRO!$E$41="Non endémique")," ",IF(COUNTRY_INFO!B10=0," ",COUNTRY_INFO!B10)) -> Bouenza | C10: =IF(AND(INTRO!$E$37="Non endémique",INTRO!$E$41="Non endémique")," ",IF(COUNTRY_INFO!C10=0," ",COUNTRY_INFO!C10)) -> Loutété | D10: =IF(AND(INTRO!$E$37="Non endémique",INTRO!$E$41="Non endémique"),0,IF(AND(OR(COUNTRY_INFO!$H10=0,COUNTRY_INFO!$H10=4,COUNTRY_INFO!$H10=99),OR(COUNTRY_INFO!$J10=0,COUNTRY_INFO!$J10=4)),0,COUNTRY_INFO!$E10)) -> 9024 | E10: =IF(AND(INTRO!$E$37="Non endémique",INTRO!$E$41="Non endémique"),0,IF(AND(OR(COUNTRY_INFO!$H10=0,COUNTRY_INFO!$H10=4,COUNTRY_INFO!$H10=99),OR(COUNTRY_INFO!$J10=0,COUNTRY_INFO!$J10=4)),0,COUNTRY_INFO!$F10)) -> 13535 | F10: 22559 | G10: =IF(AND(INTRO!$E$37="Non endémique",INTRO!$E$41="Non endémique"),0,COUNTRY_INFO!Q10) -> 1 | H10: =IF(AND(INTRO!$E$37="Non endémique",INTRO!$E$41="Non endémique"),0,COUNTRY_INFO!S10) -> 1 | I10: =IF($G10=1,IVM!$G10,0) -> 41317 | J10: 3406 | K10: 2 | L10: ALB | M10: =IF($L10="ALB", IF(INTRO!$E$39="Non endémique",IF($H10<>0,$D10*($H10-$G10),0),$D10*$H10), 0) -> 9024 | N10: 0 | P10: 9024 | Q10: =IF($L10="MBD", IF(INTRO!$E$39="Non endémique",IF($H10<>0,$D10*($H10-$G10),0),$D10*$H10),0) -> 0 | R10: 0 | T10: 0 | V10: 48129 | W10: 241 | Y10: 0 | Z10: 0 | AB10: 0 | AC10: 0
A11: =IF(AND(INTRO!$E$37="Non endémique",INTRO!$E$41="Non endémique")," ",IF(COUNTRY_INFO!A11=0," ",COUNTRY_INFO!A11)) -> Congo | B11: =IF(AND(INTRO!$E$37="Non endémique",INTRO!$E$41="Non endémique")," ",IF(COUNTRY_INFO!B11=0," ",COUNTRY_INFO!B11)) -> Bouenza | C11: =IF(AND(INTRO!$E$37="Non endémique",INTRO!$E$41="Non endémique")," ",IF(COUNTRY_INFO!C11=0," ",COUNTRY_INFO!C11)) -> Madingou | D11: =IF(AND(INTRO!$E$37="Non endémique",INTRO!$E$41="Non endémique"),0,IF(AND(OR(COUNTRY_INFO!$H11=0,COUNTRY_INFO!$H11=4,COUNTRY_INFO!$H11=99),OR(COUNTRY_INFO!$J11=0,COUNTRY_INFO!$J11=4)),0,COUNTRY_INFO!$E11)) -> 17766 | E11: =IF(AND(INTRO!$E$37="Non endémique",INTRO!$E$41="Non endémique"),0,IF(AND(OR(COUNTRY_INFO!$H11=0,COUNTRY_INFO!$H11=4,COUNTRY_INFO!$H11=99),OR(COUNTRY_INFO!$J11=0,COUNTRY_INFO!$J11=4)),0,COUNTRY_INFO!$F11)) -> 26649 | F11: 44415 | G11: =IF(AND(INTRO!$E$37="Non endémique",INTRO!$E$41="Non endémique"),0,COUNTRY_INFO!Q11) -> 1 | H11: =IF(AND(INTRO!$E$37="Non endémique",INTRO!$E$41="Non endémique"),0,COUNTRY_INFO!S11) -> 1 | I11: =IF($G11=1,IVM!$G11,0) -> 68988 | J11: 19064 | K11: 2 | L11: ALB | M11: =IF($L11="ALB", IF(INTRO!$E$39="Non endémique",IF($H11<>0,$D11*($H11-$G11),0),$D11*$H11), 0) -> 17766 | N11: 0 | P11: 17766 | Q11: =IF($L11="MBD", IF(INTRO!$E$39="Non endémique",IF($H11<>0,$D11*($H11-$G11),0),$D11*$H11),0) -> 0 | R11: 0 | T11: 0 | V11: 107116 | W11: 536 | Y11: 0 | Z11: 0 | AB11: 0 | AC11: 0
A12: =IF(AND(INTRO!$E$37="Non endémique",INTRO!$E$41="Non endémique")," ",IF(COUNTRY_INFO!A12=0," ",COUNTRY_INFO!A12)) -> Congo | B12: =IF(AND(INTRO!$E$37="Non endémique",INTRO!$E$41="Non endémique")," ",IF(COUNTRY_INFO!B12=0," ",COUNTRY_INFO!B12)) -> Bouenza | C12: =IF(AND(INTRO!$E$37="Non endémique",INTRO!$E$41="Non endémique")," ",IF(COUNTRY_INFO!C12=0," ",COUNTRY_INFO!C12)) -> Mouyondzi | D12: =IF(AND(INTRO!$E$37="Non endémique",INTRO!$E$41="Non endémique"),0,IF(AND(OR(COUNTRY_INFO!$H12=0,COUNTRY_INFO!$H12=4,COUNTRY_INFO!$H12=99),OR(COUNTRY_INFO!$J12=0,COUNTRY_INFO!$J12=4)),0,COUNTRY_INFO!$E12)) -> 12228 | E12: =IF(AND(INTRO!$E$37="Non endémique",INTRO!$E$41="Non endémique"),0,IF(AND(OR(COUNTRY_INFO!$H12=0,COUNTRY_INFO!$H12=4,COUNTRY_INFO!$H12=99),OR(COUNTRY_INFO!$J12=0,COUNTRY_INFO!$J12=4)),0,COUNTRY_INFO!$F12)) -> 18342 | F12: 30570 | G12: =IF(AND(INTRO!$E$37="Non endémique",INTRO!$E$41="Non endémique"),0,COUNTRY_INFO!Q12) -> 1 | H12: =IF(AND(INTRO!$E$37="Non endémique",INTRO!$E$41="Non endémique"),0,COUNTRY_INFO!S12) -> 2 | I12: =IF($G12=1,IVM!$G12,0) -> 52745 | J12: 7861 | K12: 2 | L12: ALB | M12: =IF($L12="ALB", IF(INTRO!$E$39="Non endémique",IF($H12<>0,$D12*($H12-$G12),0),$D12*$H12), 0) -> 24456 | N12: 18342 | P12: 42798 | Q12: =IF($L12="MBD", IF(INTRO!$E$39="Non endémique",IF($H12<>0,$D12*($H12-$G12),0),$D12*$H12),0) -> 0 | R12: 0 | T12: 0 | V12: 68467 | W12: 343 | Y12: 18342 | Z12: 92 | AB12: 0 | AC12: 0
A13: =IF(AND(INTRO!$E$37="Non endémique",INTRO!$E$41="Non endémique")," ",IF(COUNTRY_INFO!A13=0," ",COUNTRY_INFO!A13)) -> Congo | B13: =IF(AND(INTRO!$E$37="Non endémique",INTRO!$E$41="Non endémique")," ",IF(COUNTRY_INFO!B13=0," ",COUNTRY_INFO!B13)) -> Brazzaville | C13: =IF(AND(INTRO!$E$37="Non endémique",INTRO!$E$41="Non endémique")," ",IF(COUNTRY_INFO!C13=0," ",COUNTRY_INFO!C13)) -> Bacongo | D13: =IF(AND(INTRO!$E$37="Non endémique",INTRO!$E$41="Non endémique"),0,IF(AND(OR(COUNTRY_INFO!$H13=0,COUNTRY_INFO!$H13=4,COUNTRY_INFO!$H13=99),OR(COUNTRY_INFO!$J13=0,COUNTRY_INFO!$J13=4)),0,COUNTRY_INFO!$E13)) -> 20140 | E13: =IF(AND(INTRO!$E$37="Non endémique",INTRO!$E$41="Non endémique"),0,IF(AND(OR(COUNTRY_INFO!$H13=0,COUNTRY_INFO!$H13=4,COUNTRY_INFO!$H13=99),OR(COUNTRY_INFO!$J13=0,COUNTRY_INFO!$J13=4)),0,COUNTRY_INFO!$F13)) -> 30211 | F13: 50351 | G13: =IF(AND(INTRO!$E$37="Non endémique",INTRO!$E$41="Non endémique"),0,COUNTRY_INFO!Q13) -> 0 | H13: =IF(AND(INTRO!$E$37="Non endémique",INTRO!$E$41="Non endémique"),0,COUNTRY_INFO!S13) -> 0 | I13: =IF($G13=1,IVM!$G13,0) -> 0 | J13: =IF($G13=0, " ", IF(COUNTRY_INFO!$H13=1, IF(COUNTRY_INFO!$L13=1, 0," ")," ")) ->  | L13: ALB | M13: =IF($L13="ALB", IF(INTRO!$E$39="Non endémique",IF($H13<>0,$D13*($H13-$G13),0),$D13*$H13), 0) -> 0 | N13: 0 | P13: 0 | Q13: =IF($L13="MBD", IF(INTRO!$E$39="Non endémique",IF($H13<>0,$D13*($H13-$G13),0),$D13*$H13),0) -> 0 | R13: 0 | T13: 0 | V13: 0 | W13: 0 | Y13: 0 | Z13: 0 | AB13: 0 | AC13: 0
A14: =IF(AND(INTRO!$E$37="Non endémique",INTRO!$E$41="Non endémique")," ",IF(COUNTRY_INFO!A14=0," ",COUNTRY_INFO!A14)) -> Congo | B14: =IF(AND(INTRO!$E$37="Non endémique",INTRO!$E$41="Non endémique")," ",IF(COUNTRY_INFO!B14=0," ",COUNTRY_INFO!B14)) -> Brazzaville | C14: =IF(AND(INTRO!$E$37="Non endémique",INTRO!$E$41="Non endémique")," ",IF(COUNTRY_INFO!C14=0," ",COUNTRY_INFO!C14)) -> Makélékélé | D14: =IF(AND(INTRO!$E$37="Non endémique",INTRO!$E$41="Non endémique"),0,IF(AND(OR(COUNTRY_INFO!$H14=0,COUNTRY_INFO!$H14=4,COUNTRY_INFO!$H14=99),OR(COUNTRY_INFO!$J14=0,COUNTRY_INFO!$J14=4)),0,COUNTRY_INFO!$E14)) -> 35990 | E14: =IF(AND(INTRO!$E$37="Non endémique",INTRO!$E$41="Non endémique"),0,IF(AND(OR(COUNTRY_INFO!$H14=0,COUNTRY_INFO!$H14=4,COUNTRY_INFO!$H14=99),OR(COUNTRY_INFO!$J14=0,COUNTRY_INFO!$J14=4)),0,COUNTRY_INFO!$F14)) -> 53986 | F14: 89976 | G14: =IF(AND(INTRO!$E$37="Non endémique",INTRO!$E$41="Non endémique"),0,COUNTRY_INFO!Q14) -> 0 | H14: =IF(AND(INTRO!$E$37="Non endémique",INTRO!$E$41="Non endémique"),0,COUNTRY_INFO!S14) -> 0 | I14: =IF($G14=1,IVM!$G14,0) -> 0 | J14: =IF($G14=0, " ", IF(COUNTRY_INFO!$H14=1, IF(COUNTRY_INFO!$L14=1, 0," ")," ")) ->  | L14: ALB | M14: =IF($L14="ALB", IF(INTRO!$E$39="Non endémique",IF($H14<>0,$D14*($H14-$G14),0),$D14*$H14), 0) -> 0 | N14: 0 | P14: 0 | Q14: =IF($L14="MBD", IF(INTRO!$E$39="Non endémique",IF($H14<>0,$D14*($H14-$G14),0),$D14*$H14),0) -> 0 | R14: 0 | T14: 0 | V14: 0 | W14: 0 | Y14: 0 | Z14: 0 | AB14: 0 | AC14: 0
A15: =IF(AND(INTRO!$E$37="Non endémique",INTRO!$E$41="Non endémique")," ",IF(COUNTRY_INFO!A15=0," ",COUNTRY_INFO!A15)) -> Congo | B15: =IF(AND(INTRO!$E$37="Non endémique",INTRO!$E$41="Non endémique")," ",IF(COUNTRY_INFO!B15=0," ",COUNTRY_INFO!B15)) -> Brazzaville | C15: =IF(AND(INTRO!$E$37="Non endémique",INTRO!$E$41="Non endémique")," ",IF(COUNTRY_INFO!C15=0," ",COUNTRY_INFO!C15)) -> Mfilou | D15: =IF(AND(INTRO!$E$37="Non endémique",INTRO!$E$41="Non endémique"),0,IF(AND(OR(COUNTRY_INFO!$H15=0,COUNTRY_INFO!$H15=4,COUNTRY_INFO!$H15=99),OR(COUNTRY_INFO!$J15=0,COUNTRY_INFO!$J15=4)),0,COUNTRY_INFO!$E15)) -> 40090 | E15: =IF(AND(INTRO!$E$37="Non endémique",INTRO!$E$41="Non endémique"),0,IF(AND(OR(COUNTRY_INFO!$H15=0,COUNTRY_INFO!$H15=4,COUNTRY_INFO!$H15=99),OR(COUNTRY_INFO!$J15=0,COUNTRY_INFO!$J15=4)),0,COUNTRY_INFO!$F15)) -> 60135 | F15: 100225 | G15: =IF(AND(INTRO!$E$37="Non endémique",INTRO!$E$41="Non endémique"),0,COUNTRY_INFO!Q15) -> 0 | H15: =IF(AND(INTRO!$E$37="Non endémique",INTRO!$E$41="Non endémique"),0,COUNTRY_INFO!S15) -> 0 | I15: =IF($G15=1,IVM!$G15,0) -> 0 | J15: =IF($G15=0, " ", IF(COUNTRY_INFO!$H15=1, IF(COUNTRY_INFO!$L15=1, 0," ")," ")) ->  | L15: ALB | M15: =IF($L15="ALB", IF(INTRO!$E$39="Non endémique",IF($H15<>0,$D15*($H15-$G15),0),$D15*$H15), 0) -> 0 | N15: 0 | P15: 0 | Q15: =IF($L15="MBD", IF(INTRO!$E$39="Non endémique",IF($H15<>0,$D15*($H15-$G15),0),$D15*$H15),0) -> 0 | R15: 0 | T15: 0 | V15: 0 | W15: 0 | Y15: 0 | Z15: 0 | AB15: 0 | AC15: 0
A16: =IF(AND(INTRO!$E$37="Non endémique",INTRO!$E$41="Non endémique")," ",IF(COUNTRY_INFO!A16=0," ",COUNTRY_INFO!A16)) -> Congo | B16: =IF(AND(INTRO!$E$37="Non endémique",INTRO!$E$41="Non endémique")," ",IF(COUNTRY_INFO!B16=0," ",COUNTRY_INFO!B16)) -> Brazzaville | C16: =IF(AND(INTRO!$E$37="Non endémique",INTRO!$E$41="Non endémique")," ",IF(COUNTRY_INFO!C16=0," ",COUNTRY_INFO!C16)) -> Moungali | D16: =IF(AND(INTRO!$E$37="Non endémique",INTRO!$E$41="Non endémique"),0,IF(AND(OR(COUNTRY_INFO!$H16=0,COUNTRY_INFO!$H16=4,COUNTRY_INFO!$H16=99),OR(COUNTRY_INFO!$J16=0,COUNTRY_INFO!$J16=4)),0,COUNTRY_INFO!$E16)) -> 34012 | E16: =IF(AND(INTRO!$E$37="Non endémique",INTRO!$E$41="Non endémique"),0,IF(AND(OR(COUNTRY_INFO!$H16=0,COUNTRY_INFO!$H16=4,COUNTRY_INFO!$H16=99),OR(COUNTRY_INFO!$J16=0,COUNTRY_INFO!$J16=4)),0,COUNTRY_INFO!$F16)) -> 51018 | F16: 85030 | G16: =IF(AND(INTRO!$E$37="Non endémique",INTRO!$E$41="Non endémique"),0,COUNTRY_INFO!Q16) -> 0 | H16: =IF(AND(INTRO!$E$37="Non endémique",INTRO!$E$41="Non endémique"),0,COUNTRY_INFO!S16) -> 0 | I16: =IF($G16=1,IVM!$G16,0) -> 0 | J16: =IF($G16=0, " ", IF(COUNTRY_INFO!$H16=1, IF(COUNTRY_INFO!$L16=1, 0," ")," ")) ->  | L16: ALB | M16: =IF($L16="ALB", IF(INTRO!$E$39="Non endémique",IF($H16<>0,$D16*($H16-$G16),0),$D16*$H16), 0) -> 0 | N16: 0 | P16: 0 | Q16: =IF($L16="MBD", IF(INTRO!$E$39="Non endémique",IF($H16<>0,$D16*($H16-$G16),0),$D16*$H16),0) -> 0 | R16: 0 | T16: 0 | V16: 0 | W16: 0 | Y16: 0 | Z16: 0 | AB16: 0 | AC16: 0
A17: =IF(AND(INTRO!$E$37="Non endémique",INTRO!$E$41="Non endémique")," ",IF(COUNTRY_INFO!A17=0," ",COUNTRY_INFO!A17)) -> Congo | B17: =IF(AND(INTRO!$E$37="Non endémique",INTRO!$E$41="Non endémique")," ",IF(COUNTRY_INFO!B17=0," ",COUNTRY_INFO!B17)) -> Brazzaville | C17: =IF(AND(INTRO!$E$37="Non endémique",INTRO!$E$41="Non endémique")," ",IF(COUNTRY_INFO!C17=0," ",COUNTRY_INFO!C17)) -> Ouenzé | D17: =IF(AND(INTRO!$E$37="Non endémique",INTRO!$E$41="Non endémique"),0,IF(AND(OR(COUNTRY_INFO!$H17=0,COUNTRY_INFO!$H17=4,COUNTRY_INFO!$H17=99),OR(COUNTRY_INFO!$J17=0,COUNTRY_INFO!$J17=4)),0,COUNTRY_INFO!$E17)) -> 37100 | E17: =IF(AND(INTRO!$E$37="Non endémique",INTRO!$E$41="Non endémique"),0,IF(AND(OR(COUNTRY_INFO!$H17=0,COUNTRY_INFO!$H17=4,COUNTRY_INFO!$H17=99),OR(COUNTRY_INFO!$J17=0,COUNTRY_INFO!$J17=4)),0,COUNTRY_INFO!$F17)) -> 55650 | F17: 92750 | G17: =IF(AND(INTRO!$E$37="Non endémique",INTRO!$E$41="Non endémique"),0,COUNTRY_INFO!Q17) -> 0 | H17: =IF(AND(INTRO!$E$37="Non endémique",INTRO!$E$41="Non endémique"),0,COUNTRY_INFO!S17) -> 0 | I17: =IF($G17=1,IVM!$G17,0) -> 0 | J17: =IF($G17=0, " ", IF(COUNTRY_INFO!$H17=1, IF(COUNTRY_INFO!$L17=1, 0," ")," ")) ->  | L17: ALB | M17: =IF($L17="ALB", IF(INTRO!$E$39="Non endémique",IF($H17<>0,$D17*($H17-$G17),0),$D17*$H17), 0) -> 0 | N17: 0 | P17: 0 | Q17: =IF($L17="MBD", IF(INTRO!$E$39="Non endémique",IF($H17<>0,$D17*($H17-$G17),0),$D17*$H17),0) -> 0 | R17: 0 | T17: 0 | V17: 0 | W17: 0 | Y17: 0 | Z17: 0 | AB17: 0 | AC17: 0
A18: =IF(AND(INTRO!$E$37="Non endémique",INTRO!$E$41="Non endémique")," ",IF(COUNTRY_INFO!A18=0," ",COUNTRY_INFO!A18)) -> Congo | B18: =IF(AND(INTRO!$E$37="Non endémique",INTRO!$E$41="Non endémique")," ",IF(COUNTRY_INFO!B18=0," ",COUNTRY_INFO!B18)) -> Brazzaville | C18: =IF(AND(INTRO!$E$37="Non endémique",INTRO!$E$41="Non endémique")," ",IF(COUNTRY_INFO!C18=0," ",COUNTRY_INFO!C18)) -> Poto-Poto | D18: =IF(AND(INTRO!$E$37="Non endémique",INTRO!$E$41="Non endémique"),0,IF(AND(OR(COUNTRY_INFO!$H18=0,COUNTRY_INFO!$H18=4,COUNTRY_INFO!$H18=99),OR(COUNTRY_INFO!$J18=0,COUNTRY_INFO!$J18=4)),0,COUNTRY_INFO!$E18)) -> 18966 | E18: =IF(AND(INTRO!$E$37="Non endémique",INTRO!$E$41="Non endémique"),0,IF(AND(OR(COUNTRY_INFO!$H18=0,COUNTRY_INFO!$H18=4,COUNTRY_INFO!$H18=99),OR(COUNTRY_INFO!$J18=0,COUNTRY_INFO!$J18=4)),0,COUNTRY_INFO!$F18)) -> 28449 | F18: 47415 | G18: =IF(AND(INTRO!$E$37="Non endémique",INTRO!$E$41="Non endémique"),0,COUNTRY_INFO!Q18) -> 0 | H18: =IF(AND(INTRO!$E$37="Non endémique",INTRO!$E$41="Non endémique"),0,COUNTRY_INFO!S18) -> 0 | I18: =IF($G18=1,IVM!$G18,0) -> 0 | J18: =IF($G18=0, " ", IF(COUNTRY_INFO!$H18=1, IF(COUNTRY_INFO!$L18=1, 0," ")," ")) ->  | L18: ALB | M18: =IF($L18="ALB", IF(INTRO!$E$39="Non endémique",IF($H18<>0,$D18*($H18-$G18),0),$D18*$H18), 0) -> 0 | N18: 0 | P18: 0 | Q18: =IF($L18="MBD", IF(INTRO!$E$39="Non endémique",IF($H18<>0,$D18*($H18-$G18),0),$D18*$H18),0) -> 0 | R18: 0 | T18: 0 | V18: 0 | W18: 0 | Y18: 0 | Z18: 0 | AB18: 0 | AC18: 0
A19: =IF(AND(INTRO!$E$37="Non endémique",INTRO!$E$41="Non endémique")," ",IF(COUNTRY_INFO!A19=0," ",COUNTRY_INFO!A19)) -> Congo | B19: =IF(AND(INTRO!$E$37="Non endémique",INTRO!$E$41="Non endémique")," ",IF(COUNTRY_INFO!B19=0," ",COUNTRY_INFO!B19)) -> Brazzaville | C19: =IF(AND(INTRO!$E$37="Non endémique",INTRO!$E$41="Non endémique")," ",IF(COUNTRY_INFO!C19=0," ",COUNTRY_INFO!C19)) -> Talangaî | D19: =IF(AND(INTRO!$E$37="Non endémique",INTRO!$E$41="Non endémique"),0,IF(AND(OR(COUNTRY_INFO!$H19=0,COUNTRY_INFO!$H19=4,COUNTRY_INFO!$H19=99),OR(COUNTRY_INFO!$J19=0,COUNTRY_INFO!$J19=4)),0,COUNTRY_INFO!$E19)) -> 44302 | E19: =IF(AND(INTRO!$E$37="Non endémique",INTRO!$E$41="Non endémique"),0,IF(AND(OR(COUNTRY_INFO!$H19=0,COUNTRY_INFO!$H19=4,COUNTRY_INFO!$H19=99),OR(COUNTRY_INFO!$J19=0,COUNTRY_INFO!$J19=4)),0,COUNTRY_INFO!$F19)) -> 66453 | F19: 110755 | G19: =IF(AND(INTRO!$E$37="Non endémique",INTRO!$E$41="Non endémique"),0,COUNTRY_INFO!Q19) -> 0 | H19: =IF(AND(INTRO!$E$37="Non endémique",INTRO!$E$41="Non endémique"),0,COUNTRY_INFO!S19) -> 0 | I19: =IF($G19=1,IVM!$G19,0) -> 0 | J19: =IF($G19=0, " ", IF(COUNTRY_INFO!$H19=1, IF(COUNTRY_INFO!$L19=1, 0," ")," ")) ->  | L19: ALB | M19: =IF($L19="ALB", IF(INTRO!$E$39="Non endémique",IF($H19<>0,$D19*($H19-$G19),0),$D19*$H19), 0) -> 0 | N19: 0 | P19: 0 | Q19: =IF($L19="MBD", IF(INTRO!$E$39="Non endémique",IF($H19<>0,$D19*($H19-$G19),0),$D19*$H19),0) -> 0 | R19: 0 | T19: 0 | V19: 0 | W19: 0 | Y19: 0 | Z19: 0 | AB19: 0 | AC19: 0
A20: =IF(AND(INTRO!$E$37="Non endémique",INTRO!$E$41="Non endémique")," ",IF(COUNTRY_INFO!A20=0," ",COUNTRY_INFO!A20)) -> Congo | B20: =IF(AND(INTRO!$E$37="Non endémique",INTRO!$E$41="Non endémique")," ",IF(COUNTRY_INFO!B20=0," ",COUNTRY_INFO!B20)) -> Brazzaville | C20: =IF(AND(INTRO!$E$37="Non endémique",INTRO!$E$41="Non endémique")," ",IF(COUNTRY_INFO!C20=0," ",COUNTRY_INFO!C20)) -> Madibou | D20: =IF(AND(INTRO!$E$37="Non endémique",INTRO!$E$41="Non endémique"),0,IF(AND(OR(COUNTRY_INFO!$H20=0,COUNTRY_INFO!$H20=4,COUNTRY_INFO!$H20=99),OR(COUNTRY_INFO!$J20=0,COUNTRY_INFO!$J20=4)),0,COUNTRY_INFO!$E20)) -> 24805 | E20: =IF(AND(INTRO!$E$37="Non endémique",INTRO!$E$41="Non endémique"),0,IF(AND(OR(COUNTRY_INFO!$H20=0,COUNTRY_INFO!$H20=4,COUNTRY_INFO!$H20=99),OR(COUNTRY_INFO!$J20=0,COUNTRY_INFO!$J20=4)),0,COUNTRY_INFO!$F20)) -> 37208 | F20: 62013 | G20: =IF(AND(INTRO!$E$37="Non endémique",INTRO!$E$41="Non endémique"),0,COUNTRY_INFO!Q20) -> 0 | H20: =IF(AND(INTRO!$E$37="Non endémique",INTRO!$E$41="Non endémique"),0,COUNTRY_INFO!S20) -> 0 | I20: =IF($G20=1,IVM!$G20,0) -> 0 | J20: =IF($G20=0, " ", IF(COUNTRY_INFO!$H20=1, IF(COUNTRY_INFO!$L20=1, 0," ")," ")) ->  | L20: ALB | M20: =IF($L20="ALB", IF(INTRO!$E$39="Non endémique",IF($H20<>0,$D20*($H20-$G20),0),$D20*$H20), 0) -> 0 | N20: 0 | P20: 0 | Q20: =IF($L20="MBD", IF(INTRO!$E$39="Non endémique",IF($H20<>0,$D20*($H20-$G20),0),$D20*$H20),0) -> 0 | R20: 0 | T20: 0 | V20: 0 | W20: 0 | Y20: 0 | Z20: 0 | AB20: 0 | AC20: 0
A21: =IF(AND(INTRO!$E$37="Non endémique",INTRO!$E$41="Non endémique")," ",IF(COUNTRY_INFO!A21=0," ",COUNTRY_INFO!A21)) -> Congo | B21: =IF(AND(INTRO!$E$37="Non endémique",INTRO!$E$41="Non endémique")," ",IF(COUNTRY_INFO!B21=0," ",COUNTRY_INFO!B21)) -> Brazzaville | C21: =IF(AND(INTRO!$E$37="Non endémique",INTRO!$E$41="Non endémique")," ",IF(COUNTRY_INFO!C21=0," ",COUNTRY_INFO!C21)) -> Djiri | D21: =IF(AND(INTRO!$E$37="Non endémique",INTRO!$E$41="Non endémique"),0,IF(AND(OR(COUNTRY_INFO!$H21=0,COUNTRY_INFO!$H21=4,COUNTRY_INFO!$H21=99),OR(COUNTRY_INFO!$J21=0,COUNTRY_INFO!$J21=4)),0,COUNTRY_INFO!$E21)) -> 24627 | E21: =IF(AND(INTRO!$E$37="Non endémique",INTRO!$E$41="Non endémique"),0,IF(AND(OR(COUNTRY_INFO!$H21=0,COUNTRY_INFO!$H21=4,COUNTRY_INFO!$H21=99),OR(COUNTRY_INFO!$J21=0,COUNTRY_INFO!$J21=4)),0,COUNTRY_INFO!$F21)) -> 36940 | F21: 61567 | G21: =IF(AND(INTRO!$E$37="Non endémique",INTRO!$E$41="Non endémique"),0,COUNTRY_INFO!Q21) -> 0 | H21: =IF(AND(INTRO!$E$37="Non endémique",INTRO!$E$41="Non endémique"),0,COUNTRY_INFO!S21) -> 0 | I21: =IF($G21=1,IVM!$G21,0) -> 0 | J21: =IF($G21=0, " ", IF(COUNTRY_INFO!$H21=1, IF(COUNTRY_INFO!$L21=1, 0," ")," ")) ->  | L21: ALB | M21: =IF($L21="ALB", IF(INTRO!$E$39="Non endémique",IF($H21<>0,$D21*($H21-$G21),0),$D21*$H21), 0) -> 0 | N21: 0 | P21: 0 | Q21: =IF($L21="MBD", IF(INTRO!$E$39="Non endémique",IF($H21<>0,$D21*($H21-$G21),0),$D21*$H21),0) -> 0 | R21: 0 | T21: 0 | V21: 0 | W21: 0 | Y21: 0 | Z21: 0 | AB21: 0 | AC21: 0
A22: =IF(AND(INTRO!$E$37="Non endémique",INTRO!$E$41="Non endémique")," ",IF(COUNTRY_INFO!A22=0," ",COUNTRY_INFO!A22)) -> Congo | B22: =IF(AND(INTRO!$E$37="Non endémique",INTRO!$E$41="Non endémique")," ",IF(COUNTRY_INFO!B22=0," ",COUNTRY_INFO!B22)) -> Cuvette | C22: =IF(AND(INTRO!$E$37="Non endémique",INTRO!$E$41="Non endémique")," ",IF(COUNTRY_INFO!C22=0," ",COUNTRY_INFO!C22)) -> Mossaka Loukoléla | D22: =IF(AND(INTRO!$E$37="Non endémique",INTRO!$E$41="Non endémique"),0,IF(AND(OR(COUNTRY_INFO!$H22=0,COUNTRY_INFO!$H22=4,COUNTRY_INFO!$H22=99),OR(COUNTRY_INFO!$J22=0,COUNTRY_INFO!$J22=4)),0,COUNTRY_INFO!$E22)) -> 9589 | E22: =IF(AND(INTRO!$E$37="Non endémique",INTRO!$E$41="Non endémique"),0,IF(AND(OR(COUNTRY_INFO!$H22=0,COUNTRY_INFO!$H22=4,COUNTRY_INFO!$H22=99),OR(COUNTRY_INFO!$J22=0,COUNTRY_INFO!$J22=4)),0,COUNTRY_INFO!$F22)) -> 14384 | F22: 23973 | G22: =IF(AND(INTRO!$E$37="Non endémique",INTRO!$E$41="Non endémique"),0,COUNTRY_INFO!Q22) -> 0 | H22: =IF(AND(INTRO!$E$37="Non endémique",INTRO!$E$41="Non endémique"),0,COUNTRY_INFO!S22) -> 1 | I22: =IF($G22=1,IVM!$G22,0) -> 0 | J22: =IF($G22=0, " ", IF(COUNTRY_INFO!$H22=1, IF(COUNTRY_INFO!$L22=1, 0," ")," ")) ->  | L22: ALB | M22: =IF($L22="ALB", IF(INTRO!$E$39="Non endémique",IF($H22<>0,$D22*($H22-$G22),0),$D22*$H22), 0) -> 9589 | N22: 14384 | P22: 23973 | Q22: =IF($L22="MBD", IF(INTRO!$E$39="Non endémique",IF($H22<>0,$D22*($H22-$G22),0),$D22*$H22),0) -> 0 | R22: 0 | T22: 0 | V22: 0 | W22: 0 | Y22: 14384 | Z22: 72 | AB22: 0 | AC22: 0
A23: =IF(AND(INTRO!$E$37="Non endémique",INTRO!$E$41="Non endémique")," ",IF(COUNTRY_INFO!A23=0," ",COUNTRY_INFO!A23)) -> Congo | B23: =IF(AND(INTRO!$E$37="Non endémique",INTRO!$E$41="Non endémique")," ",IF(COUNTRY_INFO!B23=0," ",COUNTRY_INFO!B23)) -> Cuvette | C23: =IF(AND(INTRO!$E$37="Non endémique",INTRO!$E$41="Non endémique")," ",IF(COUNTRY_INFO!C23=0," ",COUNTRY_INFO!C23)) -> Owando | D23: =IF(AND(INTRO!$E$37="Non endémique",INTRO!$E$41="Non endémique"),0,IF(AND(OR(COUNTRY_INFO!$H23=0,COUNTRY_INFO!$H23=4,COUNTRY_INFO!$H23=99),OR(COUNTRY_INFO!$J23=0,COUNTRY_INFO!$J23=4)),0,COUNTRY_INFO!$E23)) -> 14068 | E23: =IF(AND(INTRO!$E$37="Non endémique",INTRO!$E$41="Non endémique"),0,IF(AND(OR(COUNTRY_INFO!$H23=0,COUNTRY_INFO!$H23=4,COUNTRY_INFO!$H23=99),OR(COUNTRY_INFO!$J23=0,COUNTRY_INFO!$J23=4)),0,COUNTRY_INFO!$F23)) -> 21102 | F23: 35170 | G23: =IF(AND(INTRO!$E$37="Non endémique",INTRO!$E$41="Non endémique"),0,COUNTRY_INFO!Q23) -> 1 | H23: =IF(AND(INTRO!$E$37="Non endémique",INTRO!$E$41="Non endémique"),0,COUNTRY_INFO!S23) -> 0 | I23: =IF($G23=1,IVM!$G23,0) -> 0 | J23: 69725 | K23: 2 | L23: ALB | M23: =IF($L23="ALB", IF(INTRO!$E$39="Non endémique",IF($H23<>0,$D23*($H23-$G23),0),$D23*$H23), 0) -> 0 | N23: 0 | P23: 0 | Q23: =IF($L23="MBD", IF(INTRO!$E$39="Non endémique",IF($H23<>0,$D23*($H23-$G23),0),$D23*$H23),0) -> 0 | R23: 0 | T23: 0 | V23: 139450 | W23: 698 | Y23: 0 | Z23: 0 | AB23: 0 | AC23: 0
A24: =IF(AND(INTRO!$E$37="Non endémique",INTRO!$E$41="Non endémique")," ",IF(COUNTRY_INFO!A24=0," ",COUNTRY_INFO!A24)) -> Congo | B24: =IF(AND(INTRO!$E$37="Non endémique",INTRO!$E$41="Non endémique")," ",IF(COUNTRY_INFO!B24=0," ",COUNTRY_INFO!B24)) -> Cuvette | C24: =IF(AND(INTRO!$E$37="Non endémique",INTRO!$E$41="Non endémique")," ",IF(COUNTRY_INFO!C24=0," ",COUNTRY_INFO!C24)) -> Oyo | D24: =IF(AND(INTRO!$E$37="Non endémique",INTRO!$E$41="Non endémique"),0,IF(AND(OR(COUNTRY_INFO!$H24=0,COUNTRY_INFO!$H24=4,COUNTRY_INFO!$H24=99),OR(COUNTRY_INFO!$J24=0,COUNTRY_INFO!$J24=4)),0,COUNTRY_INFO!$E24)) -> 8140 | E24: =IF(AND(INTRO!$E$37="Non endémique",INTRO!$E$41="Non endémique"),0,IF(AND(OR(COUNTRY_INFO!$H24=0,COUNTRY_INFO!$H24=4,COUNTRY_INFO!$H24=99),OR(COUNTRY_INFO!$J24=0,COUNTRY_INFO!$J24=4)),0,COUNTRY_INFO!$F24)) -> 12210 | F24: 20350 | G24: =IF(AND(INTRO!$E$37="Non endémique",INTRO!$E$41="Non endémique"),0,COUNTRY_INFO!Q24) -> 0 | H24: =IF(AND(INTRO!$E$37="Non endémique",INTRO!$E$41="Non endémique"),0,COUNTRY_INFO!S24) -> 0 | I24: =IF($G24=1,IVM!$G24,0) -> 0 | J24: =IF($G24=0, " ", IF(COUNTRY_INFO!$H24=1, IF(COUNTRY_INFO!$L24=1, 0," ")," ")) ->  | L24: ALB | M24: =IF($L24="ALB", IF(INTRO!$E$39="Non endémique",IF($H24<>0,$D24*($H24-$G24),0),$D24*$H24), 0) -> 0 | N24: 0 | P24: 0 | Q24: =IF($L24="MBD", IF(INTRO!$E$39="Non endémique",IF($H24<>0,$D24*($H24-$G24),0),$D24*$H24),0) -> 0 | R24: 0 | T24: 0 | V24: 0 | W24: 0 | Y24: 0 | Z24: 0 | AB24: 0 | AC24: 0
A25: =IF(AND(INTRO!$E$37="Non endémique",INTRO!$E$41="Non endémique")," ",IF(COUNTRY_INFO!A25=0," ",COUNTRY_INFO!A25)) -> Congo | B25: =IF(AND(INTRO!$E$37="Non endémique",INTRO!$E$41="Non endémique")," ",IF(COUNTRY_INFO!B25=0," ",COUNTRY_INFO!B25)) -> Cuvette-Ouest | C25: =IF(AND(INTRO!$E$37="Non endémique",INTRO!$E$41="Non endémique")," ",IF(COUNTRY_INFO!C25=0," ",COUNTRY_INFO!C25)) -> Etoumbi | D25: =IF(AND(INTRO!$E$37="Non endémique",INTRO!$E$41="Non endémique"),0,IF(AND(OR(COUNTRY_INFO!$H25=0,COUNTRY_INFO!$H25=4,COUNTRY_INFO!$H25=99),OR(COUNTRY_INFO!$J25=0,COUNTRY_INFO!$J25=4)),0,COUNTRY_INFO!$E25)) -> 7079 | E25: =IF(AND(INTRO!$E$37="Non endémique",INTRO!$E$41="Non endémique"),0,IF(AND(OR(COUNTRY_INFO!$H25=0,COUNTRY_INFO!$H25=4,COUNTRY_INFO!$H25=99),OR(COUNTRY_INFO!$J25=0,COUNTRY_INFO!$J25=4)),0,COUNTRY_INFO!$F25)) -> 10619 | F25: 17698 | G25: =IF(AND(INTRO!$E$37="Non endémique",INTRO!$E$41="Non endémique"),0,COUNTRY_INFO!Q25) -> 1 | H25: =IF(AND(INTRO!$E$37="Non endémique",INTRO!$E$41="Non endémique"),0,COUNTRY_INFO!S25) -> 1 | I25: =IF($G25=1,IVM!$G25,0) -> 0 | J25: 35087 | K25: 2 | L25: ALB | M25: =IF($L25="ALB", IF(INTRO!$E$39="Non endémique",IF($H25<>0,$D25*($H25-$G25),0),$D25*$H25), 0) -> 7079 | N25: 10619 | P25: 17698 | Q25: =IF($L25="MBD", IF(INTRO!$E$39="Non endémique",IF($H25<>0,$D25*($H25-$G25),0),$D25*$H25),0) -> 0 | R25: 0 | T25: 0 | V25: 70174 | W25: 351 | Y25: 10619 | Z25: 54 | AB25: 0 | AC25: 0
A26: =IF(AND(INTRO!$E$37="Non endémique",INTRO!$E$41="Non endémique")," ",IF(COUNTRY_INFO!A26=0," ",COUNTRY_INFO!A26)) -> Congo | B26: =IF(AND(INTRO!$E$37="Non endémique",INTRO!$E$41="Non endémique")," ",IF(COUNTRY_INFO!B26=0," ",COUNTRY_INFO!B26)) -> Cuvette-Ouest | C26: =IF(AND(INTRO!$E$37="Non endémique",INTRO!$E$41="Non endémique")," ",IF(COUNTRY_INFO!C26=0," ",COUNTRY_INFO!C26)) -> Ewo | D26: =IF(AND(INTRO!$E$37="Non endémique",INTRO!$E$41="Non endémique"),0,IF(AND(OR(COUNTRY_INFO!$H26=0,COUNTRY_INFO!$H26=4,COUNTRY_INFO!$H26=99),OR(COUNTRY_INFO!$J26=0,COUNTRY_INFO!$J26=4)),0,COUNTRY_INFO!$E26)) -> 7789 | E26: =IF(AND(INTRO!$E$37="Non endémique",INTRO!$E$41="Non endémique"),0,IF(AND(OR(COUNTRY_INFO!$H26=0,COUNTRY_INFO!$H26=4,COUNTRY_INFO!$H26=99),OR(COUNTRY_INFO!$J26=0,COUNTRY_INFO!$J26=4)),0,COUNTRY_INFO!$F26)) -> 11684 | F26: 19473 | G26: =IF(AND(INTRO!$E$37="Non endémique",INTRO!$E$41="Non endémique"),0,COUNTRY_INFO!Q26) -> 1 | H26: =IF(AND(INTRO!$E$37="Non endémique",INTRO!$E$41="Non endémique"),0,COUNTRY_INFO!S26) -> 1 | I26: =IF($G26=1,IVM!$G26,0) -> 0 | J26: 38606 | K26: 2 | L26: ALB | M26: =IF($L26="ALB", IF(INTRO!$E$39="Non endémique",IF($H26<>0,$D26*($H26-$G26),0),$D26*$H26), 0) -> 7789 | N26: 11684 | P26: 19473 | Q26: =IF($L26="MBD", IF(INTRO!$E$39="Non endémique",IF($H26<>0,$D26*($H26-$G26),0),$D26*$H26),0) -> 0 | R26: 0 | T26: 0 | V26: 77212 | W26: 387 | Y26: 11684 | Z26: 59 | AB26: 0 | AC26: 0
A27: =IF(AND(INTRO!$E$37="Non endémique",INTRO!$E$41="Non endémique")," ",IF(COUNTRY_INFO!A27=0," ",COUNTRY_INFO!A27)) -> Congo | B27: =IF(AND(INTRO!$E$37="Non endémique",INTRO!$E$41="Non endémique")," ",IF(COUNTRY_INFO!B27=0," ",COUNTRY_INFO!B27)) -> Kouilou | C27: =IF(AND(INTRO!$E$37="Non endémique",INTRO!$E$41="Non endémique")," ",IF(COUNTRY_INFO!C27=0," ",COUNTRY_INFO!C27)) -> Hinda-Mvouti | D27: =IF(AND(INTRO!$E$37="Non endémique",INTRO!$E$41="Non endémique"),0,IF(AND(OR(COUNTRY_INFO!$H27=0,COUNTRY_INFO!$H27=4,COUNTRY_INFO!$H27=99),OR(COUNTRY_INFO!$J27=0,COUNTRY_INFO!$J27=4)),0,COUNTRY_INFO!$E27)) -> 13799 | E27: =IF(AND(INTRO!$E$37="Non endémique",INTRO!$E$41="Non endémique"),0,IF(AND(OR(COUNTRY_INFO!$H27=0,COUNTRY_INFO!$H27=4,COUNTRY_INFO!$H27=99),OR(COUNTRY_INFO!$J27=0,COUNTRY_INFO!$J27=4)),0,COUNTRY_INFO!$F27)) -> 20699 | F27: 34498 | G27: =IF(AND(INTRO!$E$37="Non endémique",INTRO!$E$41="Non endémique"),0,COUNTRY_INFO!Q27) -> 0 | H27: =IF(AND(INTRO!$E$37="Non endémique",INTRO!$E$41="Non endémique"),0,COUNTRY_INFO!S27) -> 2 | I27: =IF($G27=1,IVM!$G27,0) -> 0 | J27: =IF($G27=0, " ", IF(COUNTRY_INFO!$H27=1, IF(COUNTRY_INFO!$L27=1, 0," ")," ")) ->  | L27: ALB | M27: =IF($L27="ALB", IF(INTRO!$E$39="Non endémique",IF($H27<>0,$D27*($H27-$G27),0),$D27*$H27), 0) -> 27598 | N27: 41398 | P27: 68996 | Q27: =IF($L27="MBD", IF(INTRO!$E$39="Non endémique",IF($H27<>0,$D27*($H27-$G27),0),$D27*$H27),0) -> 0 | R27: 0 | T27: 0 | V27: 0 | W27: 0 | Y27: 41398 | Z27: 207 | AB27: 0 | AC27: 0
A28: =IF(AND(INTRO!$E$37="Non endémique",INTRO!$E$41="Non endémique")," ",IF(COUNTRY_INFO!A28=0," ",COUNTRY_INFO!A28)) -> Congo | B28: =IF(AND(INTRO!$E$37="Non endémique",INTRO!$E$41="Non endémique")," ",IF(COUNTRY_INFO!B28=0," ",COUNTRY_INFO!B28)) -> Kouilou | C28: =IF(AND(INTRO!$E$37="Non endémique",INTRO!$E$41="Non endémique")," ",IF(COUNTRY_INFO!C28=0," ",COUNTRY_INFO!C28)) -> Madingo Kayes | D28: =IF(AND(INTRO!$E$37="Non endémique",INTRO!$E$41="Non endémique"),0,IF(AND(OR(COUNTRY_INFO!$H28=0,COUNTRY_INFO!$H28=4,COUNTRY_INFO!$H28=99),OR(COUNTRY_INFO!$J28=0,COUNTRY_INFO!$J28=4)),0,COUNTRY_INFO!$E28)) -> 4938 | E28: =IF(AND(INTRO!$E$37="Non endémique",INTRO!$E$41="Non endémique"),0,IF(AND(OR(COUNTRY_INFO!$H28=0,COUNTRY_INFO!$H28=4,COUNTRY_INFO!$H28=99),OR(COUNTRY_INFO!$J28=0,COUNTRY_INFO!$J28=4)),0,COUNTRY_INFO!$F28)) -> 7407 | F28: 12345 | G28: =IF(AND(INTRO!$E$37="Non endémique",INTRO!$E$41="Non endémique"),0,COUNTRY_INFO!Q28) -> 0 | H28: =IF(AND(INTRO!$E$37="Non endémique",INTRO!$E$41="Non endémique"),0,COUNTRY_INFO!S28) -> 2 | I28: =IF($G28=1,IVM!$G28,0) -> 0 | J28: =IF($G28=0, " ", IF(COUNTRY_INFO!$H28=1, IF(COUNTRY_INFO!$L28=1, 0," ")," ")) ->  | L28: ALB | M28: =IF($L28="ALB", IF(INTRO!$E$39="Non endémique",IF($H28<>0,$D28*($H28-$G28),0),$D28*$H28), 0) -> 9876 | N28: 14814 | P28: 24690 | Q28: =IF($L28="MBD", IF(INTRO!$E$39="Non endémique",IF($H28<>0,$D28*($H28-$G28),0),$D28*$H28),0) -> 0 | R28: 0 | T28: 0 | V28: 0 | W28: 0 | Y28: 14814 | Z28: 75 | AB28: 0 | AC28: 0
A29: =IF(AND(INTRO!$E$37="Non endémique",INTRO!$E$41="Non endémique")," ",IF(COUNTRY_INFO!A29=0," ",COUNTRY_INFO!A29)) -> Congo | B29: =IF(AND(INTRO!$E$37="Non endémique",INTRO!$E$41="Non endémique")," ",IF(COUNTRY_INFO!B29=0," ",COUNTRY_INFO!B29)) -> Lékoumou | C29: =IF(AND(INTRO!$E$37="Non endémique",INTRO!$E$41="Non endémique")," ",IF(COUNTRY_INFO!C29=0," ",COUNTRY_INFO!C29)) -> Sibiti | D29: =IF(AND(INTRO!$E$37="Non endémique",INTRO!$E$41="Non endémique"),0,IF(AND(OR(COUNTRY_INFO!$H29=0,COUNTRY_INFO!$H29=4,COUNTRY_INFO!$H29=99),OR(COUNTRY_INFO!$J29=0,COUNTRY_INFO!$J29=4)),0,COUNTRY_INFO!$E29)) -> 15247 | E29: =IF(AND(INTRO!$E$37="Non endémique",INTRO!$E$41="Non endémique"),0,IF(AND(OR(COUNTRY_INFO!$H29=0,COUNTRY_INFO!$H29=4,COUNTRY_INFO!$H29=99),OR(COUNTRY_INFO!$J29=0,COUNTRY_INFO!$J29=4)),0,COUNTRY_INFO!$F29)) -> 22870 | F29: 38117 | G29: =IF(AND(INTRO!$E$37="Non endémique",INTRO!$E$41="Non endémique"),0,COUNTRY_INFO!Q29) -> 0 | H29: =IF(AND(INTRO!$E$37="Non endémique",INTRO!$E$41="Non endémique"),0,COUNTRY_INFO!S29) -> 2 | I29: =IF($G29=1,IVM!$G29,0) -> 0 | J29: =IF($G29=0, " ", IF(COUNTRY_INFO!$H29=1, IF(COUNTRY_INFO!$L29=1, 0," ")," ")) ->  | L29: ALB | M29: =IF($L29="ALB", IF(INTRO!$E$39="Non endémique",IF($H29<>0,$D29*($H29-$G29),0),$D29*$H29), 0) -> 30494 | N29: 45740 | P29: 76234 | Q29: =IF($L29="MBD", IF(INTRO!$E$39="Non endémique",IF($H29<>0,$D29*($H29-$G29),0),$D29*$H29),0) -> 0 | R29: 0 | T29: 0 | V29: 0 | W29: 0 | Y29: 45740 | Z29: 229 | AB29: 0 | AC29: 0
A30: =IF(AND(INTRO!$E$37="Non endémique",INTRO!$E$41="Non endémique")," ",IF(COUNTRY_INFO!A30=0," ",COUNTRY_INFO!A30)) -> Congo | B30: =IF(AND(INTRO!$E$37="Non endémique",INTRO!$E$41="Non endémique")," ",IF(COUNTRY_INFO!B30=0," ",COUNTRY_INFO!B30)) -> Lékoumou | C30: =IF(AND(INTRO!$E$37="Non endémique",INTRO!$E$41="Non endémique")," ",IF(COUNTRY_INFO!C30=0," ",COUNTRY_INFO!C30)) -> Zanaga | D30: =IF(AND(INTRO!$E$37="Non endémique",INTRO!$E$41="Non endémique"),0,IF(AND(OR(COUNTRY_INFO!$H30=0,COUNTRY_INFO!$H30=4,COUNTRY_INFO!$H30=99),OR(COUNTRY_INFO!$J30=0,COUNTRY_INFO!$J30=4)),0,COUNTRY_INFO!$E30)) -> 4390 | E30: =IF(AND(INTRO!$E$37="Non endémique",INTRO!$E$41="Non endémique"),0,IF(AND(OR(COUNTRY_INFO!$H30=0,COUNTRY_INFO!$H30=4,COUNTRY_INFO!$H30=99),OR(COUNTRY_INFO!$J30=0,COUNTRY_INFO!$J30=4)),0,COUNTRY_INFO!$F30)) -> 6585 | F30: 10975 | G30: =IF(AND(INTRO!$E$37="Non endémique",INTRO!$E$41="Non endémique"),0,COUNTRY_INFO!Q30) -> 0 | H30: =IF(AND(INTRO!$E$37="Non endémique",INTRO!$E$41="Non endémique"),0,COUNTRY_INFO!S30) -> 2 | I30: =IF($G30=1,IVM!$G30,0) -> 0 | J30: =IF($G30=0, " ", IF(COUNTRY_INFO!$H30=1, IF(COUNTRY_INFO!$L30=1, 0," ")," ")) ->  | L30: ALB | M30: =IF($L30="ALB", IF(INTRO!$E$39="Non endémique",IF($H30<>0,$D30*($H30-$G30),0),$D30*$H30), 0) -> 8780 | N30: 13170 | P30: 21950 | Q30: =IF($L30="MBD", IF(INTRO!$E$39="Non endémique",IF($H30<>0,$D30*($H30-$G30),0),$D30*$H30),0) -> 0 | R30: 0 | T30: 0 | V30: 0 | W30: 0 | Y30: 13170 | Z30: 66 | AB30: 0 | AC30: 0
A31: =IF(AND(INTRO!$E$37="Non endémique",INTRO!$E$41="Non endémique")," ",IF(COUNTRY_INFO!A31=0," ",COUNTRY_INFO!A31)) -> Congo | B31: =IF(AND(INTRO!$E$37="Non endémique",INTRO!$E$41="Non endémique")," ",IF(COUNTRY_INFO!B31=0," ",COUNTRY_INFO!B31)) -> Likouala | C31: =IF(AND(INTRO!$E$37="Non endémique",INTRO!$E$41="Non endémique")," ",IF(COUNTRY_INFO!C31=0," ",COUNTRY_INFO!C31)) -> Bétou | D31: =IF(AND(INTRO!$E$37="Non endémique",INTRO!$E$41="Non endémique"),0,IF(AND(OR(COUNTRY_INFO!$H31=0,COUNTRY_INFO!$H31=4,COUNTRY_INFO!$H31=99),OR(COUNTRY_INFO!$J31=0,COUNTRY_INFO!$J31=4)),0,COUNTRY_INFO!$E31)) -> 10375 | E31: =IF(AND(INTRO!$E$37="Non endémique",INTRO!$E$41="Non endémique"),0,IF(AND(OR(COUNTRY_INFO!$H31=0,COUNTRY_INFO!$H31=4,COUNTRY_INFO!$H31=99),OR(COUNTRY_INFO!$J31=0,COUNTRY_INFO!$J31=4)),0,COUNTRY_INFO!$F31)) -> 15562 | F31: 25937 | G31: =IF(AND(INTRO!$E$37="Non endémique",INTRO!$E$41="Non endémique"),0,COUNTRY_INFO!Q31) -> 0 | H31: =IF(AND(INTRO!$E$37="Non endémique",INTRO!$E$41="Non endémique"),0,COUNTRY_INFO!S31) -> 1 | I31: =IF($G31=1,IVM!$G31,0) -> 0 | J31: =IF($G31=0, " ", IF(COUNTRY_INFO!$H31=1, IF(COUNTRY_INFO!$L31=1, 0," ")," ")) ->  | L31: ALB | M31: =IF($L31="ALB", IF(INTRO!$E$39="Non endémique",IF($H31<>0,$D31*($H31-$G31),0),$D31*$H31), 0) -> 10375 | N31: 15562 | P31: 25937 | Q31: =IF($L31="MBD", IF(INTRO!$E$39="Non endémique",IF($H31<>0,$D31*($H31-$G31),0),$D31*$H31),0) -> 0 | R31: 0 | T31: 0 | V31: 0 | W31: 0 | Y31: 15562 | Z31: 78 | AB31: 0 | AC31: 0
A32: =IF(AND(INTRO!$E$37="Non endémique",INTRO!$E$41="Non endémique")," ",IF(COUNTRY_INFO!A32=0," ",COUNTRY_INFO!A32)) -> Congo | B32: =IF(AND(INTRO!$E$37="Non endémique",INTRO!$E$41="Non endémique")," ",IF(COUNTRY_INFO!B32=0," ",COUNTRY_INFO!B32)) -> Likouala | C32: =IF(AND(INTRO!$E$37="Non endémique",INTRO!$E$41="Non endémique")," ",IF(COUNTRY_INFO!C32=0," ",COUNTRY_INFO!C32)) -> Impfondo | D32: =IF(AND(INTRO!$E$37="Non endémique",INTRO!$E$41="Non endémique"),0,IF(AND(OR(COUNTRY_INFO!$H32=0,COUNTRY_INFO!$H32=4,COUNTRY_INFO!$H32=99),OR(COUNTRY_INFO!$J32=0,COUNTRY_INFO!$J32=4)),0,COUNTRY_INFO!$E32)) -> 21019 | E32: =IF(AND(INTRO!$E$37="Non endémique",INTRO!$E$41="Non endémique"),0,IF(AND(OR(COUNTRY_INFO!$H32=0,COUNTRY_INFO!$H32=4,COUNTRY_INFO!$H32=99),OR(COUNTRY_INFO!$J32=0,COUNTRY_INFO!$J32=4)),0,COUNTRY_INFO!$F32)) -> 31528 | F32: 52547 | G32: =IF(AND(INTRO!$E$37="Non endémique",INTRO!$E$41="Non endémique"),0,COUNTRY_INFO!Q32) -> 1 | H32: =IF(AND(INTRO!$E$37="Non endémique",INTRO!$E$41="Non endémique"),0,COUNTRY_INFO!S32) -> 1 | I32: =IF($G32=1,IVM!$G32,0) -> 0 | J32: 104173 | K32: 2 | L32: ALB | M32: =IF($L32="ALB", IF(INTRO!$E$39="Non endémique",IF($H32<>0,$D32*($H32-$G32),0),$D32*$H32), 0) -> 21019 | N32: 31528 | P32: 52547 | Q32: =IF($L32="MBD", IF(INTRO!$E$39="Non endémique",IF($H32<>0,$D32*($H32-$G32),0),$D32*$H32),0) -> 0 | R32: 0 | T32: 0 | V32: 208346 | W32: 1042 | Y32: 31528 | Z32: 158 | AB32: 0 | AC32: 0
A33: =IF(AND(INTRO!$E$37="Non endémique",INTRO!$E$41="Non endémique")," ",IF(COUNTRY_INFO!A33=0," ",COUNTRY_INFO!A33)) -> Congo | B33: =IF(AND(INTRO!$E$37="Non endémique",INTRO!$E$41="Non endémique")," ",IF(COUNTRY_INFO!B33=0," ",COUNTRY_INFO!B33)) -> Niari | C33: =IF(AND(INTRO!$E$37="Non endémique",INTRO!$E$41="Non endémique")," ",IF(COUNTRY_INFO!C33=0," ",COUNTRY_INFO!C33)) -> Dolisie | D33: =IF(AND(INTRO!$E$37="Non endémique",INTRO!$E$41="Non endémique"),0,IF(AND(OR(COUNTRY_INFO!$H33=0,COUNTRY_INFO!$H33=4,COUNTRY_INFO!$H33=99),OR(COUNTRY_INFO!$J33=0,COUNTRY_INFO!$J33=4)),0,COUNTRY_INFO!$E33)) -> 28329 | E33: =IF(AND(INTRO!$E$37="Non endémique",INTRO!$E$41="Non endémique"),0,IF(AND(OR(COUNTRY_INFO!$H33=0,COUNTRY_INFO!$H33=4,COUNTRY_INFO!$H33=99),OR(COUNTRY_INFO!$J33=0,COUNTRY_INFO!$J33=4)),0,COUNTRY_INFO!$F33)) -> 42493 | F33: 70822 | G33: =IF(AND(INTRO!$E$37="Non endémique",INTRO!$E$41="Non endémique"),0,COUNTRY_INFO!Q33) -> 1 | H33: =IF(AND(INTRO!$E$37="Non endémique",INTRO!$E$41="Non endémique"),0,COUNTRY_INFO!S33) -> 2 | I33: =IF($G33=1,IVM!$G33,0) -> 46575 | J33: 93829 | K33: 2 | L33: ALB | M33: =IF($L33="ALB", IF(INTRO!$E$39="Non endémique",IF($H33<>0,$D33*($H33-$G33),0),$D33*$H33), 0) -> 56658 | N33: 42493 | P33: 99151 | Q33: =IF($L33="MBD", IF(INTRO!$E$39="Non endémique",IF($H33<>0,$D33*($H33-$G33),0),$D33*$H33),0) -> 0 | R33: 0 | T33: 0 | V33: 234233 | W33: 1172 | Y33: 42493 | Z33: 213 | AB33: 0 | AC33: 0
A34: =IF(AND(INTRO!$E$37="Non endémique",INTRO!$E$41="Non endémique")," ",IF(COUNTRY_INFO!A34=0," ",COUNTRY_INFO!A34)) -> Congo | B34: =IF(AND(INTRO!$E$37="Non endémique",INTRO!$E$41="Non endémique")," ",IF(COUNTRY_INFO!B34=0," ",COUNTRY_INFO!B34)) -> Niari | C34: =IF(AND(INTRO!$E$37="Non endémique",INTRO!$E$41="Non endémique")," ",IF(COUNTRY_INFO!C34=0," ",COUNTRY_INFO!C34)) -> Kibangou | D34: =IF(AND(INTRO!$E$37="Non endémique",INTRO!$E$41="Non endémique"),0,IF(AND(OR(COUNTRY_INFO!$H34=0,COUNTRY_INFO!$H34=4,COUNTRY_INFO!$H34=99),OR(COUNTRY_INFO!$J34=0,COUNTRY_INFO!$J34=4)),0,COUNTRY_INFO!$E34)) -> 9723 | E34: =IF(AND(INTRO!$E$37="Non endémique",INTRO!$E$41="Non endémique"),0,IF(AND(OR(COUNTRY_INFO!$H34=0,COUNTRY_INFO!$H34=4,COUNTRY_INFO!$H34=99),OR(COUNTRY_INFO!$J34=0,COUNTRY_INFO!$J34=4)),0,COUNTRY_INFO!$F34)) -> 14584 | F34: 24307 | G34: =IF(AND(INTRO!$E$37="Non endémique",INTRO!$E$41="Non endémique"),0,COUNTRY_INFO!Q34) -> 1 | H34: =IF(AND(INTRO!$E$37="Non endémique",INTRO!$E$41="Non endémique"),0,COUNTRY_INFO!S34) -> 2 | I34: =IF($G34=1,IVM!$G34,0) -> 25119 | J34: 23069 | K34: 2 | L34: ALB | M34: =IF($L34="ALB", IF(INTRO!$E$39="Non endémique",IF($H34<>0,$D34*($H34-$G34),0),$D34*$H34), 0) -> 19446 | N34: 14584 | P34: 34030 | Q34: =IF($L34="MBD", IF(INTRO!$E$39="Non endémique",IF($H34<>0,$D34*($H34-$G34),0),$D34*$H34),0) -> 0 | R34: 0 | T34: 0 | V34: 71257 | W34: 357 | Y34: 14584 | Z34: 73 | AB34: 0 | AC34: 0
A35: =IF(AND(INTRO!$E$37="Non endémique",INTRO!$E$41="Non endémique")," ",IF(COUNTRY_INFO!A35=0," ",COUNTRY_INFO!A35)) -> Congo | B35: =IF(AND(INTRO!$E$37="Non endémique",INTRO!$E$41="Non endémique")," ",IF(COUNTRY_INFO!B35=0," ",COUNTRY_INFO!B35)) -> Niari | C35: =IF(AND(INTRO!$E$37="Non endémique",INTRO!$E$41="Non endémique")," ",IF(COUNTRY_INFO!C35=0," ",COUNTRY_INFO!C35)) -> Mossendjo | D35: =IF(AND(INTRO!$E$37="Non endémique",INTRO!$E$41="Non endémique"),0,IF(AND(OR(COUNTRY_INFO!$H35=0,COUNTRY_INFO!$H35=4,COUNTRY_INFO!$H35=99),OR(COUNTRY_INFO!$J35=0,COUNTRY_INFO!$J35=4)),0,COUNTRY_INFO!$E35)) -> 9052 | E35: =IF(AND(INTRO!$E$37="Non endémique",INTRO!$E$41="Non endémique"),0,IF(AND(OR(COUNTRY_INFO!$H35=0,COUNTRY_INFO!$H35=4,COUNTRY_INFO!$H35=99),OR(COUNTRY_INFO!$J35=0,COUNTRY_INFO!$J35=4)),0,COUNTRY_INFO!$F35)) -> 13579 | F35: 22631 | G35: =IF(AND(INTRO!$E$37="Non endémique",INTRO!$E$41="Non endémique"),0,COUNTRY_INFO!Q35) -> 0 | H35: =IF(AND(INTRO!$E$37="Non endémique",INTRO!$E$41="Non endémique"),0,COUNTRY_INFO!S35) -> 2 | I35: =IF($G35=1,IVM!$G35,0) -> 0 | J35: =IF($G35=0, " ", IF(COUNTRY_INFO!$H35=1, IF(COUNTRY_INFO!$L35=1, 0," ")," ")) ->  | L35: ALB | M35: =IF($L35="ALB", IF(INTRO!$E$39="Non endémique",IF($H35<>0,$D35*($H35-$G35),0),$D35*$H35), 0) -> 18104 | N35: 27158 | P35: 45262 | Q35: =IF($L35="MBD", IF(INTRO!$E$39="Non endémique",IF($H35<>0,$D35*($H35-$G35),0),$D35*$H35),0) -> 0 | R35: 0 | T35: 0 | V35: 0 | W35: 0 | Y35: 27158 | Z35: 136 | AB35: 0 | AC35: 0
A36: =IF(AND(INTRO!$E$37="Non endémique",INTRO!$E$41="Non endémique")," ",IF(COUNTRY_INFO!A36=0," ",COUNTRY_INFO!A36)) -> Congo | B36: =IF(AND(INTRO!$E$37="Non endémique",INTRO!$E$41="Non endémique")," ",IF(COUNTRY_INFO!B36=0," ",COUNTRY_INFO!B36)) -> Plateaux | C36: =IF(AND(INTRO!$E$37="Non endémique",INTRO!$E$41="Non endémique")," ",IF(COUNTRY_INFO!C36=0," ",COUNTRY_INFO!C36)) -> Abala | D36: =IF(AND(INTRO!$E$37="Non endémique",INTRO!$E$41="Non endémique"),0,IF(AND(OR(COUNTRY_INFO!$H36=0,COUNTRY_INFO!$H36=4,COUNTRY_INFO!$H36=99),OR(COUNTRY_INFO!$J36=0,COUNTRY_INFO!$J36=4)),0,COUNTRY_INFO!$E36)) -> 7578 | E36: =IF(AND(INTRO!$E$37="Non endémique",INTRO!$E$41="Non endémique"),0,IF(AND(OR(COUNTRY_INFO!$H36=0,COUNTRY_INFO!$H36=4,COUNTRY_INFO!$H36=99),OR(COUNTRY_INFO!$J36=0,COUNTRY_INFO!$J36=4)),0,COUNTRY_INFO!$F36)) -> 11367 | F36: 18945 | G36: =IF(AND(INTRO!$E$37="Non endémique",INTRO!$E$41="Non endémique"),0,COUNTRY_INFO!Q36) -> 0 | H36: =IF(AND(INTRO!$E$37="Non endémique",INTRO!$E$41="Non endémique"),0,COUNTRY_INFO!S36) -> 0 | I36: =IF($G36=1,IVM!$G36,0) -> 0 | J36: =IF($G36=0, " ", IF(COUNTRY_INFO!$H36=1, IF(COUNTRY_INFO!$L36=1, 0," ")," ")) ->  | L36: ALB | M36: =IF($L36="ALB", IF(INTRO!$E$39="Non endémique",IF($H36<>0,$D36*($H36-$G36),0),$D36*$H36), 0) -> 0 | N36: 0 | P36: 0 | Q36: =IF($L36="MBD", IF(INTRO!$E$39="Non endémique",IF($H36<>0,$D36*($H36-$G36),0),$D36*$H36),0) -> 0 | R36: 0 | T36: 0 | V36: 0 | W36: 0 | Y36: 0 | Z36: 0 | AB36: 0 | AC36: 0
A37: =IF(AND(INTRO!$E$37="Non endémique",INTRO!$E$41="Non endémique")," ",IF(COUNTRY_INFO!A37=0," ",COUNTRY_INFO!A37)) -> Congo | B37: =IF(AND(INTRO!$E$37="Non endémique",INTRO!$E$41="Non endémique")," ",IF(COUNTRY_INFO!B37=0," ",COUNTRY_INFO!B37)) -> Plateaux | C37: =IF(AND(INTRO!$E$37="Non endémique",INTRO!$E$41="Non endémique")," ",IF(COUNTRY_INFO!C37=0," ",COUNTRY_INFO!C37)) -> Djambala-Lékana | D37: =IF(AND(INTRO!$E$37="Non endémique",INTRO!$E$41="Non endémique"),0,IF(AND(OR(COUNTRY_INFO!$H37=0,COUNTRY_INFO!$H37=4,COUNTRY_INFO!$H37=99),OR(COUNTRY_INFO!$J37=0,COUNTRY_INFO!$J37=4)),0,COUNTRY_INFO!$E37)) -> 12877 | E37: =IF(AND(INTRO!$E$37="Non endémique",INTRO!$E$41="Non endémique"),0,IF(AND(OR(COUNTRY_INFO!$H37=0,COUNTRY_INFO!$H37=4,COUNTRY_INFO!$H37=99),OR(COUNTRY_INFO!$J37=0,COUNTRY_INFO!$J37=4)),0,COUNTRY_INFO!$F37)) -> 19315 | F37: 32192 | G37: =IF(AND(INTRO!$E$37="Non endémique",INTRO!$E$41="Non endémique"),0,COUNTRY_INFO!Q37) -> 0 | H37: =IF(AND(INTRO!$E$37="Non endémique",INTRO!$E$41="Non endémique"),0,COUNTRY_INFO!S37) -> 2 | I37: =IF($G37=1,IVM!$G37,0) -> 0 | J37: =IF($G37=0, " ", IF(COUNTRY_INFO!$H37=1, IF(COUNTRY_INFO!$L37=1, 0," ")," ")) ->  | L37: ALB | M37: =IF($L37="ALB", IF(INTRO!$E$39="Non endémique",IF($H37<>0,$D37*($H37-$G37),0),$D37*$H37), 0) -> 25754 | N37: 38630 | P37: 64384 | Q37: =IF($L37="MBD", IF(INTRO!$E$39="Non endémique",IF($H37<>0,$D37*($H37-$G37),0),$D37*$H37),0) -> 0 | R37: 0 | T37: 0 | V37: 0 | W37: 0 | Y37: 38630 | Z37: 194 | AB37: 0 | AC37: 0
A38: =IF(AND(INTRO!$E$37="Non endémique",INTRO!$E$41="Non endémique")," ",IF(COUNTRY_INFO!A38=0," ",COUNTRY_INFO!A38)) -> Congo | B38: =IF(AND(INTRO!$E$37="Non endémique",INTRO!$E$41="Non endémique")," ",IF(COUNTRY_INFO!B38=0," ",COUNTRY_INFO!B38)) -> Plateaux | C38: =IF(AND(INTRO!$E$37="Non endémique",INTRO!$E$41="Non endémique")," ",IF(COUNTRY_INFO!C38=0," ",COUNTRY_INFO!C38)) -> Gamboma | D38: =IF(AND(INTRO!$E$37="Non endémique",INTRO!$E$41="Non endémique"),0,IF(AND(OR(COUNTRY_INFO!$H38=0,COUNTRY_INFO!$H38=4,COUNTRY_INFO!$H38=99),OR(COUNTRY_INFO!$J38=0,COUNTRY_INFO!$J38=4)),0,COUNTRY_INFO!$E38)) -> 15105 | E38: =IF(AND(INTRO!$E$37="Non endémique",INTRO!$E$41="Non endémique"),0,IF(AND(OR(COUNTRY_INFO!$H38=0,COUNTRY_INFO!$H38=4,COUNTRY_INFO!$H38=99),OR(COUNTRY_INFO!$J38=0,COUNTRY_INFO!$J38=4)),0,COUNTRY_INFO!$F38)) -> 22658 | F38: 37763 | G38: =IF(AND(INTRO!$E$37="Non endémique",INTRO!$E$41="Non endémique"),0,COUNTRY_INFO!Q38) -> 0 | H38: =IF(AND(INTRO!$E$37="Non endémique",INTRO!$E$41="Non endémique"),0,COUNTRY_INFO!S38) -> 2 | I38: =IF($G38=1,IVM!$G38,0) -> 0 | J38: =IF($G38=0, " ", IF(COUNTRY_INFO!$H38=1, IF(COUNTRY_INFO!$L38=1, 0," ")," ")) ->  | L38: ALB | M38: =IF($L38="ALB", IF(INTRO!$E$39="Non endémique",IF($H38<>0,$D38*($H38-$G38),0),$D38*$H38), 0) -> 30210 | N38: 45316 | P38: 75526 | Q38: =IF($L38="MBD", IF(INTRO!$E$39="Non endémique",IF($H38<>0,$D38*($H38-$G38),0),$D38*$H38),0) -> 0 | R38: 0 | T38: 0 | V38: 0 | W38: 0 | Y38: 45316 | Z38: 227 | AB38: 0 | AC38: 0
A39: =IF(AND(INTRO!$E$37="Non endémique",INTRO!$E$41="Non endémique")," ",IF(COUNTRY_INFO!A39=0," ",COUNTRY_INFO!A39)) -> Congo | B39: =IF(AND(INTRO!$E$37="Non endémique",INTRO!$E$41="Non endémique")," ",IF(COUNTRY_INFO!B39=0," ",COUNTRY_INFO!B39)) -> Pointe-Noire | C39: =IF(AND(INTRO!$E$37="Non endémique",INTRO!$E$41="Non endémique")," ",IF(COUNTRY_INFO!C39=0," ",COUNTRY_INFO!C39)) -> Ngoyo | D39: =IF(AND(INTRO!$E$37="Non endémique",INTRO!$E$41="Non endémique"),0,IF(AND(OR(COUNTRY_INFO!$H39=0,COUNTRY_INFO!$H39=4,COUNTRY_INFO!$H39=99),OR(COUNTRY_INFO!$J39=0,COUNTRY_INFO!$J39=4)),0,COUNTRY_INFO!$E39)) -> 5271 | E39: =IF(AND(INTRO!$E$37="Non endémique",INTRO!$E$41="Non endémique"),0,IF(AND(OR(COUNTRY_INFO!$H39=0,COUNTRY_INFO!$H39=4,COUNTRY_INFO!$H39=99),OR(COUNTRY_INFO!$J39=0,COUNTRY_INFO!$J39=4)),0,COUNTRY_INFO!$F39)) -> 7906 | F39: 13177 | G39: =IF(AND(INTRO!$E$37="Non endémique",INTRO!$E$41="Non endémique"),0,COUNTRY_INFO!Q39) -> 0 | H39: =IF(AND(INTRO!$E$37="Non endémique",INTRO!$E$41="Non endémique"),0,COUNTRY_INFO!S39) -> 0 | I39: =IF($G39=1,IVM!$G39,0) -> 0 | J39: =IF($G39=0, " ", IF(COUNTRY_INFO!$H39=1, IF(COUNTRY_INFO!$L39=1, 0," ")," ")) ->  | L39: ALB | M39: =IF($L39="ALB", IF(INTRO!$E$39="Non endémique",IF($H39<>0,$D39*($H39-$G39),0),$D39*$H39), 0) -> 0 | N39: 0 | P39: 0 | Q39: =IF($L39="MBD", IF(INTRO!$E$39="Non endémique",IF($H39<>0,$D39*($H39-$G39),0),$D39*$H39),0) -> 0 | R39: 0 | T39: 0 | V39: 0 | W39: 0 | Y39: 0 | Z39: 0 | AB39: 0 | AC39: 0
A40: =IF(AND(INTRO!$E$37="Non endémique",INTRO!$E$41="Non endémique")," ",IF(COUNTRY_INFO!A40=0," ",COUNTRY_INFO!A40)) -> Congo | B40: =IF(AND(INTRO!$E$37="Non endémique",INTRO!$E$41="Non endémique")," ",IF(COUNTRY_INFO!B40=0," ",COUNTRY_INFO!B40)) -> Pointe-Noire | C40: =IF(AND(INTRO!$E$37="Non endémique",INTRO!$E$41="Non endémique")," ",IF(COUNTRY_INFO!C40=0," ",COUNTRY_INFO!C40)) -> Mongo-Poukou | D40: =IF(AND(INTRO!$E$37="Non endémique",INTRO!$E$41="Non endémique"),0,IF(AND(OR(COUNTRY_INFO!$H40=0,COUNTRY_INFO!$H40=4,COUNTRY_INFO!$H40=99),OR(COUNTRY_INFO!$J40=0,COUNTRY_INFO!$J40=4)),0,COUNTRY_INFO!$E40)) -> 19374 | E40: =IF(AND(INTRO!$E$37="Non endémique",INTRO!$E$41="Non endémique"),0,IF(AND(OR(COUNTRY_INFO!$H40=0,COUNTRY_INFO!$H40=4,COUNTRY_INFO!$H40=99),OR(COUNTRY_INFO!$J40=0,COUNTRY_INFO!$J40=4)),0,COUNTRY_INFO!$F40)) -> 29060 | F40: 48434 | G40: =IF(AND(INTRO!$E$37="Non endémique",INTRO!$E$41="Non endémique"),0,COUNTRY_INFO!Q40) -> 0 | H40: =IF(AND(INTRO!$E$37="Non endémique",INTRO!$E$41="Non endémique"),0,COUNTRY_INFO!S40) -> 0 | I40: =IF($G40=1,IVM!$G40,0) -> 0 | J40: =IF($G40=0, " ", IF(COUNTRY_INFO!$H40=1, IF(COUNTRY_INFO!$L40=1, 0," ")," ")) ->  | L40: ALB | M40: =IF($L40="ALB", IF(INTRO!$E$39="Non endémique",IF($H40<>0,$D40*($H40-$G40),0),$D40*$H40), 0) -> 0 | N40: 0 | P40: 0 | Q40: =IF($L40="MBD", IF(INTRO!$E$39="Non endémique",IF($H40<>0,$D40*($H40-$G40),0),$D40*$H40),0) -> 0 | R40: 0 | T40: 0 | V40: 0 | W40: 0 | Y40: 0 | Z40: 0 | AB40: 0 | AC40: 0
A41: =IF(AND(INTRO!$E$37="Non endémique",INTRO!$E$41="Non endémique")," ",IF(COUNTRY_INFO!A41=0," ",COUNTRY_INFO!A41)) -> Congo | B41: =IF(AND(INTRO!$E$37="Non endémique",INTRO!$E$41="Non endémique")," ",IF(COUNTRY_INFO!B41=0," ",COUNTRY_INFO!B41)) -> Pointe-Noire | C41: =IF(AND(INTRO!$E$37="Non endémique",INTRO!$E$41="Non endémique")," ",IF(COUNTRY_INFO!C41=0," ",COUNTRY_INFO!C41)) -> Loandjili | D41: =IF(AND(INTRO!$E$37="Non endémique",INTRO!$E$41="Non endémique"),0,IF(AND(OR(COUNTRY_INFO!$H41=0,COUNTRY_INFO!$H41=4,COUNTRY_INFO!$H41=99),OR(COUNTRY_INFO!$J41=0,COUNTRY_INFO!$J41=4)),0,COUNTRY_INFO!$E41)) -> 40332 | E41: =IF(AND(INTRO!$E$37="Non endémique",INTRO!$E$41="Non endémique"),0,IF(AND(OR(COUNTRY_INFO!$H41=0,COUNTRY_INFO!$H41=4,COUNTRY_INFO!$H41=99),OR(COUNTRY_INFO!$J41=0,COUNTRY_INFO!$J41=4)),0,COUNTRY_INFO!$F41)) -> 60498 | F41: 100830 | G41: =IF(AND(INTRO!$E$37="Non endémique",INTRO!$E$41="Non endémique"),0,COUNTRY_INFO!Q41) -> 0 | H41: =IF(AND(INTRO!$E$37="Non endémique",INTRO!$E$41="Non endémique"),0,COUNTRY_INFO!S41) -> 0 | I41: =IF($G41=1,IVM!$G41,0) -> 0 | J41: =IF($G41=0, " ", IF(COUNTRY_INFO!$H41=1, IF(COUNTRY_INFO!$L41=1, 0," ")," ")) ->  | L41: ALB | M41: =IF($L41="ALB", IF(INTRO!$E$39="Non endémique",IF($H41<>0,$D41*($H41-$G41),0),$D41*$H41), 0) -> 0 | N41: 0 | P41: 0 | Q41: =IF($L41="MBD", IF(INTRO!$E$39="Non endémique",IF($H41<>0,$D41*($H41-$G41),0),$D41*$H41),0) -> 0 | R41: 0 | T41: 0 | V41: 0 | W41: 0 | Y41: 0 | Z41: 0 | AB41: 0 | AC41: 0
A42: =IF(AND(INTRO!$E$37="Non endémique",INTRO!$E$41="Non endémique")," ",IF(COUNTRY_INFO!A42=0," ",COUNTRY_INFO!A42)) -> Congo | B42: =IF(AND(INTRO!$E$37="Non endémique",INTRO!$E$41="Non endémique")," ",IF(COUNTRY_INFO!B42=0," ",COUNTRY_INFO!B42)) -> Pointe-Noire | C42: =IF(AND(INTRO!$E$37="Non endémique",INTRO!$E$41="Non endémique")," ",IF(COUNTRY_INFO!C42=0," ",COUNTRY_INFO!C42)) -> Lumumba | D42: =IF(AND(INTRO!$E$37="Non endémique",INTRO!$E$41="Non endémique"),0,IF(AND(OR(COUNTRY_INFO!$H42=0,COUNTRY_INFO!$H42=4,COUNTRY_INFO!$H42=99),OR(COUNTRY_INFO!$J42=0,COUNTRY_INFO!$J42=4)),0,COUNTRY_INFO!$E42)) -> 22192 | E42: =IF(AND(INTRO!$E$37="Non endémique",INTRO!$E$41="Non endémique"),0,IF(AND(OR(COUNTRY_INFO!$H42=0,COUNTRY_INFO!$H42=4,COUNTRY_INFO!$H42=99),OR(COUNTRY_INFO!$J42=0,COUNTRY_INFO!$J42=4)),0,COUNTRY_INFO!$F42)) -> 33288 | F42: 55480 | G42: =IF(AND(INTRO!$E$37="Non endémique",INTRO!$E$41="Non endémique"),0,COUNTRY_INFO!Q42) -> 0 | H42: =IF(AND(INTRO!$E$37="Non endémique",INTRO!$E$41="Non endémique"),0,COUNTRY_INFO!S42) -> 0 | I42: =IF($G42=1,IVM!$G42,0) -> 0 | J42: =IF($G42=0, " ", IF(COUNTRY_INFO!$H42=1, IF(COUNTRY_INFO!$L42=1, 0," ")," ")) ->  | L42: ALB | M42: =IF($L42="ALB", IF(INTRO!$E$39="Non endémique",IF($H42<>0,$D42*($H42-$G42),0),$D42*$H42), 0) -> 0 | N42: 0 | P42: 0 | Q42: =IF($L42="MBD", IF(INTRO!$E$39="Non endémique",IF($H42<>0,$D42*($H42-$G42),0),$D42*$H42),0) -> 0 | R42: 0 | T42: 0 | V42: 0 | W42: 0 | Y42: 0 | Z42: 0 | AB42: 0 | AC42: 0
A43: =IF(AND(INTRO!$E$37="Non endémique",INTRO!$E$41="Non endémique")," ",IF(COUNTRY_INFO!A43=0," ",COUNTRY_INFO!A43)) -> Congo | B43: =IF(AND(INTRO!$E$37="Non endémique",INTRO!$E$41="Non endémique")," ",IF(COUNTRY_INFO!B43=0," ",COUNTRY_INFO!B43)) -> Pointe-Noire | C43: =IF(AND(INTRO!$E$37="Non endémique",INTRO!$E$41="Non endémique")," ",IF(COUNTRY_INFO!C43=0," ",COUNTRY_INFO!C43)) -> Mvoumvou | D43: =IF(AND(INTRO!$E$37="Non endémique",INTRO!$E$41="Non endémique"),0,IF(AND(OR(COUNTRY_INFO!$H43=0,COUNTRY_INFO!$H43=4,COUNTRY_INFO!$H43=99),OR(COUNTRY_INFO!$J43=0,COUNTRY_INFO!$J43=4)),0,COUNTRY_INFO!$E43)) -> 17780 | E43: =IF(AND(INTRO!$E$37="Non endémique",INTRO!$E$41="Non endémique"),0,IF(AND(OR(COUNTRY_INFO!$H43=0,COUNTRY_INFO!$H43=4,COUNTRY_INFO!$H43=99),OR(COUNTRY_INFO!$J43=0,COUNTRY_INFO!$J43=4)),0,COUNTRY_INFO!$F43)) -> 26670 | F43: 44450 | G43: =IF(AND(INTRO!$E$37="Non endémique",INTRO!$E$41="Non endémique"),0,COUNTRY_INFO!Q43) -> 0 | H43: =IF(AND(INTRO!$E$37="Non endémique",INTRO!$E$41="Non endémique"),0,COUNTRY_INFO!S43) -> 0 | I43: =IF($G43=1,IVM!$G43,0) -> 0 | J43: =IF($G43=0, " ", IF(COUNTRY_INFO!$H43=1, IF(COUNTRY_INFO!$L43=1, 0," ")," ")) ->  | L43: ALB | M43: =IF($L43="ALB", IF(INTRO!$E$39="Non endémique",IF($H43<>0,$D43*($H43-$G43),0),$D43*$H43), 0) -> 0 | N43: 0 | P43: 0 | Q43: =IF($L43="MBD", IF(INTRO!$E$39="Non endémique",IF($H43<>0,$D43*($H43-$G43),0),$D43*$H43),0) -> 0 | R43: 0 | T43: 0 | V43: 0 | W43: 0 | Y43: 0 | Z43: 0 | AB43: 0 | AC43: 0
A44: =IF(AND(INTRO!$E$37="Non endémique",INTRO!$E$41="Non endémique")," ",IF(COUNTRY_INFO!A44=0," ",COUNTRY_INFO!A44)) -> Congo | B44: =IF(AND(INTRO!$E$37="Non endémique",INTRO!$E$41="Non endémique")," ",IF(COUNTRY_INFO!B44=0," ",COUNTRY_INFO!B44)) -> Pointe-Noire | C44: =IF(AND(INTRO!$E$37="Non endémique",INTRO!$E$41="Non endémique")," ",IF(COUNTRY_INFO!C44=0," ",COUNTRY_INFO!C44)) -> Tie-Tie | D44: =IF(AND(INTRO!$E$37="Non endémique",INTRO!$E$41="Non endémique"),0,IF(AND(OR(COUNTRY_INFO!$H44=0,COUNTRY_INFO!$H44=4,COUNTRY_INFO!$H44=99),OR(COUNTRY_INFO!$J44=0,COUNTRY_INFO!$J44=4)),0,COUNTRY_INFO!$E44)) -> 36116 | E44: =IF(AND(INTRO!$E$37="Non endémique",INTRO!$E$41="Non endémique"),0,IF(AND(OR(COUNTRY_INFO!$H44=0,COUNTRY_INFO!$H44=4,COUNTRY_INFO!$H44=99),OR(COUNTRY_INFO!$J44=0,COUNTRY_INFO!$J44=4)),0,COUNTRY_INFO!$F44)) -> 54173 | F44: 90289 | G44: =IF(AND(INTRO!$E$37="Non endémique",INTRO!$E$41="Non endémique"),0,COUNTRY_INFO!Q44) -> 0 | H44: =IF(AND(INTRO!$E$37="Non endémique",INTRO!$E$41="Non endémique"),0,COUNTRY_INFO!S44) -> 0 | I44: =IF($G44=1,IVM!$G44,0) -> 0 | J44: =IF($G44=0, " ", IF(COUNTRY_INFO!$H44=1, IF(COUNTRY_INFO!$L44=1, 0," ")," ")) ->  | L44: ALB | M44: =IF($L44="ALB", IF(INTRO!$E$39="Non endémique",IF($H44<>0,$D44*($H44-$G44),0),$D44*$H44), 0) -> 0 | N44: 0 | P44: 0 | Q44: =IF($L44="MBD", IF(INTRO!$E$39="Non endémique",IF($H44<>0,$D44*($H44-$G44),0),$D44*$H44),0) -> 0 | R44: 0 | T44: 0 | V44: 0 | W44: 0 | Y44: 0 | Z44: 0 | AB44: 0 | AC44: 0
A45: =IF(AND(INTRO!$E$37="Non endémique",INTRO!$E$41="Non endémique")," ",IF(COUNTRY_INFO!A45=0," ",COUNTRY_INFO!A45)) -> Congo | B45: =IF(AND(INTRO!$E$37="Non endémique",INTRO!$E$41="Non endémique")," ",IF(COUNTRY_INFO!B45=0," ",COUNTRY_INFO!B45)) -> Pool | C45: =IF(AND(INTRO!$E$37="Non endémique",INTRO!$E$41="Non endémique")," ",IF(COUNTRY_INFO!C45=0," ",COUNTRY_INFO!C45)) -> Goma tsétsé | D45: =IF(AND(INTRO!$E$37="Non endémique",INTRO!$E$41="Non endémique"),0,IF(AND(OR(COUNTRY_INFO!$H45=0,COUNTRY_INFO!$H45=4,COUNTRY_INFO!$H45=99),OR(COUNTRY_INFO!$J45=0,COUNTRY_INFO!$J45=4)),0,COUNTRY_INFO!$E45)) -> 5164 | E45: =IF(AND(INTRO!$E$37="Non endémique",INTRO!$E$41="Non endémique"),0,IF(AND(OR(COUNTRY_INFO!$H45=0,COUNTRY_INFO!$H45=4,COUNTRY_INFO!$H45=99),OR(COUNTRY_INFO!$J45=0,COUNTRY_INFO!$J45=4)),0,COUNTRY_INFO!$F45)) -> 7745 | F45: 12909 | G45: =IF(AND(INTRO!$E$37="Non endémique",INTRO!$E$41="Non endémique"),0,COUNTRY_INFO!Q45) -> 0 | H45: =IF(AND(INTRO!$E$37="Non endémique",INTRO!$E$41="Non endémique"),0,COUNTRY_INFO!S45) -> 1 | I45: =IF($G45=1,IVM!$G45,0) -> 0 | J45: =IF($G45=0, " ", IF(COUNTRY_INFO!$H45=1, IF(COUNTRY_INFO!$L45=1, 0," ")," ")) ->  | L45: ALB | M45: =IF($L45="ALB", IF(INTRO!$E$39="Non endémique",IF($H45<>0,$D45*($H45-$G45),0),$D45*$H45), 0) -> 5164 | N45: 7745 | P45: 12909 | Q45: =IF($L45="MBD", IF(INTRO!$E$39="Non endémique",IF($H45<>0,$D45*($H45-$G45),0),$D45*$H45),0) -> 0 | R45: 0 | T45: 0 | V45: 0 | W45: 0 | Y45: 7745 | Z45: 39 | AB45: 0 | AC45: 0
A46: =IF(AND(INTRO!$E$37="Non endémique",INTRO!$E$41="Non endémique")," ",IF(COUNTRY_INFO!A46=0," ",COUNTRY_INFO!A46)) -> Congo | B46: =IF(AND(INTRO!$E$37="Non endémique",INTRO!$E$41="Non endémique")," ",IF(COUNTRY_INFO!B46=0," ",COUNTRY_INFO!B46)) -> Pool | C46: =IF(AND(INTRO!$E$37="Non endémique",INTRO!$E$41="Non endémique")," ",IF(COUNTRY_INFO!C46=0," ",COUNTRY_INFO!C46)) -> Ignié | D46: =IF(AND(INTRO!$E$37="Non endémique",INTRO!$E$41="Non endémique"),0,IF(AND(OR(COUNTRY_INFO!$H46=0,COUNTRY_INFO!$H46=4,COUNTRY_INFO!$H46=99),OR(COUNTRY_INFO!$J46=0,COUNTRY_INFO!$J46=4)),0,COUNTRY_INFO!$E46)) -> 13528 | E46: =IF(AND(INTRO!$E$37="Non endémique",INTRO!$E$41="Non endémique"),0,IF(AND(OR(COUNTRY_INFO!$H46=0,COUNTRY_INFO!$H46=4,COUNTRY_INFO!$H46=99),OR(COUNTRY_INFO!$J46=0,COUNTRY_INFO!$J46=4)),0,COUNTRY_INFO!$F46)) -> 20292 | F46: 33820 | G46: =IF(AND(INTRO!$E$37="Non endémique",INTRO!$E$41="Non endémique"),0,COUNTRY_INFO!Q46) -> 1 | H46: =IF(AND(INTRO!$E$37="Non endémique",INTRO!$E$41="Non endémique"),0,COUNTRY_INFO!S46) -> 1 | I46: =IF($G46=1,IVM!$G46,0) -> 32069 | J46: 34979 | K46: 2 | L46: ALB | M46: =IF($L46="ALB", IF(INTRO!$E$39="Non endémique",IF($H46<>0,$D46*($H46-$G46),0),$D46*$H46), 0) -> 13528 | N46: 0 | P46: 13528 | Q46: =IF($L46="MBD", IF(INTRO!$E$39="Non endémique",IF($H46<>0,$D46*($H46-$G46),0),$D46*$H46),0) -> 0 | R46: 0 | T46: 0 | V46: 102027 | W46: 511 | Y46: 0 | Z46: 0 | AB46: 0 | AC46: 0
A47: =IF(AND(INTRO!$E$37="Non endémique",INTRO!$E$41="Non endémique")," ",IF(COUNTRY_INFO!A47=0," ",COUNTRY_INFO!A47)) -> Congo | B47: =IF(AND(INTRO!$E$37="Non endémique",INTRO!$E$41="Non endémique")," ",IF(COUNTRY_INFO!B47=0," ",COUNTRY_INFO!B47)) -> Pool | C47: =IF(AND(INTRO!$E$37="Non endémique",INTRO!$E$41="Non endémique")," ",IF(COUNTRY_INFO!C47=0," ",COUNTRY_INFO!C47)) -> Kindamba | D47: =IF(AND(INTRO!$E$37="Non endémique",INTRO!$E$41="Non endémique"),0,IF(AND(OR(COUNTRY_INFO!$H47=0,COUNTRY_INFO!$H47=4,COUNTRY_INFO!$H47=99),OR(COUNTRY_INFO!$J47=0,COUNTRY_INFO!$J47=4)),0,COUNTRY_INFO!$E47)) -> 5646 | E47: =IF(AND(INTRO!$E$37="Non endémique",INTRO!$E$41="Non endémique"),0,IF(AND(OR(COUNTRY_INFO!$H47=0,COUNTRY_INFO!$H47=4,COUNTRY_INFO!$H47=99),OR(COUNTRY_INFO!$J47=0,COUNTRY_INFO!$J47=4)),0,COUNTRY_INFO!$F47)) -> 8469 | F47: 14115 | G47: =IF(AND(INTRO!$E$37="Non endémique",INTRO!$E$41="Non endémique"),0,COUNTRY_INFO!Q47) -> 0 | H47: =IF(AND(INTRO!$E$37="Non endémique",INTRO!$E$41="Non endémique"),0,COUNTRY_INFO!S47) -> 1 | I47: =IF($G47=1,IVM!$G47,0) -> 0 | J47: =IF($G47=0, " ", IF(COUNTRY_INFO!$H47=1, IF(COUNTRY_INFO!$L47=1, 0," ")," ")) ->  | L47: ALB | M47: =IF($L47="ALB", IF(INTRO!$E$39="Non endémique",IF($H47<>0,$D47*($H47-$G47),0),$D47*$H47), 0) -> 5646 | N47: 8469 | P47: 14115 | Q47: =IF($L47="MBD", IF(INTRO!$E$39="Non endémique",IF($H47<>0,$D47*($H47-$G47),0),$D47*$H47),0) -> 0 | R47: 0 | T47: 0 | V47: 0 | W47: 0 | Y47: 8469 | Z47: 43 | AB47: 0 | AC47: 0
A48: =IF(AND(INTRO!$E$37="Non endémique",INTRO!$E$41="Non endémique")," ",IF(COUNTRY_INFO!A48=0," ",COUNTRY_INFO!A48)) -> Congo | B48: =IF(AND(INTRO!$E$37="Non endémique",INTRO!$E$41="Non endémique")," ",IF(COUNTRY_INFO!B48=0," ",COUNTRY_INFO!B48)) -> Pool | C48: =IF(AND(INTRO!$E$37="Non endémique",INTRO!$E$41="Non endémique")," ",IF(COUNTRY_INFO!C48=0," ",COUNTRY_INFO!C48)) -> Kinkala-Boko | D48: =IF(AND(INTRO!$E$37="Non endémique",INTRO!$E$41="Non endémique"),0,IF(AND(OR(COUNTRY_INFO!$H48=0,COUNTRY_INFO!$H48=4,COUNTRY_INFO!$H48=99),OR(COUNTRY_INFO!$J48=0,COUNTRY_INFO!$J48=4)),0,COUNTRY_INFO!$E48)) -> 12937 | E48: =IF(AND(INTRO!$E$37="Non endémique",INTRO!$E$41="Non endémique"),0,IF(AND(OR(COUNTRY_INFO!$H48=0,COUNTRY_INFO!$H48=4,COUNTRY_INFO!$H48=99),OR(COUNTRY_INFO!$J48=0,COUNTRY_INFO!$J48=4)),0,COUNTRY_INFO!$F48)) -> 19405 | F48: 32342 | G48: =IF(AND(INTRO!$E$37="Non endémique",INTRO!$E$41="Non endémique"),0,COUNTRY_INFO!Q48) -> 0 | H48: =IF(AND(INTRO!$E$37="Non endémique",INTRO!$E$41="Non endémique"),0,COUNTRY_INFO!S48) -> 1 | I48: =IF($G48=1,IVM!$G48,0) -> 0 | J48: =IF($G48=0, " ", IF(COUNTRY_INFO!$H48=1, IF(COUNTRY_INFO!$L48=1, 0," ")," ")) ->  | L48: ALB | M48: =IF($L48="ALB", IF(INTRO!$E$39="Non endémique",IF($H48<>0,$D48*($H48-$G48),0),$D48*$H48), 0) -> 12937 | N48: 19405 | P48: 32342 | Q48: =IF($L48="MBD", IF(INTRO!$E$39="Non endémique",IF($H48<>0,$D48*($H48-$G48),0),$D48*$H48),0) -> 0 | R48: 0 | T48: 0 | V48: 0 | W48: 0 | Y48: 19405 | Z48: 98 | AB48: 0 | AC48: 0
A49: =IF(AND(INTRO!$E$37="Non endémique",INTRO!$E$41="Non endémique")," ",IF(COUNTRY_INFO!A49=0," ",COUNTRY_INFO!A49)) -> Congo | B49: =IF(AND(INTRO!$E$37="Non endémique",INTRO!$E$41="Non endémique")," ",IF(COUNTRY_INFO!B49=0," ",COUNTRY_INFO!B49)) -> Pool | C49: =IF(AND(INTRO!$E$37="Non endémique",INTRO!$E$41="Non endémique")," ",IF(COUNTRY_INFO!C49=0," ",COUNTRY_INFO!C49)) -> Mindouli | D49: =IF(AND(INTRO!$E$37="Non endémique",INTRO!$E$41="Non endémique"),0,IF(AND(OR(COUNTRY_INFO!$H49=0,COUNTRY_INFO!$H49=4,COUNTRY_INFO!$H49=99),OR(COUNTRY_INFO!$J49=0,COUNTRY_INFO!$J49=4)),0,COUNTRY_INFO!$E49)) -> 10913 | E49: =IF(AND(INTRO!$E$37="Non endémique",INTRO!$E$41="Non endémique"),0,IF(AND(OR(COUNTRY_INFO!$H49=0,COUNTRY_INFO!$H49=4,COUNTRY_INFO!$H49=99),OR(COUNTRY_INFO!$J49=0,COUNTRY_INFO!$J49=4)),0,COUNTRY_INFO!$F49)) -> 16369 | F49: 27282 | G49: =IF(AND(INTRO!$E$37="Non endémique",INTRO!$E$41="Non endémique"),0,COUNTRY_INFO!Q49) -> 0 | H49: =IF(AND(INTRO!$E$37="Non endémique",INTRO!$E$41="Non endémique"),0,COUNTRY_INFO!S49) -> 1 | I49: =IF($G49=1,IVM!$G49,0) -> 0 | J49: =IF($G49=0, " ", IF(COUNTRY_INFO!$H49=1, IF(COUNTRY_INFO!$L49=1, 0," ")," ")) ->  | L49: ALB | M49: =IF($L49="ALB", IF(INTRO!$E$39="Non endémique",IF($H49<>0,$D49*($H49-$G49),0),$D49*$H49), 0) -> 10913 | N49: 16369 | P49: 27282 | Q49: =IF($L49="MBD", IF(INTRO!$E$39="Non endémique",IF($H49<>0,$D49*($H49-$G49),0),$D49*$H49),0) -> 0 | R49: 0 | T49: 0 | V49: 0 | W49: 0 | Y49: 16369 | Z49: 82 | AB49: 0 | AC49: 0
A50: =IF(AND(INTRO!$E$37="Non endémique",INTRO!$E$41="Non endémique")," ",IF(COUNTRY_INFO!A50=0," ",COUNTRY_INFO!A50)) -> Congo | B50: =IF(AND(INTRO!$E$37="Non endémique",INTRO!$E$41="Non endémique")," ",IF(COUNTRY_INFO!B50=0," ",COUNTRY_INFO!B50)) -> Sangha | C50: =IF(AND(INTRO!$E$37="Non endémique",INTRO!$E$41="Non endémique")," ",IF(COUNTRY_INFO!C50=0," ",COUNTRY_INFO!C50)) -> Ouesso | D50: =IF(AND(INTRO!$E$37="Non endémique",INTRO!$E$41="Non endémique"),0,IF(AND(OR(COUNTRY_INFO!$H50=0,COUNTRY_INFO!$H50=4,COUNTRY_INFO!$H50=99),OR(COUNTRY_INFO!$J50=0,COUNTRY_INFO!$J50=4)),0,COUNTRY_INFO!$E50)) -> 12617 | E50: =IF(AND(INTRO!$E$37="Non endémique",INTRO!$E$41="Non endémique"),0,IF(AND(OR(COUNTRY_INFO!$H50=0,COUNTRY_INFO!$H50=4,COUNTRY_INFO!$H50=99),OR(COUNTRY_INFO!$J50=0,COUNTRY_INFO!$J50=4)),0,COUNTRY_INFO!$F50)) -> 18926 | F50: 31543 | G50: =IF(AND(INTRO!$E$37="Non endémique",INTRO!$E$41="Non endémique"),0,COUNTRY_INFO!Q50) -> 1 | H50: =IF(AND(INTRO!$E$37="Non endémique",INTRO!$E$41="Non endémique"),0,COUNTRY_INFO!S50) -> 2 | I50: =IF($G50=1,IVM!$G50,0) -> 0 | J50: 62534 | K50: 2 | L50: ALB | M50: =IF($L50="ALB", IF(INTRO!$E$39="Non endémique",IF($H50<>0,$D50*($H50-$G50),0),$D50*$H50), 0) -> 25234 | N50: 37852 | P50: 63086 | Q50: =IF($L50="MBD", IF(INTRO!$E$39="Non endémique",IF($H50<>0,$D50*($H50-$G50),0),$D50*$H50),0) -> 0 | R50: 0 | T50: 0 | V50: 125068 | W50: 626 | Y50: 37852 | Z50: 190 | AB50: 0 | AC50: 0
A51: =IF(AND(INTRO!$E$37="Non endémique",INTRO!$E$41="Non endémique")," ",IF(COUNTRY_INFO!A51=0," ",COUNTRY_INFO!A51)) -> Congo | B51: =IF(AND(INTRO!$E$37="Non endémique",INTRO!$E$41="Non endémique")," ",IF(COUNTRY_INFO!B51=0," ",COUNTRY_INFO!B51)) -> Sangha | C51: =IF(AND(INTRO!$E$37="Non endémique",INTRO!$E$41="Non endémique")," ",IF(COUNTRY_INFO!C51=0," ",COUNTRY_INFO!C51)) -> Sembé-Souanké | D51: =IF(AND(INTRO!$E$37="Non endémique",INTRO!$E$41="Non endémique"),0,IF(AND(OR(COUNTRY_INFO!$H51=0,COUNTRY_INFO!$H51=4,COUNTRY_INFO!$H51=99),OR(COUNTRY_INFO!$J51=0,COUNTRY_INFO!$J51=4)),0,COUNTRY_INFO!$E51)) -> 4863 | E51: =IF(AND(INTRO!$E$37="Non endémique",INTRO!$E$41="Non endémique"),0,IF(AND(OR(COUNTRY_INFO!$H51=0,COUNTRY_INFO!$H51=4,COUNTRY_INFO!$H51=99),OR(COUNTRY_INFO!$J51=0,COUNTRY_INFO!$J51=4)),0,COUNTRY_INFO!$F51)) -> 7294 | F51: 12157 | G51: =IF(AND(INTRO!$E$37="Non endémique",INTRO!$E$41="Non endémique"),0,COUNTRY_INFO!Q51) -> 1 | H51: =IF(AND(INTRO!$E$37="Non endémique",INTRO!$E$41="Non endémique"),0,COUNTRY_INFO!S51) -> 2 | I51: =IF($G51=1,IVM!$G51,0) -> 0 | J51: 24101 | K51: 2 | L51: ALB | M51: =IF($L51="ALB", IF(INTRO!$E$39="Non endémique",IF($H51<>0,$D51*($H51-$G51),0),$D51*$H51), 0) -> 9726 | N51: 14588 | P51: 24314 | Q51: =IF($L51="MBD", IF(INTRO!$E$39="Non endémique",IF($H51<>0,$D51*($H51-$G51),0),$D51*$H51),0) -> 0 | R51: 0 | T51: 0 | V51: 48202 | W51: 242 | Y51: 14588 | Z51: 73 | AB51: 0 | AC51: 0
A52: =IF(AND(INTRO!$E$37="Non endémique",INTRO!$E$41="Non endémique")," ",IF(COUNTRY_INFO!A52=0," ",COUNTRY_INFO!A52)) -> Congo | B52: =IF(AND(INTRO!$E$37="Non endémique",INTRO!$E$41="Non endémique")," ",IF(COUNTRY_INFO!B52=0," ",COUNTRY_INFO!B52)) ->  | C52: =IF(AND(INTRO!$E$37="Non endémique",INTRO!$E$41="Non endémique")," ",IF(COUNTRY_INFO!C52=0," ",COUNTRY_INFO!C52)) ->  | D52: =IF(AND(INTRO!$E$37="Non endémique",INTRO!$E$41="Non endémique"),0,IF(AND(OR(COUNTRY_INFO!$H52=0,COUNTRY_INFO!$H52=4,COUNTRY_INFO!$H52=99),OR(COUNTRY_INFO!$J52=0,COUNTRY_INFO!$J52=4)),0,COUNTRY_INFO!$E52)) -> 0 | E52: =IF(AND(INTRO!$E$37="Non endémique",INTRO!$E$41="Non endémique"),0,IF(AND(OR(COUNTRY_INFO!$H52=0,COUNTRY_INFO!$H52=4,COUNTRY_INFO!$H52=99),OR(COUNTRY_INFO!$J52=0,COUNTRY_INFO!$J52=4)),0,COUNTRY_INFO!$F52)) -> 0 | F52: 0 | G52: =IF(AND(INTRO!$E$37="Non endémique",INTRO!$E$41="Non endémique"),0,COUNTRY_INFO!Q52) -> 0 | H52: =IF(AND(INTRO!$E$37="Non endémique",INTRO!$E$41="Non endémique"),0,COUNTRY_INFO!S52) -> 0 | I52: =IF($G52=1,IVM!$G52,0) -> 0 | J52: =IF($G52=0, " ", IF(COUNTRY_INFO!$H52=1, IF(COUNTRY_INFO!$L52=1, 0," ")," ")) ->  | L52: ALB | M52: =IF($L52="ALB", IF(INTRO!$E$39="Non endémique",IF($H52<>0,$D52*($H52-$G52),0),$D52*$H52), 0) -> 0 | N52: 0 | P52: 0 | Q52: =IF($L52="MBD", IF(INTRO!$E$39="Non endémique",IF($H52<>0,$D52*($H52-$G52),0),$D52*$H52),0) -> 0 | R52: 0 | T52: 0 | V52: 0 | W52: 0 | Y52: 0 | Z52: 0 | AB52: 0 | AC52: 0
A53: =IF(AND(INTRO!$E$37="Non endémique",INTRO!$E$41="Non endémique")," ",IF(COUNTRY_INFO!A53=0," ",COUNTRY_INFO!A53)) -> Congo | B53: =IF(AND(INTRO!$E$37="Non endémique",INTRO!$E$41="Non endémique")," ",IF(COUNTRY_INFO!B53=0," ",COUNTRY_INFO!B53)) ->  | C53: =IF(AND(INTRO!$E$37="Non endémique",INTRO!$E$41="Non endémique")," ",IF(COUNTRY_INFO!C53=0," ",COUNTRY_INFO!C53)) ->  | D53: =IF(AND(INTRO!$E$37="Non endémique",INTRO!$E$41="Non endémique"),0,IF(AND(OR(COUNTRY_INFO!$H53=0,COUNTRY_INFO!$H53=4,COUNTRY_INFO!$H53=99),OR(COUNTRY_INFO!$J53=0,COUNTRY_INFO!$J53=4)),0,COUNTRY_INFO!$E53)) -> 0 | E53: =IF(AND(INTRO!$E$37="Non endémique",INTRO!$E$41="Non endémique"),0,IF(AND(OR(COUNTRY_INFO!$H53=0,COUNTRY_INFO!$H53=4,COUNTRY_INFO!$H53=99),OR(COUNTRY_INFO!$J53=0,COUNTRY_INFO!$J53=4)),0,COUNTRY_INFO!$F53)) -> 0 | F53: 0 | G53: =IF(AND(INTRO!$E$37="Non endémique",INTRO!$E$41="Non endémique"),0,COUNTRY_INFO!Q53) -> 0 | H53: =IF(AND(INTRO!$E$37="Non endémique",INTRO!$E$41="Non endémique"),0,COUNTRY_INFO!S53) -> 0 | I53: =IF($G53=1,IVM!$G53,0) -> 0 | J53: =IF($G53=0, " ", IF(COUNTRY_INFO!$H53=1, IF(COUNTRY_INFO!$L53=1, 0," ")," ")) ->  | L53: ALB | M53: =IF($L53="ALB", IF(INTRO!$E$39="Non endémique",IF($H53<>0,$D53*($H53-$G53),0),$D53*$H53), 0) -> 0 | N53: 0 | P53: 0 | Q53: =IF($L53="MBD", IF(INTRO!$E$39="Non endémique",IF($H53<>0,$D53*($H53-$G53),0),$D53*$H53),0) -> 0 | R53: 0 | T53: 0 | V53: 0 | W53: 0 | Y53: 0 | Z53: 0 | AB53: 0 | AC53: 0

Sheet PZQ
A1: Praziquantel (PZQ)
A2: Structure administrative, population ciblée par groupe d'âge, plan de traitement et information sur les comprimés
A4: TOTAL | D4: =SUM(D$9:D$1000) -> 199667.06 | E4: =SUM(E$9:E$1000) -> 64759 | F4: =SUM(F$9:F$1000) -> 264426.06 | I4: =SUM(I$9:I$1000) -> 260401.22 | J4: 2042 | K4: 64759 | L4: 185555 | M4: 301990 | N4: 194277 | O4: 301990 | P4: 0 | Q4: 301990 | R4: 315
A6: Structure administrative du pays | D6: Population nécessitant un traitement avec PZQ | G6: Plan de traitement | I6: Population cible | M6: Praziquantel (PZQ)
A7: Pays | B7: Région/Département | C7: District | D7: EAS | E7: Adultes | F7: Total | G7: SCH | H7: Tous EAS ciblés ? | I7: EAS | J7: EAS à un niveau inférieur | K7: Adultes | L7: Total | M7: EAS | N7: Adultes | O7: Total requis pour EAS | P7: Reste en stock | Q7: Comprimés devant être fournis | R7: Flacons (600mg) 1000 comprimés
A9: =IF(INTRO!$E$43="Non endémique"," ", IF(COUNTRY_INFO!A9=0," ",COUNTRY_INFO!A9)) -> Congo | B9: =IF(INTRO!$E$43="Non endémique"," ", IF(COUNTRY_INFO!B9=0," ",COUNTRY_INFO!B9)) -> Bouenza | C9: =IF(INTRO!$E$43="Non endémique"," ", IF(COUNTRY_INFO!C9=0," ",COUNTRY_INFO!C9)) -> Loudima | D9: =IF(INTRO!$E$43="Non endémique", 0, IF(COUNTRY_INFO!$K9>0, IF(COUNTRY_INFO!$K9=4, 0, IF(COUNTRY_INFO!$K9=1, COUNTRY_INFO!$F9*0.33, IF(COUNTRY_INFO!$K9=2, COUNTRY_INFO!$F9*0.5, COUNTRY_INFO!$F9))), 0)) -> 11847.33 | E9: =IF(INTRO!$E$43="Non endémique", 0, IF(COUNTRY_INFO!$K9>0, IF(COUNTRY_INFO!$K9=4, 0, IF(COUNTRY_INFO!$K9=1, 0, IF(COUNTRY_INFO!$K9=2, COUNTRY_INFO!$G9*0.2, COUNTRY_INFO!$G9))), 0)) -> 0 | F9: =SUM(D9:E9) -> 11847.33 | G9: =IF(INTRO!$E$43="Non endémique", "Non requis", COUNTRY_INFO!T9) -> 1 | H9: Oui | I9: =IF($D9=0,0,IF(AND($G9>0,$H9<>"Oui"),D9,IF(AND($G9>0,$H9="Oui"),COUNTRY_INFO!$F9,0))) -> 35901 | K9: =IF($G9>0,E9, 0) -> 0 | L9: =IF($J9=0,SUM(I9,K9),SUM(J9,K9)) -> 35901 | M9: =IF($J9=0,$I9*2.5,$J9*2.5) -> 89752.5 | N9: =$K9*3 -> 0 | O9: =M9 -> 89752.5 | Q9: =IF($O9>$P9,O9-P9,0) -> 89752.5 | R9: =ROUNDUP($O9/1000,0) -> 90
A10: =IF(INTRO!$E$43="Non endémique"," ", IF(COUNTRY_INFO!A10=0," ",COUNTRY_INFO!A10)) -> Congo | B10: =IF(INTRO!$E$43="Non endémique"," ", IF(COUNTRY_INFO!B10=0," ",COUNTRY_INFO!B10)) -> Bouenza | C10: =IF(INTRO!$E$43="Non endémique"," ", IF(COUNTRY_INFO!C10=0," ",COUNTRY_INFO!C10)) -> Loutété | D10: =IF(INTRO!$E$43="Non endémique", 0, IF(COUNTRY_INFO!$K10>0, IF(COUNTRY_INFO!$K10=4, 0, IF(COUNTRY_INFO!$K10=1, COUNTRY_INFO!$F10*0.33, IF(COUNTRY_INFO!$K10=2, COUNTRY_INFO!$F10*0.5, COUNTRY_INFO!$F10))), 0)) -> 4466.55 | E10: =IF(INTRO!$E$43="Non endémique", 0, IF(COUNTRY_INFO!$K10>0, IF(COUNTRY_INFO!$K10=4, 0, IF(COUNTRY_INFO!$K10=1, 0, IF(COUNTRY_INFO!$K10=2, COUNTRY_INFO!$G10*0.2, COUNTRY_INFO!$G10))), 0)) -> 0 | F10: 4466.55 | G10: =IF(INTRO!$E$43="Non endémique", "Non requis", COUNTRY_INFO!T10) -> 1 | H10: Oui | I10: =IF($D10=0,0,IF(AND($G10>0,$H10<>"Oui"),D10,IF(AND($G10>0,$H10="Oui"),COUNTRY_INFO!$F10,0))) -> 13535 | K10: 0 | L10: 13535 | M10: 33837.5 | N10: 0 | O10: 33837.5 | Q10: 33837.5 | R10: 34
A11: =IF(INTRO!$E$43="Non endémique"," ", IF(COUNTRY_INFO!A11=0," ",COUNTRY_INFO!A11)) -> Congo | B11: =IF(INTRO!$E$43="Non endémique"," ", IF(COUNTRY_INFO!B11=0," ",COUNTRY_INFO!B11)) -> Bouenza | C11: =IF(INTRO!$E$43="Non endémique"," ", IF(COUNTRY_INFO!C11=0," ",COUNTRY_INFO!C11)) -> Madingou | D11: =IF(INTRO!$E$43="Non endémique", 0, IF(COUNTRY_INFO!$K11>0, IF(COUNTRY_INFO!$K11=4, 0, IF(COUNTRY_INFO!$K11=1, COUNTRY_INFO!$F11*0.33, IF(COUNTRY_INFO!$K11=2, COUNTRY_INFO!$F11*0.5, COUNTRY_INFO!$F11))), 0)) -> 8794.17 | E11: =IF(INTRO!$E$43="Non endémique", 0, IF(COUNTRY_INFO!$K11>0, IF(COUNTRY_INFO!$K11=4, 0, IF(COUNTRY_INFO!$K11=1, 0, IF(COUNTRY_INFO!$K11=2, COUNTRY_INFO!$G11*0.2, COUNTRY_INFO!$G11))), 0)) -> 0 | F11: 8794.17 | G11: =IF(INTRO!$E$43="Non endémique", "Non requis", COUNTRY_INFO!T11) -> 1 | I11: =IF($D11=0,0,IF(AND($G11>0,$H11<>"Oui"),D11,IF(AND($G11>0,$H11="Oui"),COUNTRY_INFO!$F11,0))) -> 8794.17 | J11: 100 | K11: 0 | L11: 100 | M11: 250 | N11: 0 | O11: 250 | Q11: 250 | R11: 1
A12: =IF(INTRO!$E$43="Non endémique"," ", IF(COUNTRY_INFO!A12=0," ",COUNTRY_INFO!A12)) -> Congo | B12: =IF(INTRO!$E$43="Non endémique"," ", IF(COUNTRY_INFO!B12=0," ",COUNTRY_INFO!B12)) -> Bouenza | C12: =IF(INTRO!$E$43="Non endémique"," ", IF(COUNTRY_INFO!C12=0," ",COUNTRY_INFO!C12)) -> Mouyondzi | D12: =IF(INTRO!$E$43="Non endémique", 0, IF(COUNTRY_INFO!$K12>0, IF(COUNTRY_INFO!$K12=4, 0, IF(COUNTRY_INFO!$K12=1, COUNTRY_INFO!$F12*0.33, IF(COUNTRY_INFO!$K12=2, COUNTRY_INFO!$F12*0.5, COUNTRY_INFO!$F12))), 0)) -> 6052.86 | E12: =IF(INTRO!$E$43="Non endémique", 0, IF(COUNTRY_INFO!$K12>0, IF(COUNTRY_INFO!$K12=4, 0, IF(COUNTRY_INFO!$K12=1, 0, IF(COUNTRY_INFO!$K12=2, COUNTRY_INFO!$G12*0.2, COUNTRY_INFO!$G12))), 0)) -> 0 | F12: 6052.86 | G12: =IF(INTRO!$E$43="Non endémique", "Non requis", COUNTRY_INFO!T12) -> 1 | H12: Oui | I12: =IF($D12=0,0,IF(AND($G12>0,$H12<>"Oui"),D12,IF(AND($G12>0,$H12="Oui"),COUNTRY_INFO!$F12,0))) -> 18342 | K12: 0 | L12: 18342 | M12: 45855 | N12: 0 | O12: 45855 | Q12: 45855 | R12: 46
A13: =IF(INTRO!$E$43="Non endémique"," ", IF(COUNTRY_INFO!A13=0," ",COUNTRY_INFO!A13)) -> Congo | B13: =IF(INTRO!$E$43="Non endémique"," ", IF(COUNTRY_INFO!B13=0," ",COUNTRY_INFO!B13)) -> Brazzaville | C13: =IF(INTRO!$E$43="Non endémique"," ", IF(COUNTRY_INFO!C13=0," ",COUNTRY_INFO!C13)) -> Bacongo | D13: =IF(INTRO!$E$43="Non endémique", 0, IF(COUNTRY_INFO!$K13>0, IF(COUNTRY_INFO!$K13=4, 0, IF(COUNTRY_INFO!$K13=1, COUNTRY_INFO!$F13*0.33, IF(COUNTRY_INFO!$K13=2, COUNTRY_INFO!$F13*0.5, COUNTRY_INFO!$F13))), 0)) -> 9969.63 | E13: =IF(INTRO!$E$43="Non endémique", 0, IF(COUNTRY_INFO!$K13>0, IF(COUNTRY_INFO!$K13=4, 0, IF(COUNTRY_INFO!$K13=1, 0, IF(COUNTRY_INFO!$K13=2, COUNTRY_INFO!$G13*0.2, COUNTRY_INFO!$G13))), 0)) -> 0 | F13: 9969.63 | G13: =IF(INTRO!$E$43="Non endémique", "Non requis", COUNTRY_INFO!T13) -> 1 | I13: =IF($D13=0,0,IF(AND($G13>0,$H13<>"Oui"),D13,IF(AND($G13>0,$H13="Oui"),COUNTRY_INFO!$F13,0))) -> 9969.63 | J13: 70 | K13: 0 | L13: 70 | M13: 175 | N13: 0 | O13: 175 | Q13: 175 | R13: 1
A14: =IF(INTRO!$E$43="Non endémique"," ", IF(COUNTRY_INFO!A14=0," ",COUNTRY_INFO!A14)) -> Congo | B14: =IF(INTRO!$E$43="Non endémique"," ", IF(COUNTRY_INFO!B14=0," ",COUNTRY_INFO!B14)) -> Brazzaville | C14: =IF(INTRO!$E$43="Non endémique"," ", IF(COUNTRY_INFO!C14=0," ",COUNTRY_INFO!C14)) -> Makélékélé | D14: =IF(INTRO!$E$43="Non endémique", 0, IF(COUNTRY_INFO!$K14>0, IF(COUNTRY_INFO!$K14=4, 0, IF(COUNTRY_INFO!$K14=1, COUNTRY_INFO!$F14*0.33, IF(COUNTRY_INFO!$K14=2, COUNTRY_INFO!$F14*0.5, COUNTRY_INFO!$F14))), 0)) -> 0 | E14: =IF(INTRO!$E$43="Non endémique", 0, IF(COUNTRY_INFO!$K14>0, IF(COUNTRY_INFO!$K14=4, 0, IF(COUNTRY_INFO!$K14=1, 0, IF(COUNTRY_INFO!$K14=2, COUNTRY_INFO!$G14*0.2, COUNTRY_INFO!$G14))), 0)) -> 0 | F14: 0 | G14: =IF(INTRO!$E$43="Non endémique", "Non requis", COUNTRY_INFO!T14) -> 0 | I14: =IF($D14=0,0,IF(AND($G14>0,$H14<>"Oui"),D14,IF(AND($G14>0,$H14="Oui"),COUNTRY_INFO!$F14,0))) -> 0 | K14: 0 | L14: 0 | M14: 0 | N14: 0 | O14: 0 | Q14: 0 | R14: 0
A15: =IF(INTRO!$E$43="Non endémique"," ", IF(COUNTRY_INFO!A15=0," ",COUNTRY_INFO!A15)) -> Congo | B15: =IF(INTRO!$E$43="Non endémique"," ", IF(COUNTRY_INFO!B15=0," ",COUNTRY_INFO!B15)) -> Brazzaville | C15: =IF(INTRO!$E$43="Non endémique"," ", IF(COUNTRY_INFO!C15=0," ",COUNTRY_INFO!C15)) -> Mfilou | D15: =IF(INTRO!$E$43="Non endémique", 0, IF(COUNTRY_INFO!$K15>0, IF(COUNTRY_INFO!$K15=4, 0, IF(COUNTRY_INFO!$K15=1, COUNTRY_INFO!$F15*0.33, IF(COUNTRY_INFO!$K15=2, COUNTRY_INFO!$F15*0.5, COUNTRY_INFO!$F15))), 0)) -> 0 | E15: =IF(INTRO!$E$43="Non endémique", 0, IF(COUNTRY_INFO!$K15>0, IF(COUNTRY_INFO!$K15=4, 0, IF(COUNTRY_INFO!$K15=1, 0, IF(COUNTRY_INFO!$K15=2, COUNTRY_INFO!$G15*0.2, COUNTRY_INFO!$G15))), 0)) -> 0 | F15: 0 | G15: =IF(INTRO!$E$43="Non endémique", "Non requis", COUNTRY_INFO!T15) -> 0 | I15: =IF($D15=0,0,IF(AND($G15>0,$H15<>"Oui"),D15,IF(AND($G15>0,$H15="Oui"),COUNTRY_INFO!$F15,0))) -> 0 | K15: 0 | L15: 0 | M15: 0 | N15: 0 | O15: 0 | Q15: 0 | R15: 0
A16: =IF(INTRO!$E$43="Non endémique"," ", IF(COUNTRY_INFO!A16=0," ",COUNTRY_INFO!A16)) -> Congo | B16: =IF(INTRO!$E$43="Non endémique"," ", IF(COUNTRY_INFO!B16=0," ",COUNTRY_INFO!B16)) -> Brazzaville | C16: =IF(INTRO!$E$43="Non endémique"," ", IF(COUNTRY_INFO!C16=0," ",COUNTRY_INFO!C16)) -> Moungali | D16: =IF(INTRO!$E$43="Non endémique", 0, IF(COUNTRY_INFO!$K16>0, IF(COUNTRY_INFO!$K16=4, 0, IF(COUNTRY_INFO!$K16=1, COUNTRY_INFO!$F16*0.33, IF(COUNTRY_INFO!$K16=2, COUNTRY_INFO!$F16*0.5, COUNTRY_INFO!$F16))), 0)) -> 16835.94 | E16: =IF(INTRO!$E$43="Non endémique", 0, IF(COUNTRY_INFO!$K16>0, IF(COUNTRY_INFO!$K16=4, 0, IF(COUNTRY_INFO!$K16=1, 0, IF(COUNTRY_INFO!$K16=2, COUNTRY_INFO!$G16*0.2, COUNTRY_INFO!$G16))), 0)) -> 0 | F16: 16835.94 | G16: =IF(INTRO!$E$43="Non endémique", "Non requis", COUNTRY_INFO!T16) -> 1 | I16: =IF($D16=0,0,IF(AND($G16>0,$H16<>"Oui"),D16,IF(AND($G16>0,$H16="Oui"),COUNTRY_INFO!$F16,0))) -> 16835.94 | J16: 168 | K16: 0 | L16: 168 | M16: 420 | N16: 0 | O16: 420 | Q16: 420 | R16: 1
A17: =IF(INTRO!$E$43="Non endémique"," ", IF(COUNTRY_INFO!A17=0," ",COUNTRY_INFO!A17)) -> Congo | B17: =IF(INTRO!$E$43="Non endémique"," ", IF(COUNTRY_INFO!B17=0," ",COUNTRY_INFO!B17)) -> Brazzaville | C17: =IF(INTRO!$E$43="Non endémique"," ", IF(COUNTRY_INFO!C17=0," ",COUNTRY_INFO!C17)) -> Ouenzé | D17: =IF(INTRO!$E$43="Non endémique", 0, IF(COUNTRY_INFO!$K17>0, IF(COUNTRY_INFO!$K17=4, 0, IF(COUNTRY_INFO!$K17=1, COUNTRY_INFO!$F17*0.33, IF(COUNTRY_INFO!$K17=2, COUNTRY_INFO!$F17*0.5, COUNTRY_INFO!$F17))), 0)) -> 18364.5 | E17: =IF(INTRO!$E$43="Non endémique", 0, IF(COUNTRY_INFO!$K17>0, IF(COUNTRY_INFO!$K17=4, 0, IF(COUNTRY_INFO!$K17=1, 0, IF(COUNTRY_INFO!$K17=2, COUNTRY_INFO!$G17*0.2, COUNTRY_INFO!$G17))), 0)) -> 0 | F17: 18364.5 | G17: =IF(INTRO!$E$43="Non endémique", "Non requis", COUNTRY_INFO!T17) -> 1 | I17: =IF($D17=0,0,IF(AND($G17>0,$H17<>"Oui"),D17,IF(AND($G17>0,$H17="Oui"),COUNTRY_INFO!$F17,0))) -> 18364.5 | J17: 55 | K17: 0 | L17: 55 | M17: 137.5 | N17: 0 | O17: 137.5 | Q17: 137.5 | R17: 1
A18: =IF(INTRO!$E$43="Non endémique"," ", IF(COUNTRY_INFO!A18=0," ",COUNTRY_INFO!A18)) -> Congo | B18: =IF(INTRO!$E$43="Non endémique"," ", IF(COUNTRY_INFO!B18=0," ",COUNTRY_INFO!B18)) -> Brazzaville | C18: =IF(INTRO!$E$43="Non endémique"," ", IF(COUNTRY_INFO!C18=0," ",COUNTRY_INFO!C18)) -> Poto-Poto | D18: =IF(INTRO!$E$43="Non endémique", 0, IF(COUNTRY_INFO!$K18>0, IF(COUNTRY_INFO!$K18=4, 0, IF(COUNTRY_INFO!$K18=1, COUNTRY_INFO!$F18*0.33, IF(COUNTRY_INFO!$K18=2, COUNTRY_INFO!$F18*0.5, COUNTRY_INFO!$F18))), 0)) -> 0 | E18: =IF(INTRO!$E$43="Non endémique", 0, IF(COUNTRY_INFO!$K18>0, IF(COUNTRY_INFO!$K18=4, 0, IF(COUNTRY_INFO!$K18=1, 0, IF(COUNTRY_INFO!$K18=2, COUNTRY_INFO!$G18*0.2, COUNTRY_INFO!$G18))), 0)) -> 0 | F18: 0 | G18: =IF(INTRO!$E$43="Non endémique", "Non requis", COUNTRY_INFO!T18) -> 0 | I18: =IF($D18=0,0,IF(AND($G18>0,$H18<>"Oui"),D18,IF(AND($G18>0,$H18="Oui"),COUNTRY_INFO!$F18,0))) -> 0 | K18: 0 | L18: 0 | M18: 0 | N18: 0 | O18: 0 | Q18: 0 | R18: 0
A19: =IF(INTRO!$E$43="Non endémique"," ", IF(COUNTRY_INFO!A19=0," ",COUNTRY_INFO!A19)) -> Congo | B19: =IF(INTRO!$E$43="Non endémique"," ", IF(COUNTRY_INFO!B19=0," ",COUNTRY_INFO!B19)) -> Brazzaville | C19: =IF(INTRO!$E$43="Non endémique"," ", IF(COUNTRY_INFO!C19=0," ",COUNTRY_INFO!C19)) -> Talangaî | D19: =IF(INTRO!$E$43="Non endémique", 0, IF(COUNTRY_INFO!$K19>0, IF(COUNTRY_INFO!$K19=4, 0, IF(COUNTRY_INFO!$K19=1, COUNTRY_INFO!$F19*0.33, IF(COUNTRY_INFO!$K19=2, COUNTRY_INFO!$F19*0.5, COUNTRY_INFO!$F19))), 0)) -> 0 | E19: =IF(INTRO!$E$43="Non endémique", 0, IF(COUNTRY_INFO!$K19>0, IF(COUNTRY_INFO!$K19=4, 0, IF(COUNTRY_INFO!$K19=1, 0, IF(COUNTRY_INFO!$K19=2, COUNTRY_INFO!$G19*0.2, COUNTRY_INFO!$G19))), 0)) -> 0 | F19: 0 | G19: =IF(INTRO!$E$43="Non endémique", "Non requis", COUNTRY_INFO!T19) -> 0 | I19: =IF($D19=0,0,IF(AND($G19>0,$H19<>"Oui"),D19,IF(AND($G19>0,$H19="Oui"),COUNTRY_INFO!$F19,0))) -> 0 | K19: 0 | L19: 0 | M19: 0 | N19: 0 | O19: 0 | Q19: 0 | R19: 0
A20: =IF(INTRO!$E$43="Non endémique"," ", IF(COUNTRY_INFO!A20=0," ",COUNTRY_INFO!A20)) -> Congo | B20: =IF(INTRO!$E$43="Non endémique"," ", IF(COUNTRY_INFO!B20=0," ",COUNTRY_INFO!B20)) -> Brazzaville | C20: =IF(INTRO!$E$43="Non endémique"," ", IF(COUNTRY_INFO!C20=0," ",COUNTRY_INFO!C20)) -> Madibou | D20: =IF(INTRO!$E$43="Non endémique", 0, IF(COUNTRY_INFO!$K20>0, IF(COUNTRY_INFO!$K20=4, 0, IF(COUNTRY_INFO!$K20=1, COUNTRY_INFO!$F20*0.33, IF(COUNTRY_INFO!$K20=2, COUNTRY_INFO!$F20*0.5, COUNTRY_INFO!$F20))), 0)) -> 0 | E20: =IF(INTRO!$E$43="Non endémique", 0, IF(COUNTRY_INFO!$K20>0, IF(COUNTRY_INFO!$K20=4, 0, IF(COUNTRY_INFO!$K20=1, 0, IF(COUNTRY_INFO!$K20=2, COUNTRY_INFO!$G20*0.2, COUNTRY_INFO!$G20))), 0)) -> 0 | F20: 0 | G20: =IF(INTRO!$E$43="Non endémique", "Non requis", COUNTRY_INFO!T20) -> 0 | I20: =IF($D20=0,0,IF(AND($G20>0,$H20<>"Oui"),D20,IF(AND($G20>0,$H20="Oui"),COUNTRY_INFO!$F20,0))) -> 0 | K20: 0 | L20: 0 | M20: 0 | N20: 0 | O20: 0 | Q20: 0 | R20: 0
A21: =IF(INTRO!$E$43="Non endémique"," ", IF(COUNTRY_INFO!A21=0," ",COUNTRY_INFO!A21)) -> Congo | B21: =IF(INTRO!$E$43="Non endémique"," ", IF(COUNTRY_INFO!B21=0," ",COUNTRY_INFO!B21)) -> Brazzaville | C21: =IF(INTRO!$E$43="Non endémique"," ", IF(COUNTRY_INFO!C21=0," ",COUNTRY_INFO!C21)) -> Djiri | D21: =IF(INTRO!$E$43="Non endémique", 0, IF(COUNTRY_INFO!$K21>0, IF(COUNTRY_INFO!$K21=4, 0, IF(COUNTRY_INFO!$K21=1, COUNTRY_INFO!$F21*0.33, IF(COUNTRY_INFO!$K21=2, COUNTRY_INFO!$F21*0.5, COUNTRY_INFO!$F21))), 0)) -> 0 | E21: =IF(INTRO!$E$43="Non endémique", 0, IF(COUNTRY_INFO!$K21>0, IF(COUNTRY_INFO!$K21=4, 0, IF(COUNTRY_INFO!$K21=1, 0, IF(COUNTRY_INFO!$K21=2, COUNTRY_INFO!$G21*0.2, COUNTRY_INFO!$G21))), 0)) -> 0 | F21: 0 | G21: =IF(INTRO!$E$43="Non endémique", "Non requis", COUNTRY_INFO!T21) -> 0 | I21: =IF($D21=0,0,IF(AND($G21>0,$H21<>"Oui"),D21,IF(AND($G21>0,$H21="Oui"),COUNTRY_INFO!$F21,0))) -> 0 | K21: 0 | L21: 0 | M21: 0 | N21: 0 | O21: 0 | Q21: 0 | R21: 0
A22: =IF(INTRO!$E$43="Non endémique"," ", IF(COUNTRY_INFO!A22=0," ",COUNTRY_INFO!A22)) -> Congo | B22: =IF(INTRO!$E$43="Non endémique"," ", IF(COUNTRY_INFO!B22=0," ",COUNTRY_INFO!B22)) -> Cuvette | C22: =IF(INTRO!$E$43="Non endémique"," ", IF(COUNTRY_INFO!C22=0," ",COUNTRY_INFO!C22)) -> Mossaka Loukoléla | D22: =IF(INTRO!$E$43="Non endémique", 0, IF(COUNTRY_INFO!$K22>0, IF(COUNTRY_INFO!$K22=4, 0, IF(COUNTRY_INFO!$K22=1, COUNTRY_INFO!$F22*0.33, IF(COUNTRY_INFO!$K22=2, COUNTRY_INFO!$F22*0.5, COUNTRY_INFO!$F22))), 0)) -> 4746.72 | E22: =IF(INTRO!$E$43="Non endémique", 0, IF(COUNTRY_INFO!$K22>0, IF(COUNTRY_INFO!$K22=4, 0, IF(COUNTRY_INFO!$K22=1, 0, IF(COUNTRY_INFO!$K22=2, COUNTRY_INFO!$G22*0.2, COUNTRY_INFO!$G22))), 0)) -> 0 | F22: 4746.72 | G22: =IF(INTRO!$E$43="Non endémique", "Non requis", COUNTRY_INFO!T22) -> 1 | I22: =IF($D22=0,0,IF(AND($G22>0,$H22<>"Oui"),D22,IF(AND($G22>0,$H22="Oui"),COUNTRY_INFO!$F22,0))) -> 4746.72 | J22: 28 | K22: 0 | L22: 28 | M22: 70 | N22: 0 | O22: 70 | Q22: 70 | R22: 1
A23: =IF(INTRO!$E$43="Non endémique"," ", IF(COUNTRY_INFO!A23=0," ",COUNTRY_INFO!A23)) -> Congo | B23: =IF(INTRO!$E$43="Non endémique"," ", IF(COUNTRY_INFO!B23=0," ",COUNTRY_INFO!B23)) -> Cuvette | C23: =IF(INTRO!$E$43="Non endémique"," ", IF(COUNTRY_INFO!C23=0," ",COUNTRY_INFO!C23)) -> Owando | D23: =IF(INTRO!$E$43="Non endémique", 0, IF(COUNTRY_INFO!$K23>0, IF(COUNTRY_INFO!$K23=4, 0, IF(COUNTRY_INFO!$K23=1, COUNTRY_INFO!$F23*0.33, IF(COUNTRY_INFO!$K23=2, COUNTRY_INFO!$F23*0.5, COUNTRY_INFO!$F23))), 0)) -> 6963.66 | E23: =IF(INTRO!$E$43="Non endémique", 0, IF(COUNTRY_INFO!$K23>0, IF(COUNTRY_INFO!$K23=4, 0, IF(COUNTRY_INFO!$K23=1, 0, IF(COUNTRY_INFO!$K23=2, COUNTRY_INFO!$G23*0.2, COUNTRY_INFO!$G23))), 0)) -> 0 | F23: 6963.66 | G23: =IF(INTRO!$E$43="Non endémique", "Non requis", COUNTRY_INFO!T23) -> 1 | I23: =IF($D23=0,0,IF(AND($G23>0,$H23<>"Oui"),D23,IF(AND($G23>0,$H23="Oui"),COUNTRY_INFO!$F23,0))) -> 6963.66 | J23: 42 | K23: 0 | L23: 42 | M23: 105 | N23: 0 | O23: 105 | Q23: 105 | R23: 1
A24: =IF(INTRO!$E$43="Non endémique"," ", IF(COUNTRY_INFO!A24=0," ",COUNTRY_INFO!A24)) -> Congo | B24: =IF(INTRO!$E$43="Non endémique"," ", IF(COUNTRY_INFO!B24=0," ",COUNTRY_INFO!B24)) -> Cuvette | C24: =IF(INTRO!$E$43="Non endémique"," ", IF(COUNTRY_INFO!C24=0," ",COUNTRY_INFO!C24)) -> Oyo | D24: =IF(INTRO!$E$43="Non endémique", 0, IF(COUNTRY_INFO!$K24>0, IF(COUNTRY_INFO!$K24=4, 0, IF(COUNTRY_INFO!$K24=1, COUNTRY_INFO!$F24*0.33, IF(COUNTRY_INFO!$K24=2, COUNTRY_INFO!$F24*0.5, COUNTRY_INFO!$F24))), 0)) -> 0 | E24: =IF(INTRO!$E$43="Non endémique", 0, IF(COUNTRY_INFO!$K24>0, IF(COUNTRY_INFO!$K24=4, 0, IF(COUNTRY_INFO!$K24=1, 0, IF(COUNTRY_INFO!$K24=2, COUNTRY_INFO!$G24*0.2, COUNTRY_INFO!$G24))), 0)) -> 0 | F24: 0 | G24: =IF(INTRO!$E$43="Non endémique", "Non requis", COUNTRY_INFO!T24) -> 0 | I24: =IF($D24=0,0,IF(AND($G24>0,$H24<>"Oui"),D24,IF(AND($G24>0,$H24="Oui"),COUNTRY_INFO!$F24,0))) -> 0 | K24: 0 | L24: 0 | M24: 0 | N24: 0 | O24: 0 | Q24: 0 | R24: 0
A25: =IF(INTRO!$E$43="Non endémique"," ", IF(COUNTRY_INFO!A25=0," ",COUNTRY_INFO!A25)) -> Congo | B25: =IF(INTRO!$E$43="Non endémique"," ", IF(COUNTRY_INFO!B25=0," ",COUNTRY_INFO!B25)) -> Cuvette-Ouest | C25: =IF(INTRO!$E$43="Non endémique"," ", IF(COUNTRY_INFO!C25=0," ",COUNTRY_INFO!C25)) -> Etoumbi | D25: =IF(INTRO!$E$43="Non endémique", 0, IF(COUNTRY_INFO!$K25>0, IF(COUNTRY_INFO!$K25=4, 0, IF(COUNTRY_INFO!$K25=1, COUNTRY_INFO!$F25*0.33, IF(COUNTRY_INFO!$K25=2, COUNTRY_INFO!$F25*0.5, COUNTRY_INFO!$F25))), 0)) -> 0 | E25: =IF(INTRO!$E$43="Non endémique", 0, IF(COUNTRY_INFO!$K25>0, IF(COUNTRY_INFO!$K25=4, 0, IF(COUNTRY_INFO!$K25=1, 0, IF(COUNTRY_INFO!$K25=2, COUNTRY_INFO!$G25*0.2, COUNTRY_INFO!$G25))), 0)) -> 0 | F25: 0 | G25: =IF(INTRO!$E$43="Non endémique", "Non requis", COUNTRY_INFO!T25) -> 0 | I25: =IF($D25=0,0,IF(AND($G25>0,$H25<>"Oui"),D25,IF(AND($G25>0,$H25="Oui"),COUNTRY_INFO!$F25,0))) -> 0 | K25: 0 | L25: 0 | M25: 0 | N25: 0 | O25: 0 | Q25: 0 | R25: 0
A26: =IF(INTRO!$E$43="Non endémique"," ", IF(COUNTRY_INFO!A26=0," ",COUNTRY_INFO!A26)) -> Congo | B26: =IF(INTRO!$E$43="Non endémique"," ", IF(COUNTRY_INFO!B26=0," ",COUNTRY_INFO!B26)) -> Cuvette-Ouest | C26: =IF(INTRO!$E$43="Non endémique"," ", IF(COUNTRY_INFO!C26=0," ",COUNTRY_INFO!C26)) -> Ewo | D26: =IF(INTRO!$E$43="Non endémique", 0, IF(COUNTRY_INFO!$K26>0, IF(COUNTRY_INFO!$K26=4, 0, IF(COUNTRY_INFO!$K26=1, COUNTRY_INFO!$F26*0.33, IF(COUNTRY_INFO!$K26=2, COUNTRY_INFO!$F26*0.5, COUNTRY_INFO!$F26))), 0)) -> 3855.72 | E26: =IF(INTRO!$E$43="Non endémique", 0, IF(COUNTRY_INFO!$K26>0, IF(COUNTRY_INFO!$K26=4, 0, IF(COUNTRY_INFO!$K26=1, 0, IF(COUNTRY_INFO!$K26=2, COUNTRY_INFO!$G26*0.2, COUNTRY_INFO!$G26))), 0)) -> 0 | F26: 3855.72 | G26: =IF(INTRO!$E$43="Non endémique", "Non requis", COUNTRY_INFO!T26) -> 1 | I26: =IF($D26=0,0,IF(AND($G26>0,$H26<>"Oui"),D26,IF(AND($G26>0,$H26="Oui"),COUNTRY_INFO!$F26,0))) -> 3855.72 | J26: 23 | K26: 0 | L26: 23 | M26: 57.5 | N26: 0 | O26: 57.5 | Q26: 57.5 | R26: 1
A27: =IF(INTRO!$E$43="Non endémique"," ", IF(COUNTRY_INFO!A27=0," ",COUNTRY_INFO!A27)) -> Congo | B27: =IF(INTRO!$E$43="Non endémique"," ", IF(COUNTRY_INFO!B27=0," ",COUNTRY_INFO!B27)) -> Kouilou | C27: =IF(INTRO!$E$43="Non endémique"," ", IF(COUNTRY_INFO!C27=0," ",COUNTRY_INFO!C27)) -> Hinda-Mvouti | D27: =IF(INTRO!$E$43="Non endémique", 0, IF(COUNTRY_INFO!$K27>0, IF(COUNTRY_INFO!$K27=4, 0, IF(COUNTRY_INFO!$K27=1, COUNTRY_INFO!$F27*0.33, IF(COUNTRY_INFO!$K27=2, COUNTRY_INFO!$F27*0.5, COUNTRY_INFO!$F27))), 0)) -> 20699 | E27: =IF(INTRO!$E$43="Non endémique", 0, IF(COUNTRY_INFO!$K27>0, IF(COUNTRY_INFO!$K27=4, 0, IF(COUNTRY_INFO!$K27=1, 0, IF(COUNTRY_INFO!$K27=2, COUNTRY_INFO!$G27*0.2, COUNTRY_INFO!$G27))), 0)) -> 47693 | F27: 68392 | G27: =IF(INTRO!$E$43="Non endémique", "Non requis", COUNTRY_INFO!T27) -> 1 | H27: Oui | I27: =IF($D27=0,0,IF(AND($G27>0,$H27<>"Oui"),D27,IF(AND($G27>0,$H27="Oui"),COUNTRY_INFO!$F27,0))) -> 20699 | K27: 47693 | L27: 68392 | M27: 51747.5 | N27: 143079 | O27: 51747.5 | Q27: 51747.5 | R27: 52
A28: =IF(INTRO!$E$43="Non endémique"," ", IF(COUNTRY_INFO!A28=0," ",COUNTRY_INFO!A28)) -> Congo | B28: =IF(INTRO!$E$43="Non endémique"," ", IF(COUNTRY_INFO!B28=0," ",COUNTRY_INFO!B28)) -> Kouilou | C28: =IF(INTRO!$E$43="Non endémique"," ", IF(COUNTRY_INFO!C28=0," ",COUNTRY_INFO!C28)) -> Madingo Kayes | D28: =IF(INTRO!$E$43="Non endémique", 0, IF(COUNTRY_INFO!$K28>0, IF(COUNTRY_INFO!$K28=4, 0, IF(COUNTRY_INFO!$K28=1, COUNTRY_INFO!$F28*0.33, IF(COUNTRY_INFO!$K28=2, COUNTRY_INFO!$F28*0.5, COUNTRY_INFO!$F28))), 0)) -> 7407 | E28: =IF(INTRO!$E$43="Non endémique", 0, IF(COUNTRY_INFO!$K28>0, IF(COUNTRY_INFO!$K28=4, 0, IF(COUNTRY_INFO!$K28=1, 0, IF(COUNTRY_INFO!$K28=2, COUNTRY_INFO!$G28*0.2, COUNTRY_INFO!$G28))), 0)) -> 17066 | F28: 24473 | G28: =IF(INTRO!$E$43="Non endémique", "Non requis", COUNTRY_INFO!T28) -> 1 | H28: Oui | I28: =IF($D28=0,0,IF(AND($G28>0,$H28<>"Oui"),D28,IF(AND($G28>0,$H28="Oui"),COUNTRY_INFO!$F28,0))) -> 7407 | K28: 17066 | L28: 24473 | M28: 18517.5 | N28: 51198 | O28: 18517.5 | Q28: 18517.5 | R28: 19
A29: =IF(INTRO!$E$43="Non endémique"," ", IF(COUNTRY_INFO!A29=0," ",COUNTRY_INFO!A29)) -> Congo | B29: =IF(INTRO!$E$43="Non endémique"," ", IF(COUNTRY_INFO!B29=0," ",COUNTRY_INFO!B29)) -> Lékoumou | C29: =IF(INTRO!$E$43="Non endémique"," ", IF(COUNTRY_INFO!C29=0," ",COUNTRY_INFO!C29)) -> Sibiti | D29: =IF(INTRO!$E$43="Non endémique", 0, IF(COUNTRY_INFO!$K29>0, IF(COUNTRY_INFO!$K29=4, 0, IF(COUNTRY_INFO!$K29=1, COUNTRY_INFO!$F29*0.33, IF(COUNTRY_INFO!$K29=2, COUNTRY_INFO!$F29*0.5, COUNTRY_INFO!$F29))), 0)) -> 7547.1 | E29: =IF(INTRO!$E$43="Non endémique", 0, IF(COUNTRY_INFO!$K29>0, IF(COUNTRY_INFO!$K29=4, 0, IF(COUNTRY_INFO!$K29=1, 0, IF(COUNTRY_INFO!$K29=2, COUNTRY_INFO!$G29*0.2, COUNTRY_INFO!$G29))), 0)) -> 0 | F29: 7547.1 | G29: =IF(INTRO!$E$43="Non endémique", "Non requis", COUNTRY_INFO!T29) -> 1 | H29: Oui | I29: =IF($D29=0,0,IF(AND($G29>0,$H29<>"Oui"),D29,IF(AND($G29>0,$H29="Oui"),COUNTRY_INFO!$F29,0))) -> 22870 | K29: 0 | L29: 22870 | M29: 57175 | N29: 0 | O29: 57175 | Q29: 57175 | R29: 58
A30: =IF(INTRO!$E$43="Non endémique"," ", IF(COUNTRY_INFO!A30=0," ",COUNTRY_INFO!A30)) -> Congo | B30: =IF(INTRO!$E$43="Non endémique"," ", IF(COUNTRY_INFO!B30=0," ",COUNTRY_INFO!B30)) -> Lékoumou | C30: =IF(INTRO!$E$43="Non endémique"," ", IF(COUNTRY_INFO!C30=0," ",COUNTRY_INFO!C30)) -> Zanaga | D30: =IF(INTRO!$E$43="Non endémique", 0, IF(COUNTRY_INFO!$K30>0, IF(COUNTRY_INFO!$K30=4, 0, IF(COUNTRY_INFO!$K30=1, COUNTRY_INFO!$F30*0.33, IF(COUNTRY_INFO!$K30=2, COUNTRY_INFO!$F30*0.5, COUNTRY_INFO!$F30))), 0)) -> 0 | E30: =IF(INTRO!$E$43="Non endémique", 0, IF(COUNTRY_INFO!$K30>0, IF(COUNTRY_INFO!$K30=4, 0, IF(COUNTRY_INFO!$K30=1, 0, IF(COUNTRY_INFO!$K30=2, COUNTRY_INFO!$G30*0.2, COUNTRY_INFO!$G30))), 0)) -> 0 | F30: 0 | G30: =IF(INTRO!$E$43="Non endémique", "Non requis", COUNTRY_INFO!T30) -> 0 | I30: =IF($D30=0,0,IF(AND($G30>0,$H30<>"Oui"),D30,IF(AND($G30>0,$H30="Oui"),COUNTRY_INFO!$F30,0))) -> 0 | K30: 0 | L30: 0 | M30: 0 | N30: 0 | O30: 0 | Q30: 0 | R30: 0
A31: =IF(INTRO!$E$43="Non endémique"," ", IF(COUNTRY_INFO!A31=0," ",COUNTRY_INFO!A31)) -> Congo | B31: =IF(INTRO!$E$43="Non endémique"," ", IF(COUNTRY_INFO!B31=0," ",COUNTRY_INFO!B31)) -> Likouala | C31: =IF(INTRO!$E$43="Non endémique"," ", IF(COUNTRY_INFO!C31=0," ",COUNTRY_INFO!C31)) -> Bétou | D31: =IF(INTRO!$E$43="Non endémique", 0, IF(COUNTRY_INFO!$K31>0, IF(COUNTRY_INFO!$K31=4, 0, IF(COUNTRY_INFO!$K31=1, COUNTRY_INFO!$F31*0.33, IF(COUNTRY_INFO!$K31=2, COUNTRY_INFO!$F31*0.5, COUNTRY_INFO!$F31))), 0)) -> 0 | E31: =IF(INTRO!$E$43="Non endémique", 0, IF(COUNTRY_INFO!$K31>0, IF(COUNTRY_INFO!$K31=4, 0, IF(COUNTRY_INFO!$K31=1, 0, IF(COUNTRY_INFO!$K31=2, COUNTRY_INFO!$G31*0.2, COUNTRY_INFO!$G31))), 0)) -> 0 | F31: 0 | G31: =IF(INTRO!$E$43="Non endémique", "Non requis", COUNTRY_INFO!T31) -> 0 | I31: =IF($D31=0,0,IF(AND($G31>0,$H31<>"Oui"),D31,IF(AND($G31>0,$H31="Oui"),COUNTRY_INFO!$F31,0))) -> 0 | K31: 0 | L31: 0 | M31: 0 | N31: 0 | O31: 0 | Q31: 0 | R31: 0
A32: =IF(INTRO!$E$43="Non endémique"," ", IF(COUNTRY_INFO!A32=0," ",COUNTRY_INFO!A32)) -> Congo | B32: =IF(INTRO!$E$43="Non endémique"," ", IF(COUNTRY_INFO!B32=0," ",COUNTRY_INFO!B32)) -> Likouala | C32: =IF(INTRO!$E$43="Non endémique"," ", IF(COUNTRY_INFO!C32=0," ",COUNTRY_INFO!C32)) -> Impfondo | D32: =IF(INTRO!$E$43="Non endémique", 0, IF(COUNTRY_INFO!$K32>0, IF(COUNTRY_INFO!$K32=4, 0, IF(COUNTRY_INFO!$K32=1, COUNTRY_INFO!$F32*0.33, IF(COUNTRY_INFO!$K32=2, COUNTRY_INFO!$F32*0.5, COUNTRY_INFO!$F32))), 0)) -> 0 | E32: =IF(INTRO!$E$43="Non endémique", 0, IF(COUNTRY_INFO!$K32>0, IF(COUNTRY_INFO!$K32=4, 0, IF(COUNTRY_INFO!$K32=1, 0, IF(COUNTRY_INFO!$K32=2, COUNTRY_INFO!$G32*0.2, COUNTRY_INFO!$G32))), 0)) -> 0 | F32: 0 | G32: =IF(INTRO!$E$43="Non endémique", "Non requis", COUNTRY_INFO!T32) -> 0 | I32: =IF($D32=0,0,IF(AND($G32>0,$H32<>"Oui"),D32,IF(AND($G32>0,$H32="Oui"),COUNTRY_INFO!$F32,0))) -> 0 | K32: 0 | L32: 0 | M32: 0 | N32: 0 | O32: 0 | Q32: 0 | R32: 0
A33: =IF(INTRO!$E$43="Non endémique"," ", IF(COUNTRY_INFO!A33=0," ",COUNTRY_INFO!A33)) -> Congo | B33: =IF(INTRO!$E$43="Non endémique"," ", IF(COUNTRY_INFO!B33=0," ",COUNTRY_INFO!B33)) -> Niari | C33: =IF(INTRO!$E$43="Non endémique"," ", IF(COUNTRY_INFO!C33=0," ",COUNTRY_INFO!C33)) -> Dolisie | D33: =IF(INTRO!$E$43="Non endémique", 0, IF(COUNTRY_INFO!$K33>0, IF(COUNTRY_INFO!$K33=4, 0, IF(COUNTRY_INFO!$K33=1, COUNTRY_INFO!$F33*0.33, IF(COUNTRY_INFO!$K33=2, COUNTRY_INFO!$F33*0.5, COUNTRY_INFO!$F33))), 0)) -> 14022.69 | E33: =IF(INTRO!$E$43="Non endémique", 0, IF(COUNTRY_INFO!$K33>0, IF(COUNTRY_INFO!$K33=4, 0, IF(COUNTRY_INFO!$K33=1, 0, IF(COUNTRY_INFO!$K33=2, COUNTRY_INFO!$G33*0.2, COUNTRY_INFO!$G33))), 0)) -> 0 | F33: 14022.69 | G33: =IF(INTRO!$E$43="Non endémique", "Non requis", COUNTRY_INFO!T33) -> 1 | I33: =IF($D33=0,0,IF(AND($G33>0,$H33<>"Oui"),D33,IF(AND($G33>0,$H33="Oui"),COUNTRY_INFO!$F33,0))) -> 14022.69 | J33: 491 | K33: 0 | L33: 491 | M33: 1227.5 | N33: 0 | O33: 1227.5 | Q33: 1227.5 | R33: 2
A34: =IF(INTRO!$E$43="Non endémique"," ", IF(COUNTRY_INFO!A34=0," ",COUNTRY_INFO!A34)) -> Congo | B34: =IF(INTRO!$E$43="Non endémique"," ", IF(COUNTRY_INFO!B34=0," ",COUNTRY_INFO!B34)) -> Niari | C34: =IF(INTRO!$E$43="Non endémique"," ", IF(COUNTRY_INFO!C34=0," ",COUNTRY_INFO!C34)) -> Kibangou | D34: =IF(INTRO!$E$43="Non endémique", 0, IF(COUNTRY_INFO!$K34>0, IF(COUNTRY_INFO!$K34=4, 0, IF(COUNTRY_INFO!$K34=1, COUNTRY_INFO!$F34*0.33, IF(COUNTRY_INFO!$K34=2, COUNTRY_INFO!$F34*0.5, COUNTRY_INFO!$F34))), 0)) -> 0 | E34: =IF(INTRO!$E$43="Non endémique", 0, IF(COUNTRY_INFO!$K34>0, IF(COUNTRY_INFO!$K34=4, 0, IF(COUNTRY_INFO!$K34=1, 0, IF(COUNTRY_INFO!$K34=2, COUNTRY_INFO!$G34*0.2, COUNTRY_INFO!$G34))), 0)) -> 0 | F34: 0 | G34: =IF(INTRO!$E$43="Non endémique", "Non requis", COUNTRY_INFO!T34) -> 0 | I34: =IF($D34=0,0,IF(AND($G34>0,$H34<>"Oui"),D34,IF(AND($G34>0,$H34="Oui"),COUNTRY_INFO!$F34,0))) -> 0 | K34: 0 | L34: 0 | M34: 0 | N34: 0 | O34: 0 | Q34: 0 | R34: 0
A35: =IF(INTRO!$E$43="Non endémique"," ", IF(COUNTRY_INFO!A35=0," ",COUNTRY_INFO!A35)) -> Congo | B35: =IF(INTRO!$E$43="Non endémique"," ", IF(COUNTRY_INFO!B35=0," ",COUNTRY_INFO!B35)) -> Niari | C35: =IF(INTRO!$E$43="Non endémique"," ", IF(COUNTRY_INFO!C35=0," ",COUNTRY_INFO!C35)) -> Mossendjo | D35: =IF(INTRO!$E$43="Non endémique", 0, IF(COUNTRY_INFO!$K35>0, IF(COUNTRY_INFO!$K35=4, 0, IF(COUNTRY_INFO!$K35=1, COUNTRY_INFO!$F35*0.33, IF(COUNTRY_INFO!$K35=2, COUNTRY_INFO!$F35*0.5, COUNTRY_INFO!$F35))), 0)) -> 0 | E35: =IF(INTRO!$E$43="Non endémique", 0, IF(COUNTRY_INFO!$K35>0, IF(COUNTRY_INFO!$K35=4, 0, IF(COUNTRY_INFO!$K35=1, 0, IF(COUNTRY_INFO!$K35=2, COUNTRY_INFO!$G35*0.2, COUNTRY_INFO!$G35))), 0)) -> 0 | F35: 0 | G35: =IF(INTRO!$E$43="Non endémique", "Non requis", COUNTRY_INFO!T35) -> 0 | I35: =IF($D35=0,0,IF(AND($G35>0,$H35<>"Oui"),D35,IF(AND($G35>0,$H35="Oui"),COUNTRY_INFO!$F35,0))) -> 0 | K35: 0 | L35: 0 | M35: 0 | N35: 0 | O35: 0 | Q35: 0 | R35: 0
A36: =IF(INTRO!$E$43="Non endémique"," ", IF(COUNTRY_INFO!A36=0," ",COUNTRY_INFO!A36)) -> Congo | B36: =IF(INTRO!$E$43="Non endémique"," ", IF(COUNTRY_INFO!B36=0," ",COUNTRY_INFO!B36)) -> Plateaux | C36: =IF(INTRO!$E$43="Non endémique"," ", IF(COUNTRY_INFO!C36=0," ",COUNTRY_INFO!C36)) -> Abala | D36: =IF(INTRO!$E$43="Non endémique", 0, IF(COUNTRY_INFO!$K36>0, IF(COUNTRY_INFO!$K36=4, 0, IF(COUNTRY_INFO!$K36=1, COUNTRY_INFO!$F36*0.33, IF(COUNTRY_INFO!$K36=2, COUNTRY_INFO!$F36*0.5, COUNTRY_INFO!$F36))), 0)) -> 0 | E36: =IF(INTRO!$E$43="Non endémique", 0, IF(COUNTRY_INFO!$K36>0, IF(COUNTRY_INFO!$K36=4, 0, IF(COUNTRY_INFO!$K36=1, 0, IF(COUNTRY_INFO!$K36=2, COUNTRY_INFO!$G36*0.2, COUNTRY_INFO!$G36))), 0)) -> 0 | F36: 0 | G36: =IF(INTRO!$E$43="Non endémique", "Non requis", COUNTRY_INFO!T36) -> 0 | I36: =IF($D36=0,0,IF(AND($G36>0,$H36<>"Oui"),D36,IF(AND($G36>0,$H36="Oui"),COUNTRY_INFO!$F36,0))) -> 0 | K36: 0 | L36: 0 | M36: 0 | N36: 0 | O36: 0 | Q36: 0 | R36: 0
A37: =IF(INTRO!$E$43="Non endémique"," ", IF(COUNTRY_INFO!A37=0," ",COUNTRY_INFO!A37)) -> Congo | B37: =IF(INTRO!$E$43="Non endémique"," ", IF(COUNTRY_INFO!B37=0," ",COUNTRY_INFO!B37)) -> Plateaux | C37: =IF(INTRO!$E$43="Non endémique"," ", IF(COUNTRY_INFO!C37=0," ",COUNTRY_INFO!C37)) -> Djambala-Lékana | D37: =IF(INTRO!$E$43="Non endémique", 0, IF(COUNTRY_INFO!$K37>0, IF(COUNTRY_INFO!$K37=4, 0, IF(COUNTRY_INFO!$K37=1, COUNTRY_INFO!$F37*0.33, IF(COUNTRY_INFO!$K37=2, COUNTRY_INFO!$F37*0.5, COUNTRY_INFO!$F37))), 0)) -> 0 | E37: =IF(INTRO!$E$43="Non endémique", 0, IF(COUNTRY_INFO!$K37>0, IF(COUNTRY_INFO!$K37=4, 0, IF(COUNTRY_INFO!$K37=1, 0, IF(COUNTRY_INFO!$K37=2, COUNTRY_INFO!$G37*0.2, COUNTRY_INFO!$G37))), 0)) -> 0 | F37: 0 | G37: =IF(INTRO!$E$43="Non endémique", "Non requis", COUNTRY_INFO!T37) -> 0 | I37: =IF($D37=0,0,IF(AND($G37>0,$H37<>"Oui"),D37,IF(AND($G37>0,$H37="Oui"),COUNTRY_INFO!$F37,0))) -> 0 | K37: 0 | L37: 0 | M37: 0 | N37: 0 | O37: 0 | Q37: 0 | R37: 0
A38: =IF(INTRO!$E$43="Non endémique"," ", IF(COUNTRY_INFO!A38=0," ",COUNTRY_INFO!A38)) -> Congo | B38: =IF(INTRO!$E$43="Non endémique"," ", IF(COUNTRY_INFO!B38=0," ",COUNTRY_INFO!B38)) -> Plateaux | C38: =IF(INTRO!$E$43="Non endémique"," ", IF(COUNTRY_INFO!C38=0," ",COUNTRY_INFO!C38)) -> Gamboma | D38: =IF(INTRO!$E$43="Non endémique", 0, IF(COUNTRY_INFO!$K38>0, IF(COUNTRY_INFO!$K38=4, 0, IF(COUNTRY_INFO!$K38=1, COUNTRY_INFO!$F38*0.33, IF(COUNTRY_INFO!$K38=2, COUNTRY_INFO!$F38*0.5, COUNTRY_INFO!$F38))), 0)) -> 0 | E38: =IF(INTRO!$E$43="Non endémique", 0, IF(COUNTRY_INFO!$K38>0, IF(COUNTRY_INFO!$K38=4, 0, IF(COUNTRY_INFO!$K38=1, 0, IF(COUNTRY_INFO!$K38=2, COUNTRY_INFO!$G38*0.2, COUNTRY_INFO!$G38))), 0)) -> 0 | F38: 0 | G38: =IF(INTRO!$E$43="Non endémique", "Non requis", COUNTRY_INFO!T38) -> 0 | I38: =IF($D38=0,0,IF(AND($G38>0,$H38<>"Oui"),D38,IF(AND($G38>0,$H38="Oui"),COUNTRY_INFO!$F38,0))) -> 0 | K38: 0 | L38: 0 | M38: 0 | N38: 0 | O38: 0 | Q38: 0 | R38: 0
A39: =IF(INTRO!$E$43="Non endémique"," ", IF(COUNTRY_INFO!A39=0," ",COUNTRY_INFO!A39)) -> Congo | B39: =IF(INTRO!$E$43="Non endémique"," ", IF(COUNTRY_INFO!B39=0," ",COUNTRY_INFO!B39)) -> Pointe-Noire | C39: =IF(INTRO!$E$43="Non endémique"," ", IF(COUNTRY_INFO!C39=0," ",COUNTRY_INFO!C39)) -> Ngoyo | D39: =IF(INTRO!$E$43="Non endémique", 0, IF(COUNTRY_INFO!$K39>0, IF(COUNTRY_INFO!$K39=4, 0, IF(COUNTRY_INFO!$K39=1, COUNTRY_INFO!$F39*0.33, IF(COUNTRY_INFO!$K39=2, COUNTRY_INFO!$F39*0.5, COUNTRY_INFO!$F39))), 0)) -> 0 | E39: =IF(INTRO!$E$43="Non endémique", 0, IF(COUNTRY_INFO!$K39>0, IF(COUNTRY_INFO!$K39=4, 0, IF(COUNTRY_INFO!$K39=1, 0, IF(COUNTRY_INFO!$K39=2, COUNTRY_INFO!$G39*0.2, COUNTRY_INFO!$G39))), 0)) -> 0 | F39: 0 | G39: =IF(INTRO!$E$43="Non endémique", "Non requis", COUNTRY_INFO!T39) -> 0 | I39: =IF($D39=0,0,IF(AND($G39>0,$H39<>"Oui"),D39,IF(AND($G39>0,$H39="Oui"),COUNTRY_INFO!$F39,0))) -> 0 | K39: 0 | L39: 0 | M39: 0 | N39: 0 | O39: 0 | Q39: 0 | R39: 0
A40: =IF(INTRO!$E$43="Non endémique"," ", IF(COUNTRY_INFO!A40=0," ",COUNTRY_INFO!A40)) -> Congo | B40: =IF(INTRO!$E$43="Non endémique"," ", IF(COUNTRY_INFO!B40=0," ",COUNTRY_INFO!B40)) -> Pointe-Noire | C40: =IF(INTRO!$E$43="Non endémique"," ", IF(COUNTRY_INFO!C40=0," ",COUNTRY_INFO!C40)) -> Mongo-Poukou | D40: =IF(INTRO!$E$43="Non endémique", 0, IF(COUNTRY_INFO!$K40>0, IF(COUNTRY_INFO!$K40=4, 0, IF(COUNTRY_INFO!$K40=1, COUNTRY_INFO!$F40*0.33, IF(COUNTRY_INFO!$K40=2, COUNTRY_INFO!$F40*0.5, COUNTRY_INFO!$F40))), 0)) -> 0 | E40: =IF(INTRO!$E$43="Non endémique", 0, IF(COUNTRY_INFO!$K40>0, IF(COUNTRY_INFO!$K40=4, 0, IF(COUNTRY_INFO!$K40=1, 0, IF(COUNTRY_INFO!$K40=2, COUNTRY_INFO!$G40*0.2, COUNTRY_INFO!$G40))), 0)) -> 0 | F40: 0 | G40: =IF(INTRO!$E$43="Non endémique", "Non requis", COUNTRY_INFO!T40) -> 0 | I40: =IF($D40=0,0,IF(AND($G40>0,$H40<>"Oui"),D40,IF(AND($G40>0,$H40="Oui"),COUNTRY_INFO!$F40,0))) -> 0 | K40: 0 | L40: 0 | M40: 0 | N40: 0 | O40: 0 | Q40: 0 | R40: 0
A41: =IF(INTRO!$E$43="Non endémique"," ", IF(COUNTRY_INFO!A41=0," ",COUNTRY_INFO!A41)) -> Congo | B41: =IF(INTRO!$E$43="Non endémique"," ", IF(COUNTRY_INFO!B41=0," ",COUNTRY_INFO!B41)) -> Pointe-Noire | C41: =IF(INTRO!$E$43="Non endémique"," ", IF(COUNTRY_INFO!C41=0," ",COUNTRY_INFO!C41)) -> Loandjili | D41: =IF(INTRO!$E$43="Non endémique", 0, IF(COUNTRY_INFO!$K41>0, IF(COUNTRY_INFO!$K41=4, 0, IF(COUNTRY_INFO!$K41=1, COUNTRY_INFO!$F41*0.33, IF(COUNTRY_INFO!$K41=2, COUNTRY_INFO!$F41*0.5, COUNTRY_INFO!$F41))), 0)) -> 19964.34 | E41: =IF(INTRO!$E$43="Non endémique", 0, IF(COUNTRY_INFO!$K41>0, IF(COUNTRY_INFO!$K41=4, 0, IF(COUNTRY_INFO!$K41=1, 0, IF(COUNTRY_INFO!$K41=2, COUNTRY_INFO!$G41*0.2, COUNTRY_INFO!$G41))), 0)) -> 0 | F41: 19964.34 | G41: =IF(INTRO!$E$43="Non endémique", "Non requis", COUNTRY_INFO!T41) -> 1 | I41: =IF($D41=0,0,IF(AND($G41>0,$H41<>"Oui"),D41,IF(AND($G41>0,$H41="Oui"),COUNTRY_INFO!$F41,0))) -> 19964.34 | J41: 679 | K41: 0 | L41: 679 | M41: 1697.5 | N41: 0 | O41: 1697.5 | Q41: 1697.5 | R41: 2
A42: =IF(INTRO!$E$43="Non endémique"," ", IF(COUNTRY_INFO!A42=0," ",COUNTRY_INFO!A42)) -> Congo | B42: =IF(INTRO!$E$43="Non endémique"," ", IF(COUNTRY_INFO!B42=0," ",COUNTRY_INFO!B42)) -> Pointe-Noire | C42: =IF(INTRO!$E$43="Non endémique"," ", IF(COUNTRY_INFO!C42=0," ",COUNTRY_INFO!C42)) -> Lumumba | D42: =IF(INTRO!$E$43="Non endémique", 0, IF(COUNTRY_INFO!$K42>0, IF(COUNTRY_INFO!$K42=4, 0, IF(COUNTRY_INFO!$K42=1, COUNTRY_INFO!$F42*0.33, IF(COUNTRY_INFO!$K42=2, COUNTRY_INFO!$F42*0.5, COUNTRY_INFO!$F42))), 0)) -> 10985.04 | E42: =IF(INTRO!$E$43="Non endémique", 0, IF(COUNTRY_INFO!$K42>0, IF(COUNTRY_INFO!$K42=4, 0, IF(COUNTRY_INFO!$K42=1, 0, IF(COUNTRY_INFO!$K42=2, COUNTRY_INFO!$G42*0.2, COUNTRY_INFO!$G42))), 0)) -> 0 | F42: 10985.04 | G42: =IF(INTRO!$E$43="Non endémique", "Non requis", COUNTRY_INFO!T42) -> 1 | I42: =IF($D42=0,0,IF(AND($G42>0,$H42<>"Oui"),D42,IF(AND($G42>0,$H42="Oui"),COUNTRY_INFO!$F42,0))) -> 10985.04 | J42: 187 | K42: 0 | L42: 187 | M42: 467.5 | N42: 0 | O42: 467.5 | Q42: 467.5 | R42: 1
A43: =IF(INTRO!$E$43="Non endémique"," ", IF(COUNTRY_INFO!A43=0," ",COUNTRY_INFO!A43)) -> Congo | B43: =IF(INTRO!$E$43="Non endémique"," ", IF(COUNTRY_INFO!B43=0," ",COUNTRY_INFO!B43)) -> Pointe-Noire | C43: =IF(INTRO!$E$43="Non endémique"," ", IF(COUNTRY_INFO!C43=0," ",COUNTRY_INFO!C43)) -> Mvoumvou | D43: =IF(INTRO!$E$43="Non endémique", 0, IF(COUNTRY_INFO!$K43>0, IF(COUNTRY_INFO!$K43=4, 0, IF(COUNTRY_INFO!$K43=1, COUNTRY_INFO!$F43*0.33, IF(COUNTRY_INFO!$K43=2, COUNTRY_INFO!$F43*0.5, COUNTRY_INFO!$F43))), 0)) -> 8801.1 | E43: =IF(INTRO!$E$43="Non endémique", 0, IF(COUNTRY_INFO!$K43>0, IF(COUNTRY_INFO!$K43=4, 0, IF(COUNTRY_INFO!$K43=1, 0, IF(COUNTRY_INFO!$K43=2, COUNTRY_INFO!$G43*0.2, COUNTRY_INFO!$G43))), 0)) -> 0 | F43: 8801.1 | G43: =IF(INTRO!$E$43="Non endémique", "Non requis", COUNTRY_INFO!T43) -> 1 | I43: =IF($D43=0,0,IF(AND($G43>0,$H43<>"Oui"),D43,IF(AND($G43>0,$H43="Oui"),COUNTRY_INFO!$F43,0))) -> 8801.1 | J43: 106 | K43: 0 | L43: 106 | M43: 265 | N43: 0 | O43: 265 | Q43: 265 | R43: 1
A44: =IF(INTRO!$E$43="Non endémique"," ", IF(COUNTRY_INFO!A44=0," ",COUNTRY_INFO!A44)) -> Congo | B44: =IF(INTRO!$E$43="Non endémique"," ", IF(COUNTRY_INFO!B44=0," ",COUNTRY_INFO!B44)) -> Pointe-Noire | C44: =IF(INTRO!$E$43="Non endémique"," ", IF(COUNTRY_INFO!C44=0," ",COUNTRY_INFO!C44)) -> Tie-Tie | D44: =IF(INTRO!$E$43="Non endémique", 0, IF(COUNTRY_INFO!$K44>0, IF(COUNTRY_INFO!$K44=4, 0, IF(COUNTRY_INFO!$K44=1, COUNTRY_INFO!$F44*0.33, IF(COUNTRY_INFO!$K44=2, COUNTRY_INFO!$F44*0.5, COUNTRY_INFO!$F44))), 0)) -> 0 | E44: =IF(INTRO!$E$43="Non endémique", 0, IF(COUNTRY_INFO!$K44>0, IF(COUNTRY_INFO!$K44=4, 0, IF(COUNTRY_INFO!$K44=1, 0, IF(COUNTRY_INFO!$K44=2, COUNTRY_INFO!$G44*0.2, COUNTRY_INFO!$G44))), 0)) -> 0 | F44: 0 | G44: =IF(INTRO!$E$43="Non endémique", "Non requis", COUNTRY_INFO!T44) -> 0 | I44: =IF($D44=0,0,IF(AND($G44>0,$H44<>"Oui"),D44,IF(AND($G44>0,$H44="Oui"),COUNTRY_INFO!$F44,0))) -> 0 | K44: 0 | L44: 0 | M44: 0 | N44: 0 | O44: 0 | Q44: 0 | R44: 0
A45: =IF(INTRO!$E$43="Non endémique"," ", IF(COUNTRY_INFO!A45=0," ",COUNTRY_INFO!A45)) -> Congo | B45: =IF(INTRO!$E$43="Non endémique"," ", IF(COUNTRY_INFO!B45=0," ",COUNTRY_INFO!B45)) -> Pool | C45: =IF(INTRO!$E$43="Non endémique"," ", IF(COUNTRY_INFO!C45=0," ",COUNTRY_INFO!C45)) -> Goma tsétsé | D45: =IF(INTRO!$E$43="Non endémique", 0, IF(COUNTRY_INFO!$K45>0, IF(COUNTRY_INFO!$K45=4, 0, IF(COUNTRY_INFO!$K45=1, COUNTRY_INFO!$F45*0.33, IF(COUNTRY_INFO!$K45=2, COUNTRY_INFO!$F45*0.5, COUNTRY_INFO!$F45))), 0)) -> 0 | E45: =IF(INTRO!$E$43="Non endémique", 0, IF(COUNTRY_INFO!$K45>0, IF(COUNTRY_INFO!$K45=4, 0, IF(COUNTRY_INFO!$K45=1, 0, IF(COUNTRY_INFO!$K45=2, COUNTRY_INFO!$G45*0.2, COUNTRY_INFO!$G45))), 0)) -> 0 | F45: 0 | G45: =IF(INTRO!$E$43="Non endémique", "Non requis", COUNTRY_INFO!T45) -> 0 | I45: =IF($D45=0,0,IF(AND($G45>0,$H45<>"Oui"),D45,IF(AND($G45>0,$H45="Oui"),COUNTRY_INFO!$F45,0))) -> 0 | K45: 0 | L45: 0 | M45: 0 | N45: 0 | O45: 0 | Q45: 0 | R45: 0
A46: =IF(INTRO!$E$43="Non endémique"," ", IF(COUNTRY_INFO!A46=0," ",COUNTRY_INFO!A46)) -> Congo | B46: =IF(INTRO!$E$43="Non endémique"," ", IF(COUNTRY_INFO!B46=0," ",COUNTRY_INFO!B46)) -> Pool | C46: =IF(INTRO!$E$43="Non endémique"," ", IF(COUNTRY_INFO!C46=0," ",COUNTRY_INFO!C46)) -> Ignié | D46: =IF(INTRO!$E$43="Non endémique", 0, IF(COUNTRY_INFO!$K46>0, IF(COUNTRY_INFO!$K46=4, 0, IF(COUNTRY_INFO!$K46=1, COUNTRY_INFO!$F46*0.33, IF(COUNTRY_INFO!$K46=2, COUNTRY_INFO!$F46*0.5, COUNTRY_INFO!$F46))), 0)) -> 6696.36 | E46: =IF(INTRO!$E$43="Non endémique", 0, IF(COUNTRY_INFO!$K46>0, IF(COUNTRY_INFO!$K46=4, 0, IF(COUNTRY_INFO!$K46=1, 0, IF(COUNTRY_INFO!$K46=2, COUNTRY_INFO!$G46*0.2, COUNTRY_INFO!$G46))), 0)) -> 0 | F46: 6696.36 | G46: =IF(INTRO!$E$43="Non endémique", "Non requis", COUNTRY_INFO!T46) -> 1 | I46: =IF($D46=0,0,IF(AND($G46>0,$H46<>"Oui"),D46,IF(AND($G46>0,$H46="Oui"),COUNTRY_INFO!$F46,0))) -> 6696.36 | J46: 40 | K46: 0 | L46: 40 | M46: 100 | N46: 0 | O46: 100 | Q46: 100 | R46: 1
A47: =IF(INTRO!$E$43="Non endémique"," ", IF(COUNTRY_INFO!A47=0," ",COUNTRY_INFO!A47)) -> Congo | B47: =IF(INTRO!$E$43="Non endémique"," ", IF(COUNTRY_INFO!B47=0," ",COUNTRY_INFO!B47)) -> Pool | C47: =IF(INTRO!$E$43="Non endémique"," ", IF(COUNTRY_INFO!C47=0," ",COUNTRY_INFO!C47)) -> Kindamba | D47: =IF(INTRO!$E$43="Non endémique", 0, IF(COUNTRY_INFO!$K47>0, IF(COUNTRY_INFO!$K47=4, 0, IF(COUNTRY_INFO!$K47=1, COUNTRY_INFO!$F47*0.33, IF(COUNTRY_INFO!$K47=2, COUNTRY_INFO!$F47*0.5, COUNTRY_INFO!$F47))), 0)) -> 0 | E47: =IF(INTRO!$E$43="Non endémique", 0, IF(COUNTRY_INFO!$K47>0, IF(COUNTRY_INFO!$K47=4, 0, IF(COUNTRY_INFO!$K47=1, 0, IF(COUNTRY_INFO!$K47=2, COUNTRY_INFO!$G47*0.2, COUNTRY_INFO!$G47))), 0)) -> 0 | F47: 0 | G47: =IF(INTRO!$E$43="Non endémique", "Non requis", COUNTRY_INFO!T47) -> 0 | I47: =IF($D47=0,0,IF(AND($G47>0,$H47<>"Oui"),D47,IF(AND($G47>0,$H47="Oui"),COUNTRY_INFO!$F47,0))) -> 0 | K47: 0 | L47: 0 | M47: 0 | N47: 0 | O47: 0 | Q47: 0 | R47: 0
A48: =IF(INTRO!$E$43="Non endémique"," ", IF(COUNTRY_INFO!A48=0," ",COUNTRY_INFO!A48)) -> Congo | B48: =IF(INTRO!$E$43="Non endémique"," ", IF(COUNTRY_INFO!B48=0," ",COUNTRY_INFO!B48)) -> Pool | C48: =IF(INTRO!$E$43="Non endémique"," ", IF(COUNTRY_INFO!C48=0," ",COUNTRY_INFO!C48)) -> Kinkala-Boko | D48: =IF(INTRO!$E$43="Non endémique", 0, IF(COUNTRY_INFO!$K48>0, IF(COUNTRY_INFO!$K48=4, 0, IF(COUNTRY_INFO!$K48=1, COUNTRY_INFO!$F48*0.33, IF(COUNTRY_INFO!$K48=2, COUNTRY_INFO!$F48*0.5, COUNTRY_INFO!$F48))), 0)) -> 0 | E48: =IF(INTRO!$E$43="Non endémique", 0, IF(COUNTRY_INFO!$K48>0, IF(COUNTRY_INFO!$K48=4, 0, IF(COUNTRY_INFO!$K48=1, 0, IF(COUNTRY_INFO!$K48=2, COUNTRY_INFO!$G48*0.2, COUNTRY_INFO!$G48))), 0)) -> 0 | F48: 0 | G48: =IF(INTRO!$E$43="Non endémique", "Non requis", COUNTRY_INFO!T48) -> 0 | I48: =IF($D48=0,0,IF(AND($G48>0,$H48<>"Oui"),D48,IF(AND($G48>0,$H48="Oui"),COUNTRY_INFO!$F48,0))) -> 0 | K48: 0 | L48: 0 | M48: 0 | N48: 0 | O48: 0 | Q48: 0 | R48: 0
A49: =IF(INTRO!$E$43="Non endémique"," ", IF(COUNTRY_INFO!A49=0," ",COUNTRY_INFO!A49)) -> Congo | B49: =IF(INTRO!$E$43="Non endémique"," ", IF(COUNTRY_INFO!B49=0," ",COUNTRY_INFO!B49)) -> Pool | C49: =IF(INTRO!$E$43="Non endémique"," ", IF(COUNTRY_INFO!C49=0," ",COUNTRY_INFO!C49)) -> Mindouli | D49: =IF(INTRO!$E$43="Non endémique", 0, IF(COUNTRY_INFO!$K49>0, IF(COUNTRY_INFO!$K49=4, 0, IF(COUNTRY_INFO!$K49=1, COUNTRY_INFO!$F49*0.33, IF(COUNTRY_INFO!$K49=2, COUNTRY_INFO!$F49*0.5, COUNTRY_INFO!$F49))), 0)) -> 5401.77 | E49: =IF(INTRO!$E$43="Non endémique", 0, IF(COUNTRY_INFO!$K49>0, IF(COUNTRY_INFO!$K49=4, 0, IF(COUNTRY_INFO!$K49=1, 0, IF(COUNTRY_INFO!$K49=2, COUNTRY_INFO!$G49*0.2, COUNTRY_INFO!$G49))), 0)) -> 0 | F49: 5401.77 | G49: =IF(INTRO!$E$43="Non endémique", "Non requis", COUNTRY_INFO!T49) -> 1 | I49: =IF($D49=0,0,IF(AND($G49>0,$H49<>"Oui"),D49,IF(AND($G49>0,$H49="Oui"),COUNTRY_INFO!$F49,0))) -> 5401.77 | J49: 16 | K49: 0 | L49: 16 | M49: 40 | N49: 0 | O49: 40 | Q49: 40 | R49: 1
A50: =IF(INTRO!$E$43="Non endémique"," ", IF(COUNTRY_INFO!A50=0," ",COUNTRY_INFO!A50)) -> Congo | B50: =IF(INTRO!$E$43="Non endémique"," ", IF(COUNTRY_INFO!B50=0," ",COUNTRY_INFO!B50)) -> Sangha | C50: =IF(INTRO!$E$43="Non endémique"," ", IF(COUNTRY_INFO!C50=0," ",COUNTRY_INFO!C50)) -> Ouesso | D50: =IF(INTRO!$E$43="Non endémique", 0, IF(COUNTRY_INFO!$K50>0, IF(COUNTRY_INFO!$K50=4, 0, IF(COUNTRY_INFO!$K50=1, COUNTRY_INFO!$F50*0.33, IF(COUNTRY_INFO!$K50=2, COUNTRY_INFO!$F50*0.5, COUNTRY_INFO!$F50))), 0)) -> 6245.58 | E50: =IF(INTRO!$E$43="Non endémique", 0, IF(COUNTRY_INFO!$K50>0, IF(COUNTRY_INFO!$K50=4, 0, IF(COUNTRY_INFO!$K50=1, 0, IF(COUNTRY_INFO!$K50=2, COUNTRY_INFO!$G50*0.2, COUNTRY_INFO!$G50))), 0)) -> 0 | F50: 6245.58 | G50: =IF(INTRO!$E$43="Non endémique", "Non requis", COUNTRY_INFO!T50) -> 1 | I50: =IF($D50=0,0,IF(AND($G50>0,$H50<>"Oui"),D50,IF(AND($G50>0,$H50="Oui"),COUNTRY_INFO!$F50,0))) -> 6245.58 | J50: 37 | K50: 0 | L50: 37 | M50: 92.5 | N50: 0 | O50: 92.5 | Q50: 92.5 | R50: 1
A51: =IF(INTRO!$E$43="Non endémique"," ", IF(COUNTRY_INFO!A51=0," ",COUNTRY_INFO!A51)) -> Congo | B51: =IF(INTRO!$E$43="Non endémique"," ", IF(COUNTRY_INFO!B51=0," ",COUNTRY_INFO!B51)) -> Sangha | C51: =IF(INTRO!$E$43="Non endémique"," ", IF(COUNTRY_INFO!C51=0," ",COUNTRY_INFO!C51)) -> Sembé-Souanké | D51: =IF(INTRO!$E$43="Non endémique", 0, IF(COUNTRY_INFO!$K51>0, IF(COUNTRY_INFO!$K51=4, 0, IF(COUNTRY_INFO!$K51=1, COUNTRY_INFO!$F51*0.33, IF(COUNTRY_INFO!$K51=2, COUNTRY_INFO!$F51*0.5, COUNTRY_INFO!$F51))), 0)) -> 0 | E51: =IF(INTRO!$E$43="Non endémique", 0, IF(COUNTRY_INFO!$K51>0, IF(COUNTRY_INFO!$K51=4, 0, IF(COUNTRY_INFO!$K51=1, 0, IF(COUNTRY_INFO!$K51=2, COUNTRY_INFO!$G51*0.2, COUNTRY_INFO!$G51))), 0)) -> 0 | F51: 0 | G51: =IF(INTRO!$E$43="Non endémique", "Non requis", COUNTRY_INFO!T51) -> 0 | I51: =IF($D51=0,0,IF(AND($G51>0,$H51<>"Oui"),D51,IF(AND($G51>0,$H51="Oui"),COUNTRY_INFO!$F51,0))) -> 0 | K51: 0 | L51: 0 | M51: 0 | N51: 0 | O51: 0 | Q51: 0 | R51: 0
A52: =IF(INTRO!$E$43="Non endémique"," ", IF(COUNTRY_INFO!A52=0," ",COUNTRY_INFO!A52)) -> Congo | B52: =IF(INTRO!$E$43="Non endémique"," ", IF(COUNTRY_INFO!B52=0," ",COUNTRY_INFO!B52)) ->  | C52: =IF(INTRO!$E$43="Non endémique"," ", IF(COUNTRY_INFO!C52=0," ",COUNTRY_INFO!C52)) ->  | D52: =IF(INTRO!$E$43="Non endémique", 0, IF(COUNTRY_INFO!$K52>0, IF(COUNTRY_INFO!$K52=4, 0, IF(COUNTRY_INFO!$K52=1, COUNTRY_INFO!$F52*0.33, IF(COUNTRY_INFO!$K52=2, COUNTRY_INFO!$F52*0.5, COUNTRY_INFO!$F52))), 0)) -> 0 | E52: =IF(INTRO!$E$43="Non endémique", 0, IF(COUNTRY_INFO!$K52>0, IF(COUNTRY_INFO!$K52=4, 0, IF(COUNTRY_INFO!$K52=1, 0, IF(COUNTRY_INFO!$K52=2, COUNTRY_INFO!$G52*0.2, COUNTRY_INFO!$G52))), 0)) -> 0 | F52: 0 | G52: =IF(INTRO!$E$43="Non endémique", "Non requis", COUNTRY_INFO!T52) -> 0 | I52: =IF($D52=0,0,IF(AND($G52>0,$H52<>"Oui"),D52,IF(AND($G52>0,$H52="Oui"),COUNTRY_INFO!$F52,0))) -> 0 | K52: 0 | L52: 0 | M52: 0 | N52: 0 | O52: 0 | Q52: 0 | R52: 0
A53: =IF(INTRO!$E$43="Non endémique"," ", IF(COUNTRY_INFO!A53=0," ",COUNTRY_INFO!A53)) -> Congo | B53: =IF(INTRO!$E$43="Non endémique"," ", IF(COUNTRY_INFO!B53=0," ",COUNTRY_INFO!B53)) ->  | C53: =IF(INTRO!$E$43="Non endémique"," ", IF(COUNTRY_INFO!C53=0," ",COUNTRY_INFO!C53)) ->  | D53: =IF(INTRO!$E$43="Non endémique", 0, IF(COUNTRY_INFO!$K53>0, IF(COUNTRY_INFO!$K53=4, 0, IF(COUNTRY_INFO!$K53=1, COUNTRY_INFO!$F53*0.33, IF(COUNTRY_INFO!$K53=2, COUNTRY_INFO!$F53*0.5, COUNTRY_INFO!$F53))), 0)) -> 0 | E53: =IF(INTRO!$E$43="Non endémique", 0, IF(COUNTRY_INFO!$K53>0, IF(COUNTRY_INFO!$K53=4, 0, IF(COUNTRY_INFO!$K53=1, 0, IF(COUNTRY_INFO!$K53=2, COUNTRY_INFO!$G53*0.2, COUNTRY_INFO!$G53))), 0)) -> 0 | F53: 0 | G53: =IF(INTRO!$E$43="Non endémique", "Non requis", COUNTRY_INFO!T53) -> 0 | I53: =IF($D53=0,0,IF(AND($G53>0,$H53<>"Oui"),D53,IF(AND($G53>0,$H53="Oui"),COUNTRY_INFO!$F53,0))) -> 0 | K53: 0 | L53: 0 | M53: 0 | N53: 0 | O53: 0 | Q53: 0 | R53: 0

Sheet IVM
A1: Ivermectine (IVM)
A2: Structure administrative, population ciblée par groupe d'âge, plan de traitement et information sur les comprimés
A4: TOTAL | D4: =SUM(D$9:D$1000) -> 1281855 | G4: =SUM(G$9:G$1000) -> 266813 | H4: 647345 | I4: 0 | J4: 647345 | K4: 330612.8 | L4: 1396102.4 | M4: 416463.6 | N4: 2143178.8 | O4: 0 | P4: 2143178.8 | Q4: 4295
A6: Structure administrative du pays | E6: Plan de traitement | G6: Population cible | K6: Ivermectine (IVM)
A7: Pays | B7: Région/Département | C7: District | D7: Population nécessitant un traitement avec IVM | E7: FL | F7: Oncho | G7: FL | H7: Oncho | K7: FL uniquement | L7: Oncho uniquement | M7: FL+Oncho | N7: Total requis | O7: Reste en stock | P7: Comprimés devant être fournis | Q7: Flacons (3mg) 500 comprimés
H8: dans le district | I8: dans les village | J8: total
A9: =IF(INTRO!$E$39="Non endémique"," ",IF(COUNTRY_INFO!A9=0," ",COUNTRY_INFO!A9)) -> Congo | B9: =IF(INTRO!$E$39="Non endémique"," ",IF(COUNTRY_INFO!B9=0," ",COUNTRY_INFO!B9)) -> Bouenza | C9: =IF(INTRO!$E$39="Non endémique"," ",IF(COUNTRY_INFO!C9=0," ",COUNTRY_INFO!C9)) -> Loudima | D9: =IF(INTRO!$E$39="Non endémique",0,IF(INTRO!$E$39="Endémique mais pas de CP",IF(COUNTRY_INFO!$H9=1,COUNTRY_INFO!F9+COUNTRY_INFO!G9,0),IF(COUNTRY_INFO!$H9=1,COUNTRY_INFO!F9+COUNTRY_INFO!G9,IF(COUNTRY_INFO!$I9=1,IF(COUNTRY_INFO!N9>=(COUNTRY_INFO!F9+COUNTRY_INFO!G9),COUNTRY_INFO!F9+COUNTRY_INFO!G9,COUNTRY_INFO!$N9),0)))) -> 48953 | E9: =IF(AND(INTRO!$E$39="Non endémique",INTRO!$E$37="Non endémique"),"Non requis",IF(INTRO!$E$39="Non endémique","Traiter avec DEC",COUNTRY_INFO!Q9)) -> 0 | F9: =IF(INTRO!$E$39<>"Non endémique",COUNTRY_INFO!R9,"Non requis") -> 1 | G9: =IF(COUNTRY_INFO!H9=1, IF($E9=1,IF(ALB_MBD!$J9<>" ",COUNTRY_INFO!F9+COUNTRY_INFO!G9-ALB_MBD!$J9,COUNTRY_INFO!F9+COUNTRY_INFO!G9), 0),0) -> 0 | H9: =IF(INTRO!$E$39<>"Endémique",0, IF(AND(COUNTRY_INFO!$I9=1,$F9<>0),IF(COUNTRY_INFO!N9>=(COUNTRY_INFO!F9+COUNTRY_INFO!G9),COUNTRY_INFO!F9+COUNTRY_INFO!G9,COUNTRY_INFO!$N9), 0)) -> 48953 | J9: =IF(I9=0,H9,IF(I9>H9,H9,I9)) -> 48953 | K9: =IF(G9<J9,0,IF($E9=1, (G9-J9)*2.8, 0)) -> 0 | L9: =IF($E9<$F9, J9*(F9-E9)*2.8, 0) -> 137068.4 | M9: =IF(AND($E9=1, $F9<>0), J9*2.8, 0) -> 0 | N9: =SUM(K9:M9) -> 137068.4 | P9: =IF($N9>$O9,$N9-$O9,0) -> 137068.4 | Q9: =ROUNDUP($N9/500,0) -> 275
A10: =IF(INTRO!$E$39="Non endémique"," ",IF(COUNTRY_INFO!A10=0," ",COUNTRY_INFO!A10)) -> Congo | B10: =IF(INTRO!$E$39="Non endémique"," ",IF(COUNTRY_INFO!B10=0," ",COUNTRY_INFO!B10)) -> Bouenza | C10: =IF(INTRO!$E$39="Non endémique"," ",IF(COUNTRY_INFO!C10=0," ",COUNTRY_INFO!C10)) -> Loutété | D10: =IF(INTRO!$E$39="Non endémique",0,IF(INTRO!$E$39="Endémique mais pas de CP",IF(COUNTRY_INFO!$H10=1,COUNTRY_INFO!F10+COUNTRY_INFO!G10,0),IF(COUNTRY_INFO!$H10=1,COUNTRY_INFO!F10+COUNTRY_INFO!G10,IF(COUNTRY_INFO!$I10=1,IF(COUNTRY_INFO!N10>=(COUNTRY_INFO!F10+COUNTRY_INFO!G10),COUNTRY_INFO!F10+COUNTRY_INFO!G10,COUNTRY_INFO!$N10),0)))) -> 44723 | E10: =IF(AND(INTRO!$E$39="Non endémique",INTRO!$E$37="Non endémique"),"Non requis",IF(INTRO!$E$39="Non endémique","Traiter avec DEC",COUNTRY_INFO!Q10)) -> 1 | F10: =IF(INTRO!$E$39<>"Non endémique",COUNTRY_INFO!R10,"Non requis") -> 1 | G10: =IF(COUNTRY_INFO!H10=1, IF($E10=1,IF(ALB_MBD!$J10<>" ",COUNTRY_INFO!F10+COUNTRY_INFO!G10-ALB_MBD!$J10,COUNTRY_INFO!F10+COUNTRY_INFO!G10), 0),0) -> 41317 | H10: =IF(INTRO!$E$39<>"Endémique",0, IF(AND(COUNTRY_INFO!$I10=1,$F10<>0),IF(COUNTRY_INFO!N10>=(COUNTRY_INFO!F10+COUNTRY_INFO!G10),COUNTRY_INFO!F10+COUNTRY_INFO!G10,COUNTRY_INFO!$N10), 0)) -> 31419 | J10: 31419 | K10: 27714.4 | L10: 0 | M10: 87973.2 | N10: 115687.6 | P10: 115687.6 | Q10: 232
A11: =IF(INTRO!$E$39="Non endémique"," ",IF(COUNTRY_INFO!A11=0," ",COUNTRY_INFO!A11)) -> Congo | B11: =IF(INTRO!$E$39="Non endémique"," ",IF(COUNTRY_INFO!B11=0," ",COUNTRY_INFO!B11)) -> Bouenza | C11: =IF(INTRO!$E$39="Non endémique"," ",IF(COUNTRY_INFO!C11=0," ",COUNTRY_INFO!C11)) -> Madingou | D11: =IF(INTRO!$E$39="Non endémique",0,IF(INTRO!$E$39="Endémique mais pas de CP",IF(COUNTRY_INFO!$H11=1,COUNTRY_INFO!F11+COUNTRY_INFO!G11,0),IF(COUNTRY_INFO!$H11=1,COUNTRY_INFO!F11+COUNTRY_INFO!G11,IF(COUNTRY_INFO!$I11=1,IF(COUNTRY_INFO!N11>=(COUNTRY_INFO!F11+COUNTRY_INFO!G11),COUNTRY_INFO!F11+COUNTRY_INFO!G11,COUNTRY_INFO!$N11),0)))) -> 88052 | E11: =IF(AND(INTRO!$E$39="Non endémique",INTRO!$E$37="Non endémique"),"Non requis",IF(INTRO!$E$39="Non endémique","Traiter avec DEC",COUNTRY_INFO!Q11)) -> 1 | F11: =IF(INTRO!$E$39<>"Non endémique",COUNTRY_INFO!R11,"Non requis") -> 1 | G11: =IF(COUNTRY_INFO!H11=1, IF($E11=1,IF(ALB_MBD!$J11<>" ",COUNTRY_INFO!F11+COUNTRY_INFO!G11-ALB_MBD!$J11,COUNTRY_INFO!F11+COUNTRY_INFO!G11), 0),0) -> 68988 | H11: =IF(INTRO!$E$39<>"Endémique",0, IF(AND(COUNTRY_INFO!$I11=1,$F11<>0),IF(COUNTRY_INFO!N11>=(COUNTRY_INFO!F11+COUNTRY_INFO!G11),COUNTRY_INFO!F11+COUNTRY_INFO!G11,COUNTRY_INFO!$N11), 0)) -> 56712 | J11: 56712 | K11: 34372.8 | L11: 0 | M11: 158793.6 | N11: 193166.4 | P11: 193166.4 | Q11: 387
A12: =IF(INTRO!$E$39="Non endémique"," ",IF(COUNTRY_INFO!A12=0," ",COUNTRY_INFO!A12)) -> Congo | B12: =IF(INTRO!$E$39="Non endémique"," ",IF(COUNTRY_INFO!B12=0," ",COUNTRY_INFO!B12)) -> Bouenza | C12: =IF(INTRO!$E$39="Non endémique"," ",IF(COUNTRY_INFO!C12=0," ",COUNTRY_INFO!C12)) -> Mouyondzi | D12: =IF(INTRO!$E$39="Non endémique",0,IF(INTRO!$E$39="Endémique mais pas de CP",IF(COUNTRY_INFO!$H12=1,COUNTRY_INFO!F12+COUNTRY_INFO!G12,0),IF(COUNTRY_INFO!$H12=1,COUNTRY_INFO!F12+COUNTRY_INFO!G12,IF(COUNTRY_INFO!$I12=1,IF(COUNTRY_INFO!N12>=(COUNTRY_INFO!F12+COUNTRY_INFO!G12),COUNTRY_INFO!F12+COUNTRY_INFO!G12,COUNTRY_INFO!$N12),0)))) -> 60606 | E12: =IF(AND(INTRO!$E$39="Non endémique",INTRO!$E$37="Non endémique"),"Non requis",IF(INTRO!$E$39="Non endémique","Traiter avec DEC",COUNTRY_INFO!Q12)) -> 1 | F12: =IF(INTRO!$E$39<>"Non endémique",COUNTRY_INFO!R12,"Non requis") -> 1 | G12: =IF(COUNTRY_INFO!H12=1, IF($E12=1,IF(ALB_MBD!$J12<>" ",COUNTRY_INFO!F12+COUNTRY_INFO!G12-ALB_MBD!$J12,COUNTRY_INFO!F12+COUNTRY_INFO!G12), 0),0) -> 52745 | H12: =IF(INTRO!$E$39<>"Endémique",0, IF(AND(COUNTRY_INFO!$I12=1,$F12<>0),IF(COUNTRY_INFO!N12>=(COUNTRY_INFO!F12+COUNTRY_INFO!G12),COUNTRY_INFO!F12+COUNTRY_INFO!G12,COUNTRY_INFO!$N12), 0)) -> 34931 | J12: 34931 | K12: 49879.2 | L12: 0 | M12: 97806.8 | N12: 147686 | P12: 147686 | Q12: 296
A13: =IF(INTRO!$E$39="Non endémique"," ",IF(COUNTRY_INFO!A13=0," ",COUNTRY_INFO!A13)) -> Congo | B13: =IF(INTRO!$E$39="Non endémique"," ",IF(COUNTRY_INFO!B13=0," ",COUNTRY_INFO!B13)) -> Brazzaville | C13: =IF(INTRO!$E$39="Non endémique"," ",IF(COUNTRY_INFO!C13=0," ",COUNTRY_INFO!C13)) -> Bacongo | D13: =IF(INTRO!$E$39="Non endémique",0,IF(INTRO!$E$39="Endémique mais pas de CP",IF(COUNTRY_INFO!$H13=1,COUNTRY_INFO!F13+COUNTRY_INFO!G13,0),IF(COUNTRY_INFO!$H13=1,COUNTRY_INFO!F13+COUNTRY_INFO!G13,IF(COUNTRY_INFO!$I13=1,IF(COUNTRY_INFO!N13>=(COUNTRY_INFO!F13+COUNTRY_INFO!G13),COUNTRY_INFO!F13+COUNTRY_INFO!G13,COUNTRY_INFO!$N13),0)))) -> 99822 | E13: =IF(AND(INTRO!$E$39="Non endémique",INTRO!$E$37="Non endémique"),"Non requis",IF(INTRO!$E$39="Non endémique","Traiter avec DEC",COUNTRY_INFO!Q13)) -> 0 | F13: =IF(INTRO!$E$39<>"Non endémique",COUNTRY_INFO!R13,"Non requis") -> 1 | G13: =IF(COUNTRY_INFO!H13=1, IF($E13=1,IF(ALB_MBD!$J13<>" ",COUNTRY_INFO!F13+COUNTRY_INFO!G13-ALB_MBD!$J13,COUNTRY_INFO!F13+COUNTRY_INFO!G13), 0),0) -> 0 | H13: =IF(INTRO!$E$39<>"Endémique",0, IF(AND(COUNTRY_INFO!$I13=1,$F13<>0),IF(COUNTRY_INFO!N13>=(COUNTRY_INFO!F13+COUNTRY_INFO!G13),COUNTRY_INFO!F13+COUNTRY_INFO!G13,COUNTRY_INFO!$N13), 0)) -> 99822 | J13: 99822 | K13: 0 | L13: 279501.6 | M13: 0 | N13: 279501.6 | P13: 279501.6 | Q13: 560
A14: =IF(INTRO!$E$39="Non endémique"," ",IF(COUNTRY_INFO!A14=0," ",COUNTRY_INFO!A14)) -> Congo | B14: =IF(INTRO!$E$39="Non endémique"," ",IF(COUNTRY_INFO!B14=0," ",COUNTRY_INFO!B14)) -> Brazzaville | C14: =IF(INTRO!$E$39="Non endémique"," ",IF(COUNTRY_INFO!C14=0," ",COUNTRY_INFO!C14)) -> Makélékélé | D14: =IF(INTRO!$E$39="Non endémique",0,IF(INTRO!$E$39="Endémique mais pas de CP",IF(COUNTRY_INFO!$H14=1,COUNTRY_INFO!F14+COUNTRY_INFO!G14,0),IF(COUNTRY_INFO!$H14=1,COUNTRY_INFO!F14+COUNTRY_INFO!G14,IF(COUNTRY_INFO!$I14=1,IF(COUNTRY_INFO!N14>=(COUNTRY_INFO!F14+COUNTRY_INFO!G14),COUNTRY_INFO!F14+COUNTRY_INFO!G14,COUNTRY_INFO!$N14),0)))) -> 60112 | E14: =IF(AND(INTRO!$E$39="Non endémique",INTRO!$E$37="Non endémique"),"Non requis",IF(INTRO!$E$39="Non endémique","Traiter avec DEC",COUNTRY_INFO!Q14)) -> 0 | F14: =IF(INTRO!$E$39<>"Non endémique",COUNTRY_INFO!R14,"Non requis") -> 1 | G14: =IF(COUNTRY_INFO!H14=1, IF($E14=1,IF(ALB_MBD!$J14<>" ",COUNTRY_INFO!F14+COUNTRY_INFO!G14-ALB_MBD!$J14,COUNTRY_INFO!F14+COUNTRY_INFO!G14), 0),0) -> 0 | H14: =IF(INTRO!$E$39<>"Endémique",0, IF(AND(COUNTRY_INFO!$I14=1,$F14<>0),IF(COUNTRY_INFO!N14>=(COUNTRY_INFO!F14+COUNTRY_INFO!G14),COUNTRY_INFO!F14+COUNTRY_INFO!G14,COUNTRY_INFO!$N14), 0)) -> 60112 | J14: 60112 | K14: 0 | L14: 168313.6 | M14: 0 | N14: 168313.6 | P14: 168313.6 | Q14: 337
A15: =IF(INTRO!$E$39="Non endémique"," ",IF(COUNTRY_INFO!A15=0," ",COUNTRY_INFO!A15)) -> Congo | B15: =IF(INTRO!$E$39="Non endémique"," ",IF(COUNTRY_INFO!B15=0," ",COUNTRY_INFO!B15)) -> Brazzaville | C15: =IF(INTRO!$E$39="Non endémique"," ",IF(COUNTRY_INFO!C15=0," ",COUNTRY_INFO!C15)) -> Mfilou | D15: =IF(INTRO!$E$39="Non endémique",0,IF(INTRO!$E$39="Endémique mais pas de CP",IF(COUNTRY_INFO!$H15=1,COUNTRY_INFO!F15+COUNTRY_INFO!G15,0),IF(COUNTRY_INFO!$H15=1,COUNTRY_INFO!F15+COUNTRY_INFO!G15,IF(COUNTRY_INFO!$I15=1,IF(COUNTRY_INFO!N15>=(COUNTRY_INFO!F15+COUNTRY_INFO!G15),COUNTRY_INFO!F15+COUNTRY_INFO!G15,COUNTRY_INFO!$N15),0)))) -> 97203 | E15: =IF(AND(INTRO!$E$39="Non endémique",INTRO!$E$37="Non endémique"),"Non requis",IF(INTRO!$E$39="Non endémique","Traiter avec DEC",COUNTRY_INFO!Q15)) -> 0 | F15: =IF(INTRO!$E$39<>"Non endémique",COUNTRY_INFO!R15,"Non requis") -> 1 | G15: =IF(COUNTRY_INFO!H15=1, IF($E15=1,IF(ALB_MBD!$J15<>" ",COUNTRY_INFO!F15+COUNTRY_INFO!G15-ALB_MBD!$J15,COUNTRY_INFO!F15+COUNTRY_INFO!G15), 0),0) -> 0 | H15: =IF(INTRO!$E$39<>"Endémique",0, IF(AND(COUNTRY_INFO!$I15=1,$F15<>0),IF(COUNTRY_INFO!N15>=(COUNTRY_INFO!F15+COUNTRY_INFO!G15),COUNTRY_INFO!F15+COUNTRY_INFO!G15,COUNTRY_INFO!$N15), 0)) -> 97203 | J15: 97203 | K15: 0 | L15: 272168.4 | M15: 0 | N15: 272168.4 | P15: 272168.4 | Q15: 545
A16: =IF(INTRO!$E$39="Non endémique"," ",IF(COUNTRY_INFO!A16=0," ",COUNTRY_INFO!A16)) -> Congo | B16: =IF(INTRO!$E$39="Non endémique"," ",IF(COUNTRY_INFO!B16=0," ",COUNTRY_INFO!B16)) -> Brazzaville | C16: =IF(INTRO!$E$39="Non endémique"," ",IF(COUNTRY_INFO!C16=0," ",COUNTRY_INFO!C16)) -> Moungali | D16: =IF(INTRO!$E$39="Non endémique",0,IF(INTRO!$E$39="Endémique mais pas de CP",IF(COUNTRY_INFO!$H16=1,COUNTRY_INFO!F16+COUNTRY_INFO!G16,0),IF(COUNTRY_INFO!$H16=1,COUNTRY_INFO!F16+COUNTRY_INFO!G16,IF(COUNTRY_INFO!$I16=1,IF(COUNTRY_INFO!N16>=(COUNTRY_INFO!F16+COUNTRY_INFO!G16),COUNTRY_INFO!F16+COUNTRY_INFO!G16,COUNTRY_INFO!$N16),0)))) -> 0 | E16: =IF(AND(INTRO!$E$39="Non endémique",INTRO!$E$37="Non endémique"),"Non requis",IF(INTRO!$E$39="Non endémique","Traiter avec DEC",COUNTRY_INFO!Q16)) -> 0 | F16: =IF(INTRO!$E$39<>"Non endémique",COUNTRY_INFO!R16,"Non requis") -> 0 | G16: =IF(COUNTRY_INFO!H16=1, IF($E16=1,IF(ALB_MBD!$J16<>" ",COUNTRY_INFO!F16+COUNTRY_INFO!G16-ALB_MBD!$J16,COUNTRY_INFO!F16+COUNTRY_INFO!G16), 0),0) -> 0 | H16: =IF(INTRO!$E$39<>"Endémique",0, IF(AND(COUNTRY_INFO!$I16=1,$F16<>0),IF(COUNTRY_INFO!N16>=(COUNTRY_INFO!F16+COUNTRY_INFO!G16),COUNTRY_INFO!F16+COUNTRY_INFO!G16,COUNTRY_INFO!$N16), 0)) -> 0 | J16: 0 | K16: 0 | L16: 0 | M16: 0 | N16: 0 | P16: 0 | Q16: 0
A17: =IF(INTRO!$E$39="Non endémique"," ",IF(COUNTRY_INFO!A17=0," ",COUNTRY_INFO!A17)) -> Congo | B17: =IF(INTRO!$E$39="Non endémique"," ",IF(COUNTRY_INFO!B17=0," ",COUNTRY_INFO!B17)) -> Brazzaville | C17: =IF(INTRO!$E$39="Non endémique"," ",IF(COUNTRY_INFO!C17=0," ",COUNTRY_INFO!C17)) -> Ouenzé | D17: =IF(INTRO!$E$39="Non endémique",0,IF(INTRO!$E$39="Endémique mais pas de CP",IF(COUNTRY_INFO!$H17=1,COUNTRY_INFO!F17+COUNTRY_INFO!G17,0),IF(COUNTRY_INFO!$H17=1,COUNTRY_INFO!F17+COUNTRY_INFO!G17,IF(COUNTRY_INFO!$I17=1,IF(COUNTRY_INFO!N17>=(COUNTRY_INFO!F17+COUNTRY_INFO!G17),COUNTRY_INFO!F17+COUNTRY_INFO!G17,COUNTRY_INFO!$N17),0)))) -> 0 | E17: =IF(AND(INTRO!$E$39="Non endémique",INTRO!$E$37="Non endémique"),"Non requis",IF(INTRO!$E$39="Non endémique","Traiter avec DEC",COUNTRY_INFO!Q17)) -> 0 | F17: =IF(INTRO!$E$39<>"Non endémique",COUNTRY_INFO!R17,"Non requis") -> 0 | G17: =IF(COUNTRY_INFO!H17=1, IF($E17=1,IF(ALB_MBD!$J17<>" ",COUNTRY_INFO!F17+COUNTRY_INFO!G17-ALB_MBD!$J17,COUNTRY_INFO!F17+COUNTRY_INFO!G17), 0),0) -> 0 | H17: =IF(INTRO!$E$39<>"Endémique",0, IF(AND(COUNTRY_INFO!$I17=1,$F17<>0),IF(COUNTRY_INFO!N17>=(COUNTRY_INFO!F17+COUNTRY_INFO!G17),COUNTRY_INFO!F17+COUNTRY_INFO!G17,COUNTRY_INFO!$N17), 0)) -> 0 | J17: 0 | K17: 0 | L17: 0 | M17: 0 | N17: 0 | P17: 0 | Q17: 0
A18: =IF(INTRO!$E$39="Non endémique"," ",IF(COUNTRY_INFO!A18=0," ",COUNTRY_INFO!A18)) -> Congo | B18: =IF(INTRO!$E$39="Non endémique"," ",IF(COUNTRY_INFO!B18=0," ",COUNTRY_INFO!B18)) -> Brazzaville | C18: =IF(INTRO!$E$39="Non endémique"," ",IF(COUNTRY_INFO!C18=0," ",COUNTRY_INFO!C18)) -> Poto-Poto | D18: =IF(INTRO!$E$39="Non endémique",0,IF(INTRO!$E$39="Endémique mais pas de CP",IF(COUNTRY_INFO!$H18=1,COUNTRY_INFO!F18+COUNTRY_INFO!G18,0),IF(COUNTRY_INFO!$H18=1,COUNTRY_INFO!F18+COUNTRY_INFO!G18,IF(COUNTRY_INFO!$I18=1,IF(COUNTRY_INFO!N18>=(COUNTRY_INFO!F18+COUNTRY_INFO!G18),COUNTRY_INFO!F18+COUNTRY_INFO!G18,COUNTRY_INFO!$N18),0)))) -> 0 | E18: =IF(AND(INTRO!$E$39="Non endémique",INTRO!$E$37="Non endémique"),"Non requis",IF(INTRO!$E$39="Non endémique","Traiter avec DEC",COUNTRY_INFO!Q18)) -> 0 | F18: =IF(INTRO!$E$39<>"Non endémique",COUNTRY_INFO!R18,"Non requis") -> 0 | G18: =IF(COUNTRY_INFO!H18=1, IF($E18=1,IF(ALB_MBD!$J18<>" ",COUNTRY_INFO!F18+COUNTRY_INFO!G18-ALB_MBD!$J18,COUNTRY_INFO!F18+COUNTRY_INFO!G18), 0),0) -> 0 | H18: =IF(INTRO!$E$39<>"Endémique",0, IF(AND(COUNTRY_INFO!$I18=1,$F18<>0),IF(COUNTRY_INFO!N18>=(COUNTRY_INFO!F18+COUNTRY_INFO!G18),COUNTRY_INFO!F18+COUNTRY_INFO!G18,COUNTRY_INFO!$N18), 0)) -> 0 | J18: 0 | K18: 0 | L18: 0 | M18: 0 | N18: 0 | P18: 0 | Q18: 0
A19: =IF(INTRO!$E$39="Non endémique"," ",IF(COUNTRY_INFO!A19=0," ",COUNTRY_INFO!A19)) -> Congo | B19: =IF(INTRO!$E$39="Non endémique"," ",IF(COUNTRY_INFO!B19=0," ",COUNTRY_INFO!B19)) -> Brazzaville | C19: =IF(INTRO!$E$39="Non endémique"," ",IF(COUNTRY_INFO!C19=0," ",COUNTRY_INFO!C19)) -> Talangaî | D19: =IF(INTRO!$E$39="Non endémique",0,IF(INTRO!$E$39="Endémique mais pas de CP",IF(COUNTRY_INFO!$H19=1,COUNTRY_INFO!F19+COUNTRY_INFO!G19,0),IF(COUNTRY_INFO!$H19=1,COUNTRY_INFO!F19+COUNTRY_INFO!G19,IF(COUNTRY_INFO!$I19=1,IF(COUNTRY_INFO!N19>=(COUNTRY_INFO!F19+COUNTRY_INFO!G19),COUNTRY_INFO!F19+COUNTRY_INFO!G19,COUNTRY_INFO!$N19),0)))) -> 0 | E19: =IF(AND(INTRO!$E$39="Non endémique",INTRO!$E$37="Non endémique"),"Non requis",IF(INTRO!$E$39="Non endémique","Traiter avec DEC",COUNTRY_INFO!Q19)) -> 0 | F19: =IF(INTRO!$E$39<>"Non endémique",COUNTRY_INFO!R19,"Non requis") -> 0 | G19: =IF(COUNTRY_INFO!H19=1, IF($E19=1,IF(ALB_MBD!$J19<>" ",COUNTRY_INFO!F19+COUNTRY_INFO!G19-ALB_MBD!$J19,COUNTRY_INFO!F19+COUNTRY_INFO!G19), 0),0) -> 0 | H19: =IF(INTRO!$E$39<>"Endémique",0, IF(AND(COUNTRY_INFO!$I19=1,$F19<>0),IF(COUNTRY_INFO!N19>=(COUNTRY_INFO!F19+COUNTRY_INFO!G19),COUNTRY_INFO!F19+COUNTRY_INFO!G19,COUNTRY_INFO!$N19), 0)) -> 0 | J19: 0 | K19: 0 | L19: 0 | M19: 0 | N19: 0 | P19: 0 | Q19: 0
A20: =IF(INTRO!$E$39="Non endémique"," ",IF(COUNTRY_INFO!A20=0," ",COUNTRY_INFO!A20)) -> Congo | B20: =IF(INTRO!$E$39="Non endémique"," ",IF(COUNTRY_INFO!B20=0," ",COUNTRY_INFO!B20)) -> Brazzaville | C20: =IF(INTRO!$E$39="Non endémique"," ",IF(COUNTRY_INFO!C20=0," ",COUNTRY_INFO!C20)) -> Madibou | D20: =IF(INTRO!$E$39="Non endémique",0,IF(INTRO!$E$39="Endémique mais pas de CP",IF(COUNTRY_INFO!$H20=1,COUNTRY_INFO!F20+COUNTRY_INFO!G20,0),IF(COUNTRY_INFO!$H20=1,COUNTRY_INFO!F20+COUNTRY_INFO!G20,IF(COUNTRY_INFO!$I20=1,IF(COUNTRY_INFO!N20>=(COUNTRY_INFO!F20+COUNTRY_INFO!G20),COUNTRY_INFO!F20+COUNTRY_INFO!G20,COUNTRY_INFO!$N20),0)))) -> 111809 | E20: =IF(AND(INTRO!$E$39="Non endémique",INTRO!$E$37="Non endémique"),"Non requis",IF(INTRO!$E$39="Non endémique","Traiter avec DEC",COUNTRY_INFO!Q20)) -> 0 | F20: =IF(INTRO!$E$39<>"Non endémique",COUNTRY_INFO!R20,"Non requis") -> 1 | G20: =IF(COUNTRY_INFO!H20=1, IF($E20=1,IF(ALB_MBD!$J20<>" ",COUNTRY_INFO!F20+COUNTRY_INFO!G20-ALB_MBD!$J20,COUNTRY_INFO!F20+COUNTRY_INFO!G20), 0),0) -> 0 | H20: =IF(INTRO!$E$39<>"Endémique",0, IF(AND(COUNTRY_INFO!$I20=1,$F20<>0),IF(COUNTRY_INFO!N20>=(COUNTRY_INFO!F20+COUNTRY_INFO!G20),COUNTRY_INFO!F20+COUNTRY_INFO!G20,COUNTRY_INFO!$N20), 0)) -> 111809 | J20: 111809 | K20: 0 | L20: 313065.2 | M20: 0 | N20: 313065.2 | P20: 313065.2 | Q20: 627
A21: =IF(INTRO!$E$39="Non endémique"," ",IF(COUNTRY_INFO!A21=0," ",COUNTRY_INFO!A21)) -> Congo | B21: =IF(INTRO!$E$39="Non endémique"," ",IF(COUNTRY_INFO!B21=0," ",COUNTRY_INFO!B21)) -> Brazzaville | C21: =IF(INTRO!$E$39="Non endémique"," ",IF(COUNTRY_INFO!C21=0," ",COUNTRY_INFO!C21)) -> Djiri | D21: =IF(INTRO!$E$39="Non endémique",0,IF(INTRO!$E$39="Endémique mais pas de CP",IF(COUNTRY_INFO!$H21=1,COUNTRY_INFO!F21+COUNTRY_INFO!G21,0),IF(COUNTRY_INFO!$H21=1,COUNTRY_INFO!F21+COUNTRY_INFO!G21,IF(COUNTRY_INFO!$I21=1,IF(COUNTRY_INFO!N21>=(COUNTRY_INFO!F21+COUNTRY_INFO!G21),COUNTRY_INFO!F21+COUNTRY_INFO!G21,COUNTRY_INFO!$N21),0)))) -> 0 | E21: =IF(AND(INTRO!$E$39="Non endémique",INTRO!$E$37="Non endémique"),"Non requis",IF(INTRO!$E$39="Non endémique","Traiter avec DEC",COUNTRY_INFO!Q21)) -> 0 | F21: =IF(INTRO!$E$39<>"Non endémique",COUNTRY_INFO!R21,"Non requis") -> 0 | G21: =IF(COUNTRY_INFO!H21=1, IF($E21=1,IF(ALB_MBD!$J21<>" ",COUNTRY_INFO!F21+COUNTRY_INFO!G21-ALB_MBD!$J21,COUNTRY_INFO!F21+COUNTRY_INFO!G21), 0),0) -> 0 | H21: =IF(INTRO!$E$39<>"Endémique",0, IF(AND(COUNTRY_INFO!$I21=1,$F21<>0),IF(COUNTRY_INFO!N21>=(COUNTRY_INFO!F21+COUNTRY_INFO!G21),COUNTRY_INFO!F21+COUNTRY_INFO!G21,COUNTRY_INFO!$N21), 0)) -> 0 | J21: 0 | K21: 0 | L21: 0 | M21: 0 | N21: 0 | P21: 0 | Q21: 0
A22: =IF(INTRO!$E$39="Non endémique"," ",IF(COUNTRY_INFO!A22=0," ",COUNTRY_INFO!A22)) -> Congo | B22: =IF(INTRO!$E$39="Non endémique"," ",IF(COUNTRY_INFO!B22=0," ",COUNTRY_INFO!B22)) -> Cuvette | C22: =IF(INTRO!$E$39="Non endémique"," ",IF(COUNTRY_INFO!C22=0," ",COUNTRY_INFO!C22)) -> Mossaka Loukoléla | D22: =IF(INTRO!$E$39="Non endémique",0,IF(INTRO!$E$39="Endémique mais pas de CP",IF(COUNTRY_INFO!$H22=1,COUNTRY_INFO!F22+COUNTRY_INFO!G22,0),IF(COUNTRY_INFO!$H22=1,COUNTRY_INFO!F22+COUNTRY_INFO!G22,IF(COUNTRY_INFO!$I22=1,IF(COUNTRY_INFO!N22>=(COUNTRY_INFO!F22+COUNTRY_INFO!G22),COUNTRY_INFO!F22+COUNTRY_INFO!G22,COUNTRY_INFO!$N22),0)))) -> 0 | E22: =IF(AND(INTRO!$E$39="Non endémique",INTRO!$E$37="Non endémique"),"Non requis",IF(INTRO!$E$39="Non endémique","Traiter avec DEC",COUNTRY_INFO!Q22)) -> 0 | F22: =IF(INTRO!$E$39<>"Non endémique",COUNTRY_INFO!R22,"Non requis") -> 0 | G22: =IF(COUNTRY_INFO!H22=1, IF($E22=1,IF(ALB_MBD!$J22<>" ",COUNTRY_INFO!F22+COUNTRY_INFO!G22-ALB_MBD!$J22,COUNTRY_INFO!F22+COUNTRY_INFO!G22), 0),0) -> 0 | H22: =IF(INTRO!$E$39<>"Endémique",0, IF(AND(COUNTRY_INFO!$I22=1,$F22<>0),IF(COUNTRY_INFO!N22>=(COUNTRY_INFO!F22+COUNTRY_INFO!G22),COUNTRY_INFO!F22+COUNTRY_INFO!G22,COUNTRY_INFO!$N22), 0)) -> 0 | J22: 0 | K22: 0 | L22: 0 | M22: 0 | N22: 0 | P22: 0 | Q22: 0
A23: =IF(INTRO!$E$39="Non endémique"," ",IF(COUNTRY_INFO!A23=0," ",COUNTRY_INFO!A23)) -> Congo | B23: =IF(INTRO!$E$39="Non endémique"," ",IF(COUNTRY_INFO!B23=0," ",COUNTRY_INFO!B23)) -> Cuvette | C23: =IF(INTRO!$E$39="Non endémique"," ",IF(COUNTRY_INFO!C23=0," ",COUNTRY_INFO!C23)) -> Owando | D23: =IF(INTRO!$E$39="Non endémique",0,IF(INTRO!$E$39="Endémique mais pas de CP",IF(COUNTRY_INFO!$H23=1,COUNTRY_INFO!F23+COUNTRY_INFO!G23,0),IF(COUNTRY_INFO!$H23=1,COUNTRY_INFO!F23+COUNTRY_INFO!G23,IF(COUNTRY_INFO!$I23=1,IF(COUNTRY_INFO!N23>=(COUNTRY_INFO!F23+COUNTRY_INFO!G23),COUNTRY_INFO!F23+COUNTRY_INFO!G23,COUNTRY_INFO!$N23),0)))) -> 69725 | E23: =IF(AND(INTRO!$E$39="Non endémique",INTRO!$E$37="Non endémique"),"Non requis",IF(INTRO!$E$39="Non endémique","Traiter avec DEC",COUNTRY_INFO!Q23)) -> 1 | F23: =IF(INTRO!$E$39<>"Non endémique",COUNTRY_INFO!R23,"Non requis") -> 0 | G23: =IF(COUNTRY_INFO!H23=1, IF($E23=1,IF(ALB_MBD!$J23<>" ",COUNTRY_INFO!F23+COUNTRY_INFO!G23-ALB_MBD!$J23,COUNTRY_INFO!F23+COUNTRY_INFO!G23), 0),0) -> 0 | H23: =IF(INTRO!$E$39<>"Endémique",0, IF(AND(COUNTRY_INFO!$I23=1,$F23<>0),IF(COUNTRY_INFO!N23>=(COUNTRY_INFO!F23+COUNTRY_INFO!G23),COUNTRY_INFO!F23+COUNTRY_INFO!G23,COUNTRY_INFO!$N23), 0)) -> 0 | J23: 0 | K23: 0 | L23: 0 | M23: 0 | N23: 0 | P23: 0 | Q23: 0
A24: =IF(INTRO!$E$39="Non endémique"," ",IF(COUNTRY_INFO!A24=0," ",COUNTRY_INFO!A24)) -> Congo | B24: =IF(INTRO!$E$39="Non endémique"," ",IF(COUNTRY_INFO!B24=0," ",COUNTRY_INFO!B24)) -> Cuvette | C24: =IF(INTRO!$E$39="Non endémique"," ",IF(COUNTRY_INFO!C24=0," ",COUNTRY_INFO!C24)) -> Oyo | D24: =IF(INTRO!$E$39="Non endémique",0,IF(INTRO!$E$39="Endémique mais pas de CP",IF(COUNTRY_INFO!$H24=1,COUNTRY_INFO!F24+COUNTRY_INFO!G24,0),IF(COUNTRY_INFO!$H24=1,COUNTRY_INFO!F24+COUNTRY_INFO!G24,IF(COUNTRY_INFO!$I24=1,IF(COUNTRY_INFO!N24>=(COUNTRY_INFO!F24+COUNTRY_INFO!G24),COUNTRY_INFO!F24+COUNTRY_INFO!G24,COUNTRY_INFO!$N24),0)))) -> 0 | E24: =IF(AND(INTRO!$E$39="Non endémique",INTRO!$E$37="Non endémique"),"Non requis",IF(INTRO!$E$39="Non endémique","Traiter avec DEC",COUNTRY_INFO!Q24)) -> 0 | F24: =IF(INTRO!$E$39<>"Non endémique",COUNTRY_INFO!R24,"Non requis") -> 0 | G24: =IF(COUNTRY_INFO!H24=1, IF($E24=1,IF(ALB_MBD!$J24<>" ",COUNTRY_INFO!F24+COUNTRY_INFO!G24-ALB_MBD!$J24,COUNTRY_INFO!F24+COUNTRY_INFO!G24), 0),0) -> 0 | H24: =IF(INTRO!$E$39<>"Endémique",0, IF(AND(COUNTRY_INFO!$I24=1,$F24<>0),IF(COUNTRY_INFO!N24>=(COUNTRY_INFO!F24+COUNTRY_INFO!G24),COUNTRY_INFO!F24+COUNTRY_INFO!G24,COUNTRY_INFO!$N24), 0)) -> 0 | J24: 0 | K24: 0 | L24: 0 | M24: 0 | N24: 0 | P24: 0 | Q24: 0
A25: =IF(INTRO!$E$39="Non endémique"," ",IF(COUNTRY_INFO!A25=0," ",COUNTRY_INFO!A25)) -> Congo | B25: =IF(INTRO!$E$39="Non endémique"," ",IF(COUNTRY_INFO!B25=0," ",COUNTRY_INFO!B25)) -> Cuvette-Ouest | C25: =IF(INTRO!$E$39="Non endémique"," ",IF(COUNTRY_INFO!C25=0," ",COUNTRY_INFO!C25)) -> Etoumbi | D25: =IF(INTRO!$E$39="Non endémique",0,IF(INTRO!$E$39="Endémique mais pas de CP",IF(COUNTRY_INFO!$H25=1,COUNTRY_INFO!F25+COUNTRY_INFO!G25,0),IF(COUNTRY_INFO!$H25=1,COUNTRY_INFO!F25+COUNTRY_INFO!G25,IF(COUNTRY_INFO!$I25=1,IF(COUNTRY_INFO!N25>=(COUNTRY_INFO!F25+COUNTRY_INFO!G25),COUNTRY_INFO!F25+COUNTRY_INFO!G25,COUNTRY_INFO!$N25),0)))) -> 35087 | E25: =IF(AND(INTRO!$E$39="Non endémique",INTRO!$E$37="Non endémique"),"Non requis",IF(INTRO!$E$39="Non endémique","Traiter avec DEC",COUNTRY_INFO!Q25)) -> 1 | F25: =IF(INTRO!$E$39<>"Non endémique",COUNTRY_INFO!R25,"Non requis") -> 0 | G25: =IF(COUNTRY_INFO!H25=1, IF($E25=1,IF(ALB_MBD!$J25<>" ",COUNTRY_INFO!F25+COUNTRY_INFO!G25-ALB_MBD!$J25,COUNTRY_INFO!F25+COUNTRY_INFO!G25), 0),0) -> 0 | H25: =IF(INTRO!$E$39<>"Endémique",0, IF(AND(COUNTRY_INFO!$I25=1,$F25<>0),IF(COUNTRY_INFO!N25>=(COUNTRY_INFO!F25+COUNTRY_INFO!G25),COUNTRY_INFO!F25+COUNTRY_INFO!G25,COUNTRY_INFO!$N25), 0)) -> 0 | J25: 0 | K25: 0 | L25: 0 | M25: 0 | N25: 0 | P25: 0 | Q25: 0
A26: =IF(INTRO!$E$39="Non endémique"," ",IF(COUNTRY_INFO!A26=0," ",COUNTRY_INFO!A26)) -> Congo | B26: =IF(INTRO!$E$39="Non endémique"," ",IF(COUNTRY_INFO!B26=0," ",COUNTRY_INFO!B26)) -> Cuvette-Ouest | C26: =IF(INTRO!$E$39="Non endémique"," ",IF(COUNTRY_INFO!C26=0," ",COUNTRY_INFO!C26)) -> Ewo | D26: =IF(INTRO!$E$39="Non endémique",0,IF(INTRO!$E$39="Endémique mais pas de CP",IF(COUNTRY_INFO!$H26=1,COUNTRY_INFO!F26+COUNTRY_INFO!G26,0),IF(COUNTRY_INFO!$H26=1,COUNTRY_INFO!F26+COUNTRY_INFO!G26,IF(COUNTRY_INFO!$I26=1,IF(COUNTRY_INFO!N26>=(COUNTRY_INFO!F26+COUNTRY_INFO!G26),COUNTRY_INFO!F26+COUNTRY_INFO!G26,COUNTRY_INFO!$N26),0)))) -> 38606 | E26: =IF(AND(INTRO!$E$39="Non endémique",INTRO!$E$37="Non endémique"),"Non requis",IF(INTRO!$E$39="Non endémique","Traiter avec DEC",COUNTRY_INFO!Q26)) -> 1 | F26: =IF(INTRO!$E$39<>"Non endémique",COUNTRY_INFO!R26,"Non requis") -> 0 | G26: =IF(COUNTRY_INFO!H26=1, IF($E26=1,IF(ALB_MBD!$J26<>" ",COUNTRY_INFO!F26+COUNTRY_INFO!G26-ALB_MBD!$J26,COUNTRY_INFO!F26+COUNTRY_INFO!G26), 0),0) -> 0 | H26: =IF(INTRO!$E$39<>"Endémique",0, IF(AND(COUNTRY_INFO!$I26=1,$F26<>0),IF(COUNTRY_INFO!N26>=(COUNTRY_INFO!F26+COUNTRY_INFO!G26),COUNTRY_INFO!F26+COUNTRY_INFO!G26,COUNTRY_INFO!$N26), 0)) -> 0 | J26: 0 | K26: 0 | L26: 0 | M26: 0 | N26: 0 | P26: 0 | Q26: 0
A27: =IF(INTRO!$E$39="Non endémique"," ",IF(COUNTRY_INFO!A27=0," ",COUNTRY_INFO!A27)) -> Congo | B27: =IF(INTRO!$E$39="Non endémique"," ",IF(COUNTRY_INFO!B27=0," ",COUNTRY_INFO!B27)) -> Kouilou | C27: =IF(INTRO!$E$39="Non endémique"," ",IF(COUNTRY_INFO!C27=0," ",COUNTRY_INFO!C27)) -> Hinda-Mvouti | D27: =IF(INTRO!$E$39="Non endémique",0,IF(INTRO!$E$39="Endémique mais pas de CP",IF(COUNTRY_INFO!$H27=1,COUNTRY_INFO!F27+COUNTRY_INFO!G27,0),IF(COUNTRY_INFO!$H27=1,COUNTRY_INFO!F27+COUNTRY_INFO!G27,IF(COUNTRY_INFO!$I27=1,IF(COUNTRY_INFO!N27>=(COUNTRY_INFO!F27+COUNTRY_INFO!G27),COUNTRY_INFO!F27+COUNTRY_INFO!G27,COUNTRY_INFO!$N27),0)))) -> 0 | E27: =IF(AND(INTRO!$E$39="Non endémique",INTRO!$E$37="Non endémique"),"Non requis",IF(INTRO!$E$39="Non endémique","Traiter avec DEC",COUNTRY_INFO!Q27)) -> 0 | F27: =IF(INTRO!$E$39<>"Non endémique",COUNTRY_INFO!R27,"Non requis") -> 0 | G27: =IF(COUNTRY_INFO!H27=1, IF($E27=1,IF(ALB_MBD!$J27<>" ",COUNTRY_INFO!F27+COUNTRY_INFO!G27-ALB_MBD!$J27,COUNTRY_INFO!F27+COUNTRY_INFO!G27), 0),0) -> 0 | H27: =IF(INTRO!$E$39<>"Endémique",0, IF(AND(COUNTRY_INFO!$I27=1,$F27<>0),IF(COUNTRY_INFO!N27>=(COUNTRY_INFO!F27+COUNTRY_INFO!G27),COUNTRY_INFO!F27+COUNTRY_INFO!G27,COUNTRY_INFO!$N27), 0)) -> 0 | J27: 0 | K27: 0 | L27: 0 | M27: 0 | N27: 0 | P27: 0 | Q27: 0
A28: =IF(INTRO!$E$39="Non endémique"," ",IF(COUNTRY_INFO!A28=0," ",COUNTRY_INFO!A28)) -> Congo | B28: =IF(INTRO!$E$39="Non endémique"," ",IF(COUNTRY_INFO!B28=0," ",COUNTRY_INFO!B28)) -> Kouilou | C28: =IF(INTRO!$E$39="Non endémique"," ",IF(COUNTRY_INFO!C28=0," ",COUNTRY_INFO!C28)) -> Madingo Kayes | D28: =IF(INTRO!$E$39="Non endémique",0,IF(INTRO!$E$39="Endémique mais pas de CP",IF(COUNTRY_INFO!$H28=1,COUNTRY_INFO!F28+COUNTRY_INFO!G28,0),IF(COUNTRY_INFO!$H28=1,COUNTRY_INFO!F28+COUNTRY_INFO!G28,IF(COUNTRY_INFO!$I28=1,IF(COUNTRY_INFO!N28>=(COUNTRY_INFO!F28+COUNTRY_INFO!G28),COUNTRY_INFO!F28+COUNTRY_INFO!G28,COUNTRY_INFO!$N28),0)))) -> 1051 | E28: =IF(AND(INTRO!$E$39="Non endémique",INTRO!$E$37="Non endémique"),"Non requis",IF(INTRO!$E$39="Non endémique","Traiter avec DEC",COUNTRY_INFO!Q28)) -> 0 | F28: =IF(INTRO!$E$39<>"Non endémique",COUNTRY_INFO!R28,"Non requis") -> 1 | G28: =IF(COUNTRY_INFO!H28=1, IF($E28=1,IF(ALB_MBD!$J28<>" ",COUNTRY_INFO!F28+COUNTRY_INFO!G28-ALB_MBD!$J28,COUNTRY_INFO!F28+COUNTRY_INFO!G28), 0),0) -> 0 | H28: =IF(INTRO!$E$39<>"Endémique",0, IF(AND(COUNTRY_INFO!$I28=1,$F28<>0),IF(COUNTRY_INFO!N28>=(COUNTRY_INFO!F28+COUNTRY_INFO!G28),COUNTRY_INFO!F28+COUNTRY_INFO!G28,COUNTRY_INFO!$N28), 0)) -> 1051 | J28: 1051 | K28: 0 | L28: 2942.8 | M28: 0 | N28: 2942.8 | P28: 2942.8 | Q28: 6
A29: =IF(INTRO!$E$39="Non endémique"," ",IF(COUNTRY_INFO!A29=0," ",COUNTRY_INFO!A29)) -> Congo | B29: =IF(INTRO!$E$39="Non endémique"," ",IF(COUNTRY_INFO!B29=0," ",COUNTRY_INFO!B29)) -> Lékoumou | C29: =IF(INTRO!$E$39="Non endémique"," ",IF(COUNTRY_INFO!C29=0," ",COUNTRY_INFO!C29)) -> Sibiti | D29: =IF(INTRO!$E$39="Non endémique",0,IF(INTRO!$E$39="Endémique mais pas de CP",IF(COUNTRY_INFO!$H29=1,COUNTRY_INFO!F29+COUNTRY_INFO!G29,0),IF(COUNTRY_INFO!$H29=1,COUNTRY_INFO!F29+COUNTRY_INFO!G29,IF(COUNTRY_INFO!$I29=1,IF(COUNTRY_INFO!N29>=(COUNTRY_INFO!F29+COUNTRY_INFO!G29),COUNTRY_INFO!F29+COUNTRY_INFO!G29,COUNTRY_INFO!$N29),0)))) -> 710 | E29: =IF(AND(INTRO!$E$39="Non endémique",INTRO!$E$37="Non endémique"),"Non requis",IF(INTRO!$E$39="Non endémique","Traiter avec DEC",COUNTRY_INFO!Q29)) -> 0 | F29: =IF(INTRO!$E$39<>"Non endémique",COUNTRY_INFO!R29,"Non requis") -> 1 | G29: =IF(COUNTRY_INFO!H29=1, IF($E29=1,IF(ALB_MBD!$J29<>" ",COUNTRY_INFO!F29+COUNTRY_INFO!G29-ALB_MBD!$J29,COUNTRY_INFO!F29+COUNTRY_INFO!G29), 0),0) -> 0 | H29: =IF(INTRO!$E$39<>"Endémique",0, IF(AND(COUNTRY_INFO!$I29=1,$F29<>0),IF(COUNTRY_INFO!N29>=(COUNTRY_INFO!F29+COUNTRY_INFO!G29),COUNTRY_INFO!F29+COUNTRY_INFO!G29,COUNTRY_INFO!$N29), 0)) -> 710 | J29: 710 | K29: 0 | L29: 1988 | M29: 0 | N29: 1988 | P29: 1988 | Q29: 4
A30: =IF(INTRO!$E$39="Non endémique"," ",IF(COUNTRY_INFO!A30=0," ",COUNTRY_INFO!A30)) -> Congo | B30: =IF(INTRO!$E$39="Non endémique"," ",IF(COUNTRY_INFO!B30=0," ",COUNTRY_INFO!B30)) -> Lékoumou | C30: =IF(INTRO!$E$39="Non endémique"," ",IF(COUNTRY_INFO!C30=0," ",COUNTRY_INFO!C30)) -> Zanaga | D30: =IF(INTRO!$E$39="Non endémique",0,IF(INTRO!$E$39="Endémique mais pas de CP",IF(COUNTRY_INFO!$H30=1,COUNTRY_INFO!F30+COUNTRY_INFO!G30,0),IF(COUNTRY_INFO!$H30=1,COUNTRY_INFO!F30+COUNTRY_INFO!G30,IF(COUNTRY_INFO!$I30=1,IF(COUNTRY_INFO!N30>=(COUNTRY_INFO!F30+COUNTRY_INFO!G30),COUNTRY_INFO!F30+COUNTRY_INFO!G30,COUNTRY_INFO!$N30),0)))) -> 0 | E30: =IF(AND(INTRO!$E$39="Non endémique",INTRO!$E$37="Non endémique"),"Non requis",IF(INTRO!$E$39="Non endémique","Traiter avec DEC",COUNTRY_INFO!Q30)) -> 0 | F30: =IF(INTRO!$E$39<>"Non endémique",COUNTRY_INFO!R30,"Non requis") -> 0 | G30: =IF(COUNTRY_INFO!H30=1, IF($E30=1,IF(ALB_MBD!$J30<>" ",COUNTRY_INFO!F30+COUNTRY_INFO!G30-ALB_MBD!$J30,COUNTRY_INFO!F30+COUNTRY_INFO!G30), 0),0) -> 0 | H30: =IF(INTRO!$E$39<>"Endémique",0, IF(AND(COUNTRY_INFO!$I30=1,$F30<>0),IF(COUNTRY_INFO!N30>=(COUNTRY_INFO!F30+COUNTRY_INFO!G30),COUNTRY_INFO!F30+COUNTRY_INFO!G30,COUNTRY_INFO!$N30), 0)) -> 0 | J30: 0 | K30: 0 | L30: 0 | M30: 0 | N30: 0 | P30: 0 | Q30: 0
A31: =IF(INTRO!$E$39="Non endémique"," ",IF(COUNTRY_INFO!A31=0," ",COUNTRY_INFO!A31)) -> Congo | B31: =IF(INTRO!$E$39="Non endémique"," ",IF(COUNTRY_INFO!B31=0," ",COUNTRY_INFO!B31)) -> Likouala | C31: =IF(INTRO!$E$39="Non endémique"," ",IF(COUNTRY_INFO!C31=0," ",COUNTRY_INFO!C31)) -> Bétou | D31: =IF(INTRO!$E$39="Non endémique",0,IF(INTRO!$E$39="Endémique mais pas de CP",IF(COUNTRY_INFO!$H31=1,COUNTRY_INFO!F31+COUNTRY_INFO!G31,0),IF(COUNTRY_INFO!$H31=1,COUNTRY_INFO!F31+COUNTRY_INFO!G31,IF(COUNTRY_INFO!$I31=1,IF(COUNTRY_INFO!N31>=(COUNTRY_INFO!F31+COUNTRY_INFO!G31),COUNTRY_INFO!F31+COUNTRY_INFO!G31,COUNTRY_INFO!$N31),0)))) -> 0 | E31: =IF(AND(INTRO!$E$39="Non endémique",INTRO!$E$37="Non endémique"),"Non requis",IF(INTRO!$E$39="Non endémique","Traiter avec DEC",COUNTRY_INFO!Q31)) -> 0 | F31: =IF(INTRO!$E$39<>"Non endémique",COUNTRY_INFO!R31,"Non requis") -> 0 | G31: =IF(COUNTRY_INFO!H31=1, IF($E31=1,IF(ALB_MBD!$J31<>" ",COUNTRY_INFO!F31+COUNTRY_INFO!G31-ALB_MBD!$J31,COUNTRY_INFO!F31+COUNTRY_INFO!G31), 0),0) -> 0 | H31: =IF(INTRO!$E$39<>"Endémique",0, IF(AND(COUNTRY_INFO!$I31=1,$F31<>0),IF(COUNTRY_INFO!N31>=(COUNTRY_INFO!F31+COUNTRY_INFO!G31),COUNTRY_INFO!F31+COUNTRY_INFO!G31,COUNTRY_INFO!$N31), 0)) -> 0 | J31: 0 | K31: 0 | L31: 0 | M31: 0 | N31: 0 | P31: 0 | Q31: 0
A32: =IF(INTRO!$E$39="Non endémique"," ",IF(COUNTRY_INFO!A32=0," ",COUNTRY_INFO!A32)) -> Congo | B32: =IF(INTRO!$E$39="Non endémique"," ",IF(COUNTRY_INFO!B32=0," ",COUNTRY_INFO!B32)) -> Likouala | C32: =IF(INTRO!$E$39="Non endémique"," ",IF(COUNTRY_INFO!C32=0," ",COUNTRY_INFO!C32)) -> Impfondo | D32: =IF(INTRO!$E$39="Non endémique",0,IF(INTRO!$E$39="Endémique mais pas de CP",IF(COUNTRY_INFO!$H32=1,COUNTRY_INFO!F32+COUNTRY_INFO!G32,0),IF(COUNTRY_INFO!$H32=1,COUNTRY_INFO!F32+COUNTRY_INFO!G32,IF(COUNTRY_INFO!$I32=1,IF(COUNTRY_INFO!N32>=(COUNTRY_INFO!F32+COUNTRY_INFO!G32),COUNTRY_INFO!F32+COUNTRY_INFO!G32,COUNTRY_INFO!$N32),0)))) -> 104173 | E32: =IF(AND(INTRO!$E$39="Non endémique",INTRO!$E$37="Non endémique"),"Non requis",IF(INTRO!$E$39="Non endémique","Traiter avec DEC",COUNTRY_INFO!Q32)) -> 1 | F32: =IF(INTRO!$E$39<>"Non endémique",COUNTRY_INFO!R32,"Non requis") -> 0 | G32: =IF(COUNTRY_INFO!H32=1, IF($E32=1,IF(ALB_MBD!$J32<>" ",COUNTRY_INFO!F32+COUNTRY_INFO!G32-ALB_MBD!$J32,COUNTRY_INFO!F32+COUNTRY_INFO!G32), 0),0) -> 0 | H32: =IF(INTRO!$E$39<>"Endémique",0, IF(AND(COUNTRY_INFO!$I32=1,$F32<>0),IF(COUNTRY_INFO!N32>=(COUNTRY_INFO!F32+COUNTRY_INFO!G32),COUNTRY_INFO!F32+COUNTRY_INFO!G32,COUNTRY_INFO!$N32), 0)) -> 0 | J32: 0 | K32: 0 | L32: 0 | M32: 0 | N32: 0 | P32: 0 | Q32: 0
A33: =IF(INTRO!$E$39="Non endémique"," ",IF(COUNTRY_INFO!A33=0," ",COUNTRY_INFO!A33)) -> Congo | B33: =IF(INTRO!$E$39="Non endémique"," ",IF(COUNTRY_INFO!B33=0," ",COUNTRY_INFO!B33)) -> Niari | C33: =IF(INTRO!$E$39="Non endémique"," ",IF(COUNTRY_INFO!C33=0," ",COUNTRY_INFO!C33)) -> Dolisie | D33: =IF(INTRO!$E$39="Non endémique",0,IF(INTRO!$E$39="Endémique mais pas de CP",IF(COUNTRY_INFO!$H33=1,COUNTRY_INFO!F33+COUNTRY_INFO!G33,0),IF(COUNTRY_INFO!$H33=1,COUNTRY_INFO!F33+COUNTRY_INFO!G33,IF(COUNTRY_INFO!$I33=1,IF(COUNTRY_INFO!N33>=(COUNTRY_INFO!F33+COUNTRY_INFO!G33),COUNTRY_INFO!F33+COUNTRY_INFO!G33,COUNTRY_INFO!$N33),0)))) -> 140404 | E33: =IF(AND(INTRO!$E$39="Non endémique",INTRO!$E$37="Non endémique"),"Non requis",IF(INTRO!$E$39="Non endémique","Traiter avec DEC",COUNTRY_INFO!Q33)) -> 1 | F33: =IF(INTRO!$E$39<>"Non endémique",COUNTRY_INFO!R33,"Non requis") -> 1 | G33: =IF(COUNTRY_INFO!H33=1, IF($E33=1,IF(ALB_MBD!$J33<>" ",COUNTRY_INFO!F33+COUNTRY_INFO!G33-ALB_MBD!$J33,COUNTRY_INFO!F33+COUNTRY_INFO!G33), 0),0) -> 46575 | H33: =IF(INTRO!$E$39<>"Endémique",0, IF(AND(COUNTRY_INFO!$I33=1,$F33<>0),IF(COUNTRY_INFO!N33>=(COUNTRY_INFO!F33+COUNTRY_INFO!G33),COUNTRY_INFO!F33+COUNTRY_INFO!G33,COUNTRY_INFO!$N33), 0)) -> 7667 | J33: 7667 | K33: 108942.4 | L33: 0 | M33: 21467.6 | N33: 130410 | P33: 130410 | Q33: 261
A34: =IF(INTRO!$E$39="Non endémique"," ",IF(COUNTRY_INFO!A34=0," ",COUNTRY_INFO!A34)) -> Congo | B34: =IF(INTRO!$E$39="Non endémique"," ",IF(COUNTRY_INFO!B34=0," ",COUNTRY_INFO!B34)) -> Niari | C34: =IF(INTRO!$E$39="Non endémique"," ",IF(COUNTRY_INFO!C34=0," ",COUNTRY_INFO!C34)) -> Kibangou | D34: =IF(INTRO!$E$39="Non endémique",0,IF(INTRO!$E$39="Endémique mais pas de CP",IF(COUNTRY_INFO!$H34=1,COUNTRY_INFO!F34+COUNTRY_INFO!G34,0),IF(COUNTRY_INFO!$H34=1,COUNTRY_INFO!F34+COUNTRY_INFO!G34,IF(COUNTRY_INFO!$I34=1,IF(COUNTRY_INFO!N34>=(COUNTRY_INFO!F34+COUNTRY_INFO!G34),COUNTRY_INFO!F34+COUNTRY_INFO!G34,COUNTRY_INFO!$N34),0)))) -> 48188 | E34: =IF(AND(INTRO!$E$39="Non endémique",INTRO!$E$37="Non endémique"),"Non requis",IF(INTRO!$E$39="Non endémique","Traiter avec DEC",COUNTRY_INFO!Q34)) -> 1 | F34: =IF(INTRO!$E$39<>"Non endémique",COUNTRY_INFO!R34,"Non requis") -> 1 | G34: =IF(COUNTRY_INFO!H34=1, IF($E34=1,IF(ALB_MBD!$J34<>" ",COUNTRY_INFO!F34+COUNTRY_INFO!G34-ALB_MBD!$J34,COUNTRY_INFO!F34+COUNTRY_INFO!G34), 0),0) -> 25119 | H34: =IF(INTRO!$E$39<>"Endémique",0, IF(AND(COUNTRY_INFO!$I34=1,$F34<>0),IF(COUNTRY_INFO!N34>=(COUNTRY_INFO!F34+COUNTRY_INFO!G34),COUNTRY_INFO!F34+COUNTRY_INFO!G34,COUNTRY_INFO!$N34), 0)) -> 16757 | J34: 16757 | K34: 23413.6 | L34: 0 | M34: 46919.6 | N34: 70333.2 | P34: 70333.2 | Q34: 141
A35: =IF(INTRO!$E$39="Non endémique"," ",IF(COUNTRY_INFO!A35=0," ",COUNTRY_INFO!A35)) -> Congo | B35: =IF(INTRO!$E$39="Non endémique"," ",IF(COUNTRY_INFO!B35=0," ",COUNTRY_INFO!B35)) -> Niari | C35: =IF(INTRO!$E$39="Non endémique"," ",IF(COUNTRY_INFO!C35=0," ",COUNTRY_INFO!C35)) -> Mossendjo | D35: =IF(INTRO!$E$39="Non endémique",0,IF(INTRO!$E$39="Endémique mais pas de CP",IF(COUNTRY_INFO!$H35=1,COUNTRY_INFO!F35+COUNTRY_INFO!G35,0),IF(COUNTRY_INFO!$H35=1,COUNTRY_INFO!F35+COUNTRY_INFO!G35,IF(COUNTRY_INFO!$I35=1,IF(COUNTRY_INFO!N35>=(COUNTRY_INFO!F35+COUNTRY_INFO!G35),COUNTRY_INFO!F35+COUNTRY_INFO!G35,COUNTRY_INFO!$N35),0)))) -> 0 | E35: =IF(AND(INTRO!$E$39="Non endémique",INTRO!$E$37="Non endémique"),"Non requis",IF(INTRO!$E$39="Non endémique","Traiter avec DEC",COUNTRY_INFO!Q35)) -> 0 | F35: =IF(INTRO!$E$39<>"Non endémique",COUNTRY_INFO!R35,"Non requis") -> 0 | G35: =IF(COUNTRY_INFO!H35=1, IF($E35=1,IF(ALB_MBD!$J35<>" ",COUNTRY_INFO!F35+COUNTRY_INFO!G35-ALB_MBD!$J35,COUNTRY_INFO!F35+COUNTRY_INFO!G35), 0),0) -> 0 | H35: =IF(INTRO!$E$39<>"Endémique",0, IF(AND(COUNTRY_INFO!$I35=1,$F35<>0),IF(COUNTRY_INFO!N35>=(COUNTRY_INFO!F35+COUNTRY_INFO!G35),COUNTRY_INFO!F35+COUNTRY_INFO!G35,COUNTRY_INFO!$N35), 0)) -> 0 | J35: 0 | K35: 0 | L35: 0 | M35: 0 | N35: 0 | P35: 0 | Q35: 0
A36: =IF(INTRO!$E$39="Non endémique"," ",IF(COUNTRY_INFO!A36=0," ",COUNTRY_INFO!A36)) -> Congo | B36: =IF(INTRO!$E$39="Non endémique"," ",IF(COUNTRY_INFO!B36=0," ",COUNTRY_INFO!B36)) -> Plateaux | C36: =IF(INTRO!$E$39="Non endémique"," ",IF(COUNTRY_INFO!C36=0," ",COUNTRY_INFO!C36)) -> Abala | D36: =IF(INTRO!$E$39="Non endémique",0,IF(INTRO!$E$39="Endémique mais pas de CP",IF(COUNTRY_INFO!$H36=1,COUNTRY_INFO!F36+COUNTRY_INFO!G36,0),IF(COUNTRY_INFO!$H36=1,COUNTRY_INFO!F36+COUNTRY_INFO!G36,IF(COUNTRY_INFO!$I36=1,IF(COUNTRY_INFO!N36>=(COUNTRY_INFO!F36+COUNTRY_INFO!G36),COUNTRY_INFO!F36+COUNTRY_INFO!G36,COUNTRY_INFO!$N36),0)))) -> 0 | E36: =IF(AND(INTRO!$E$39="Non endémique",INTRO!$E$37="Non endémique"),"Non requis",IF(INTRO!$E$39="Non endémique","Traiter avec DEC",COUNTRY_INFO!Q36)) -> 0 | F36: =IF(INTRO!$E$39<>"Non endémique",COUNTRY_INFO!R36,"Non requis") -> 0 | G36: =IF(COUNTRY_INFO!H36=1, IF($E36=1,IF(ALB_MBD!$J36<>" ",COUNTRY_INFO!F36+COUNTRY_INFO!G36-ALB_MBD!$J36,COUNTRY_INFO!F36+COUNTRY_INFO!G36), 0),0) -> 0 | H36: =IF(INTRO!$E$39<>"Endémique",0, IF(AND(COUNTRY_INFO!$I36=1,$F36<>0),IF(COUNTRY_INFO!N36>=(COUNTRY_INFO!F36+COUNTRY_INFO!G36),COUNTRY_INFO!F36+COUNTRY_INFO!G36,COUNTRY_INFO!$N36), 0)) -> 0 | J36: 0 | K36: 0 | L36: 0 | M36: 0 | N36: 0 | P36: 0 | Q36: 0
A37: =IF(INTRO!$E$39="Non endémique"," ",IF(COUNTRY_INFO!A37=0," ",COUNTRY_INFO!A37)) -> Congo | B37: =IF(INTRO!$E$39="Non endémique"," ",IF(COUNTRY_INFO!B37=0," ",COUNTRY_INFO!B37)) -> Plateaux | C37: =IF(INTRO!$E$39="Non endémique"," ",IF(COUNTRY_INFO!C37=0," ",COUNTRY_INFO!C37)) -> Djambala-Lékana | D37: =IF(INTRO!$E$39="Non endémique",0,IF(INTRO!$E$39="Endémique mais pas de CP",IF(COUNTRY_INFO!$H37=1,COUNTRY_INFO!F37+COUNTRY_INFO!G37,0),IF(COUNTRY_INFO!$H37=1,COUNTRY_INFO!F37+COUNTRY_INFO!G37,IF(COUNTRY_INFO!$I37=1,IF(COUNTRY_INFO!N37>=(COUNTRY_INFO!F37+COUNTRY_INFO!G37),COUNTRY_INFO!F37+COUNTRY_INFO!G37,COUNTRY_INFO!$N37),0)))) -> 0 | E37: =IF(AND(INTRO!$E$39="Non endémique",INTRO!$E$37="Non endémique"),"Non requis",IF(INTRO!$E$39="Non endémique","Traiter avec DEC",COUNTRY_INFO!Q37)) -> 0 | F37: =IF(INTRO!$E$39<>"Non endémique",COUNTRY_INFO!R37,"Non requis") -> 0 | G37: =IF(COUNTRY_INFO!H37=1, IF($E37=1,IF(ALB_MBD!$J37<>" ",COUNTRY_INFO!F37+COUNTRY_INFO!G37-ALB_MBD!$J37,COUNTRY_INFO!F37+COUNTRY_INFO!G37), 0),0) -> 0 | H37: =IF(INTRO!$E$39<>"Endémique",0, IF(AND(COUNTRY_INFO!$I37=1,$F37<>0),IF(COUNTRY_INFO!N37>=(COUNTRY_INFO!F37+COUNTRY_INFO!G37),COUNTRY_INFO!F37+COUNTRY_INFO!G37,COUNTRY_INFO!$N37), 0)) -> 0 | J37: 0 | K37: 0 | L37: 0 | M37: 0 | N37: 0 | P37: 0 | Q37: 0
A38: =IF(INTRO!$E$39="Non endémique"," ",IF(COUNTRY_INFO!A38=0," ",COUNTRY_INFO!A38)) -> Congo | B38: =IF(INTRO!$E$39="Non endémique"," ",IF(COUNTRY_INFO!B38=0," ",COUNTRY_INFO!B38)) -> Plateaux | C38: =IF(INTRO!$E$39="Non endémique"," ",IF(COUNTRY_INFO!C38=0," ",COUNTRY_INFO!C38)) -> Gamboma | D38: =IF(INTRO!$E$39="Non endémique",0,IF(INTRO!$E$39="Endémique mais pas de CP",IF(COUNTRY_INFO!$H38=1,COUNTRY_INFO!F38+COUNTRY_INFO!G38,0),IF(COUNTRY_INFO!$H38=1,COUNTRY_INFO!F38+COUNTRY_INFO!G38,IF(COUNTRY_INFO!$I38=1,IF(COUNTRY_INFO!N38>=(COUNTRY_INFO!F38+COUNTRY_INFO!G38),COUNTRY_INFO!F38+COUNTRY_INFO!G38,COUNTRY_INFO!$N38),0)))) -> 0 | E38: =IF(AND(INTRO!$E$39="Non endémique",INTRO!$E$37="Non endémique"),"Non requis",IF(INTRO!$E$39="Non endémique","Traiter avec DEC",COUNTRY_INFO!Q38)) -> 0 | F38: =IF(INTRO!$E$39<>"Non endémique",COUNTRY_INFO!R38,"Non requis") -> 0 | G38: =IF(COUNTRY_INFO!H38=1, IF($E38=1,IF(ALB_MBD!$J38<>" ",COUNTRY_INFO!F38+COUNTRY_INFO!G38-ALB_MBD!$J38,COUNTRY_INFO!F38+COUNTRY_INFO!G38), 0),0) -> 0 | H38: =IF(INTRO!$E$39<>"Endémique",0, IF(AND(COUNTRY_INFO!$I38=1,$F38<>0),IF(COUNTRY_INFO!N38>=(COUNTRY_INFO!F38+COUNTRY_INFO!G38),COUNTRY_INFO!F38+COUNTRY_INFO!G38,COUNTRY_INFO!$N38), 0)) -> 0 | J38: 0 | K38: 0 | L38: 0 | M38: 0 | N38: 0 | P38: 0 | Q38: 0
A39: =IF(INTRO!$E$39="Non endémique"," ",IF(COUNTRY_INFO!A39=0," ",COUNTRY_INFO!A39)) -> Congo | B39: =IF(INTRO!$E$39="Non endémique"," ",IF(COUNTRY_INFO!B39=0," ",COUNTRY_INFO!B39)) -> Pointe-Noire | C39: =IF(INTRO!$E$39="Non endémique"," ",IF(COUNTRY_INFO!C39=0," ",COUNTRY_INFO!C39)) -> Ngoyo | D39: =IF(INTRO!$E$39="Non endémique",0,IF(INTRO!$E$39="Endémique mais pas de CP",IF(COUNTRY_INFO!$H39=1,COUNTRY_INFO!F39+COUNTRY_INFO!G39,0),IF(COUNTRY_INFO!$H39=1,COUNTRY_INFO!F39+COUNTRY_INFO!G39,IF(COUNTRY_INFO!$I39=1,IF(COUNTRY_INFO!N39>=(COUNTRY_INFO!F39+COUNTRY_INFO!G39),COUNTRY_INFO!F39+COUNTRY_INFO!G39,COUNTRY_INFO!$N39),0)))) -> 0 | E39: =IF(AND(INTRO!$E$39="Non endémique",INTRO!$E$37="Non endémique"),"Non requis",IF(INTRO!$E$39="Non endémique","Traiter avec DEC",COUNTRY_INFO!Q39)) -> 0 | F39: =IF(INTRO!$E$39<>"Non endémique",COUNTRY_INFO!R39,"Non requis") -> 0 | G39: =IF(COUNTRY_INFO!H39=1, IF($E39=1,IF(ALB_MBD!$J39<>" ",COUNTRY_INFO!F39+COUNTRY_INFO!G39-ALB_MBD!$J39,COUNTRY_INFO!F39+COUNTRY_INFO!G39), 0),0) -> 0 | H39: =IF(INTRO!$E$39<>"Endémique",0, IF(AND(COUNTRY_INFO!$I39=1,$F39<>0),IF(COUNTRY_INFO!N39>=(COUNTRY_INFO!F39+COUNTRY_INFO!G39),COUNTRY_INFO!F39+COUNTRY_INFO!G39,COUNTRY_INFO!$N39), 0)) -> 0 | J39: 0 | K39: 0 | L39: 0 | M39: 0 | N39: 0 | P39: 0 | Q39: 0
A40: =IF(INTRO!$E$39="Non endémique"," ",IF(COUNTRY_INFO!A40=0," ",COUNTRY_INFO!A40)) -> Congo | B40: =IF(INTRO!$E$39="Non endémique"," ",IF(COUNTRY_INFO!B40=0," ",COUNTRY_INFO!B40)) -> Pointe-Noire | C40: =IF(INTRO!$E$39="Non endémique"," ",IF(COUNTRY_INFO!C40=0," ",COUNTRY_INFO!C40)) -> Mongo-Poukou | D40: =IF(INTRO!$E$39="Non endémique",0,IF(INTRO!$E$39="Endémique mais pas de CP",IF(COUNTRY_INFO!$H40=1,COUNTRY_INFO!F40+COUNTRY_INFO!G40,0),IF(COUNTRY_INFO!$H40=1,COUNTRY_INFO!F40+COUNTRY_INFO!G40,IF(COUNTRY_INFO!$I40=1,IF(COUNTRY_INFO!N40>=(COUNTRY_INFO!F40+COUNTRY_INFO!G40),COUNTRY_INFO!F40+COUNTRY_INFO!G40,COUNTRY_INFO!$N40),0)))) -> 0 | E40: =IF(AND(INTRO!$E$39="Non endémique",INTRO!$E$37="Non endémique"),"Non requis",IF(INTRO!$E$39="Non endémique","Traiter avec DEC",COUNTRY_INFO!Q40)) -> 0 | F40: =IF(INTRO!$E$39<>"Non endémique",COUNTRY_INFO!R40,"Non requis") -> 0 | G40: =IF(COUNTRY_INFO!H40=1, IF($E40=1,IF(ALB_MBD!$J40<>" ",COUNTRY_INFO!F40+COUNTRY_INFO!G40-ALB_MBD!$J40,COUNTRY_INFO!F40+COUNTRY_INFO!G40), 0),0) -> 0 | H40: =IF(INTRO!$E$39<>"Endémique",0, IF(AND(COUNTRY_INFO!$I40=1,$F40<>0),IF(COUNTRY_INFO!N40>=(COUNTRY_INFO!F40+COUNTRY_INFO!G40),COUNTRY_INFO!F40+COUNTRY_INFO!G40,COUNTRY_INFO!$N40), 0)) -> 0 | J40: 0 | K40: 0 | L40: 0 | M40: 0 | N40: 0 | P40: 0 | Q40: 0
A41: =IF(INTRO!$E$39="Non endémique"," ",IF(COUNTRY_INFO!A41=0," ",COUNTRY_INFO!A41)) -> Congo | B41: =IF(INTRO!$E$39="Non endémique"," ",IF(COUNTRY_INFO!B41=0," ",COUNTRY_INFO!B41)) -> Pointe-Noire | C41: =IF(INTRO!$E$39="Non endémique"," ",IF(COUNTRY_INFO!C41=0," ",COUNTRY_INFO!C41)) -> Loandjili | D41: =IF(INTRO!$E$39="Non endémique",0,IF(INTRO!$E$39="Endémique mais pas de CP",IF(COUNTRY_INFO!$H41=1,COUNTRY_INFO!F41+COUNTRY_INFO!G41,0),IF(COUNTRY_INFO!$H41=1,COUNTRY_INFO!F41+COUNTRY_INFO!G41,IF(COUNTRY_INFO!$I41=1,IF(COUNTRY_INFO!N41>=(COUNTRY_INFO!F41+COUNTRY_INFO!G41),COUNTRY_INFO!F41+COUNTRY_INFO!G41,COUNTRY_INFO!$N41),0)))) -> 0 | E41: =IF(AND(INTRO!$E$39="Non endémique",INTRO!$E$37="Non endémique"),"Non requis",IF(INTRO!$E$39="Non endémique","Traiter avec DEC",COUNTRY_INFO!Q41)) -> 0 | F41: =IF(INTRO!$E$39<>"Non endémique",COUNTRY_INFO!R41,"Non requis") -> 0 | G41: =IF(COUNTRY_INFO!H41=1, IF($E41=1,IF(ALB_MBD!$J41<>" ",COUNTRY_INFO!F41+COUNTRY_INFO!G41-ALB_MBD!$J41,COUNTRY_INFO!F41+COUNTRY_INFO!G41), 0),0) -> 0 | H41: =IF(INTRO!$E$39<>"Endémique",0, IF(AND(COUNTRY_INFO!$I41=1,$F41<>0),IF(COUNTRY_INFO!N41>=(COUNTRY_INFO!F41+COUNTRY_INFO!G41),COUNTRY_INFO!F41+COUNTRY_INFO!G41,COUNTRY_INFO!$N41), 0)) -> 0 | J41: 0 | K41: 0 | L41: 0 | M41: 0 | N41: 0 | P41: 0 | Q41: 0
A42: =IF(INTRO!$E$39="Non endémique"," ",IF(COUNTRY_INFO!A42=0," ",COUNTRY_INFO!A42)) -> Congo | B42: =IF(INTRO!$E$39="Non endémique"," ",IF(COUNTRY_INFO!B42=0," ",COUNTRY_INFO!B42)) -> Pointe-Noire | C42: =IF(INTRO!$E$39="Non endémique"," ",IF(COUNTRY_INFO!C42=0," ",COUNTRY_INFO!C42)) -> Lumumba | D42: =IF(INTRO!$E$39="Non endémique",0,IF(INTRO!$E$39="Endémique mais pas de CP",IF(COUNTRY_INFO!$H42=1,COUNTRY_INFO!F42+COUNTRY_INFO!G42,0),IF(COUNTRY_INFO!$H42=1,COUNTRY_INFO!F42+COUNTRY_INFO!G42,IF(COUNTRY_INFO!$I42=1,IF(COUNTRY_INFO!N42>=(COUNTRY_INFO!F42+COUNTRY_INFO!G42),COUNTRY_INFO!F42+COUNTRY_INFO!G42,COUNTRY_INFO!$N42),0)))) -> 0 | E42: =IF(AND(INTRO!$E$39="Non endémique",INTRO!$E$37="Non endémique"),"Non requis",IF(INTRO!$E$39="Non endémique","Traiter avec DEC",COUNTRY_INFO!Q42)) -> 0 | F42: =IF(INTRO!$E$39<>"Non endémique",COUNTRY_INFO!R42,"Non requis") -> 0 | G42: =IF(COUNTRY_INFO!H42=1, IF($E42=1,IF(ALB_MBD!$J42<>" ",COUNTRY_INFO!F42+COUNTRY_INFO!G42-ALB_MBD!$J42,COUNTRY_INFO!F42+COUNTRY_INFO!G42), 0),0) -> 0 | H42: =IF(INTRO!$E$39<>"Endémique",0, IF(AND(COUNTRY_INFO!$I42=1,$F42<>0),IF(COUNTRY_INFO!N42>=(COUNTRY_INFO!F42+COUNTRY_INFO!G42),COUNTRY_INFO!F42+COUNTRY_INFO!G42,COUNTRY_INFO!$N42), 0)) -> 0 | J42: 0 | K42: 0 | L42: 0 | M42: 0 | N42: 0 | P42: 0 | Q42: 0
A43: =IF(INTRO!$E$39="Non endémique"," ",IF(COUNTRY_INFO!A43=0," ",COUNTRY_INFO!A43)) -> Congo | B43: =IF(INTRO!$E$39="Non endémique"," ",IF(COUNTRY_INFO!B43=0," ",COUNTRY_INFO!B43)) -> Pointe-Noire | C43: =IF(INTRO!$E$39="Non endémique"," ",IF(COUNTRY_INFO!C43=0," ",COUNTRY_INFO!C43)) -> Mvoumvou | D43: =IF(INTRO!$E$39="Non endémique",0,IF(INTRO!$E$39="Endémique mais pas de CP",IF(COUNTRY_INFO!$H43=1,COUNTRY_INFO!F43+COUNTRY_INFO!G43,0),IF(COUNTRY_INFO!$H43=1,COUNTRY_INFO!F43+COUNTRY_INFO!G43,IF(COUNTRY_INFO!$I43=1,IF(COUNTRY_INFO!N43>=(COUNTRY_INFO!F43+COUNTRY_INFO!G43),COUNTRY_INFO!F43+COUNTRY_INFO!G43,COUNTRY_INFO!$N43),0)))) -> 0 | E43: =IF(AND(INTRO!$E$39="Non endémique",INTRO!$E$37="Non endémique"),"Non requis",IF(INTRO!$E$39="Non endémique","Traiter avec DEC",COUNTRY_INFO!Q43)) -> 0 | F43: =IF(INTRO!$E$39<>"Non endémique",COUNTRY_INFO!R43,"Non requis") -> 0 | G43: =IF(COUNTRY_INFO!H43=1, IF($E43=1,IF(ALB_MBD!$J43<>" ",COUNTRY_INFO!F43+COUNTRY_INFO!G43-ALB_MBD!$J43,COUNTRY_INFO!F43+COUNTRY_INFO!G43), 0),0) -> 0 | H43: =IF(INTRO!$E$39<>"Endémique",0, IF(AND(COUNTRY_INFO!$I43=1,$F43<>0),IF(COUNTRY_INFO!N43>=(COUNTRY_INFO!F43+COUNTRY_INFO!G43),COUNTRY_INFO!F43+COUNTRY_INFO!G43,COUNTRY_INFO!$N43), 0)) -> 0 | J43: 0 | K43: 0 | L43: 0 | M43: 0 | N43: 0 | P43: 0 | Q43: 0
A44: =IF(INTRO!$E$39="Non endémique"," ",IF(COUNTRY_INFO!A44=0," ",COUNTRY_INFO!A44)) -> Congo | B44: =IF(INTRO!$E$39="Non endémique"," ",IF(COUNTRY_INFO!B44=0," ",COUNTRY_INFO!B44)) -> Pointe-Noire | C44: =IF(INTRO!$E$39="Non endémique"," ",IF(COUNTRY_INFO!C44=0," ",COUNTRY_INFO!C44)) -> Tie-Tie | D44: =IF(INTRO!$E$39="Non endémique",0,IF(INTRO!$E$39="Endémique mais pas de CP",IF(COUNTRY_INFO!$H44=1,COUNTRY_INFO!F44+COUNTRY_INFO!G44,0),IF(COUNTRY_INFO!$H44=1,COUNTRY_INFO!F44+COUNTRY_INFO!G44,IF(COUNTRY_INFO!$I44=1,IF(COUNTRY_INFO!N44>=(COUNTRY_INFO!F44+COUNTRY_INFO!G44),COUNTRY_INFO!F44+COUNTRY_INFO!G44,COUNTRY_INFO!$N44),0)))) -> 0 | E44: =IF(AND(INTRO!$E$39="Non endémique",INTRO!$E$37="Non endémique"),"Non requis",IF(INTRO!$E$39="Non endémique","Traiter avec DEC",COUNTRY_INFO!Q44)) -> 0 | F44: =IF(INTRO!$E$39<>"Non endémique",COUNTRY_INFO!R44,"Non requis") -> 0 | G44: =IF(COUNTRY_INFO!H44=1, IF($E44=1,IF(ALB_MBD!$J44<>" ",COUNTRY_INFO!F44+COUNTRY_INFO!G44-ALB_MBD!$J44,COUNTRY_INFO!F44+COUNTRY_INFO!G44), 0),0) -> 0 | H44: =IF(INTRO!$E$39<>"Endémique",0, IF(AND(COUNTRY_INFO!$I44=1,$F44<>0),IF(COUNTRY_INFO!N44>=(COUNTRY_INFO!F44+COUNTRY_INFO!G44),COUNTRY_INFO!F44+COUNTRY_INFO!G44,COUNTRY_INFO!$N44), 0)) -> 0 | J44: 0 | K44: 0 | L44: 0 | M44: 0 | N44: 0 | P44: 0 | Q44: 0
A45: =IF(INTRO!$E$39="Non endémique"," ",IF(COUNTRY_INFO!A45=0," ",COUNTRY_INFO!A45)) -> Congo | B45: =IF(INTRO!$E$39="Non endémique"," ",IF(COUNTRY_INFO!B45=0," ",COUNTRY_INFO!B45)) -> Pool | C45: =IF(INTRO!$E$39="Non endémique"," ",IF(COUNTRY_INFO!C45=0," ",COUNTRY_INFO!C45)) -> Goma tsétsé | D45: =IF(INTRO!$E$39="Non endémique",0,IF(INTRO!$E$39="Endémique mais pas de CP",IF(COUNTRY_INFO!$H45=1,COUNTRY_INFO!F45+COUNTRY_INFO!G45,0),IF(COUNTRY_INFO!$H45=1,COUNTRY_INFO!F45+COUNTRY_INFO!G45,IF(COUNTRY_INFO!$I45=1,IF(COUNTRY_INFO!N45>=(COUNTRY_INFO!F45+COUNTRY_INFO!G45),COUNTRY_INFO!F45+COUNTRY_INFO!G45,COUNTRY_INFO!$N45),0)))) -> 12272 | E45: =IF(AND(INTRO!$E$39="Non endémique",INTRO!$E$37="Non endémique"),"Non requis",IF(INTRO!$E$39="Non endémique","Traiter avec DEC",COUNTRY_INFO!Q45)) -> 0 | F45: =IF(INTRO!$E$39<>"Non endémique",COUNTRY_INFO!R45,"Non requis") -> 1 | G45: =IF(COUNTRY_INFO!H45=1, IF($E45=1,IF(ALB_MBD!$J45<>" ",COUNTRY_INFO!F45+COUNTRY_INFO!G45-ALB_MBD!$J45,COUNTRY_INFO!F45+COUNTRY_INFO!G45), 0),0) -> 0 | H45: =IF(INTRO!$E$39<>"Endémique",0, IF(AND(COUNTRY_INFO!$I45=1,$F45<>0),IF(COUNTRY_INFO!N45>=(COUNTRY_INFO!F45+COUNTRY_INFO!G45),COUNTRY_INFO!F45+COUNTRY_INFO!G45,COUNTRY_INFO!$N45), 0)) -> 12272 | J45: 12272 | K45: 0 | L45: 34361.6 | M45: 0 | N45: 34361.6 | P45: 34361.6 | Q45: 69
A46: =IF(INTRO!$E$39="Non endémique"," ",IF(COUNTRY_INFO!A46=0," ",COUNTRY_INFO!A46)) -> Congo | B46: =IF(INTRO!$E$39="Non endémique"," ",IF(COUNTRY_INFO!B46=0," ",COUNTRY_INFO!B46)) -> Pool | C46: =IF(INTRO!$E$39="Non endémique"," ",IF(COUNTRY_INFO!C46=0," ",COUNTRY_INFO!C46)) -> Ignié | D46: =IF(INTRO!$E$39="Non endémique",0,IF(INTRO!$E$39="Endémique mais pas de CP",IF(COUNTRY_INFO!$H46=1,COUNTRY_INFO!F46+COUNTRY_INFO!G46,0),IF(COUNTRY_INFO!$H46=1,COUNTRY_INFO!F46+COUNTRY_INFO!G46,IF(COUNTRY_INFO!$I46=1,IF(COUNTRY_INFO!N46>=(COUNTRY_INFO!F46+COUNTRY_INFO!G46),COUNTRY_INFO!F46+COUNTRY_INFO!G46,COUNTRY_INFO!$N46),0)))) -> 67048 | E46: =IF(AND(INTRO!$E$39="Non endémique",INTRO!$E$37="Non endémique"),"Non requis",IF(INTRO!$E$39="Non endémique","Traiter avec DEC",COUNTRY_INFO!Q46)) -> 1 | F46: =IF(INTRO!$E$39<>"Non endémique",COUNTRY_INFO!R46,"Non requis") -> 1 | G46: =IF(COUNTRY_INFO!H46=1, IF($E46=1,IF(ALB_MBD!$J46<>" ",COUNTRY_INFO!F46+COUNTRY_INFO!G46-ALB_MBD!$J46,COUNTRY_INFO!F46+COUNTRY_INFO!G46), 0),0) -> 32069 | H46: =IF(INTRO!$E$39<>"Endémique",0, IF(AND(COUNTRY_INFO!$I46=1,$F46<>0),IF(COUNTRY_INFO!N46>=(COUNTRY_INFO!F46+COUNTRY_INFO!G46),COUNTRY_INFO!F46+COUNTRY_INFO!G46,COUNTRY_INFO!$N46), 0)) -> 1251 | J46: 1251 | K46: 86290.4 | L46: 0 | M46: 3502.8 | N46: 89793.2 | P46: 89793.2 | Q46: 180
A47: =IF(INTRO!$E$39="Non endémique"," ",IF(COUNTRY_INFO!A47=0," ",COUNTRY_INFO!A47)) -> Congo | B47: =IF(INTRO!$E$39="Non endémique"," ",IF(COUNTRY_INFO!B47=0," ",COUNTRY_INFO!B47)) -> Pool | C47: =IF(INTRO!$E$39="Non endémique"," ",IF(COUNTRY_INFO!C47=0," ",COUNTRY_INFO!C47)) -> Kindamba | D47: =IF(INTRO!$E$39="Non endémique",0,IF(INTRO!$E$39="Endémique mais pas de CP",IF(COUNTRY_INFO!$H47=1,COUNTRY_INFO!F47+COUNTRY_INFO!G47,0),IF(COUNTRY_INFO!$H47=1,COUNTRY_INFO!F47+COUNTRY_INFO!G47,IF(COUNTRY_INFO!$I47=1,IF(COUNTRY_INFO!N47>=(COUNTRY_INFO!F47+COUNTRY_INFO!G47),COUNTRY_INFO!F47+COUNTRY_INFO!G47,COUNTRY_INFO!$N47),0)))) -> 4198 | E47: =IF(AND(INTRO!$E$39="Non endémique",INTRO!$E$37="Non endémique"),"Non requis",IF(INTRO!$E$39="Non endémique","Traiter avec DEC",COUNTRY_INFO!Q47)) -> 0 | F47: =IF(INTRO!$E$39<>"Non endémique",COUNTRY_INFO!R47,"Non requis") -> 1 | G47: =IF(COUNTRY_INFO!H47=1, IF($E47=1,IF(ALB_MBD!$J47<>" ",COUNTRY_INFO!F47+COUNTRY_INFO!G47-ALB_MBD!$J47,COUNTRY_INFO!F47+COUNTRY_INFO!G47), 0),0) -> 0 | H47: =IF(INTRO!$E$39<>"Endémique",0, IF(AND(COUNTRY_INFO!$I47=1,$F47<>0),IF(COUNTRY_INFO!N47>=(COUNTRY_INFO!F47+COUNTRY_INFO!G47),COUNTRY_INFO!F47+COUNTRY_INFO!G47,COUNTRY_INFO!$N47), 0)) -> 4198 | J47: 4198 | K47: 0 | L47: 11754.4 | M47: 0 | N47: 11754.4 | P47: 11754.4 | Q47: 24
A48: =IF(INTRO!$E$39="Non endémique"," ",IF(COUNTRY_INFO!A48=0," ",COUNTRY_INFO!A48)) -> Congo | B48: =IF(INTRO!$E$39="Non endémique"," ",IF(COUNTRY_INFO!B48=0," ",COUNTRY_INFO!B48)) -> Pool | C48: =IF(INTRO!$E$39="Non endémique"," ",IF(COUNTRY_INFO!C48=0," ",COUNTRY_INFO!C48)) -> Kinkala-Boko | D48: =IF(INTRO!$E$39="Non endémique",0,IF(INTRO!$E$39="Endémique mais pas de CP",IF(COUNTRY_INFO!$H48=1,COUNTRY_INFO!F48+COUNTRY_INFO!G48,0),IF(COUNTRY_INFO!$H48=1,COUNTRY_INFO!F48+COUNTRY_INFO!G48,IF(COUNTRY_INFO!$I48=1,IF(COUNTRY_INFO!N48>=(COUNTRY_INFO!F48+COUNTRY_INFO!G48),COUNTRY_INFO!F48+COUNTRY_INFO!G48,COUNTRY_INFO!$N48),0)))) -> 36101 | E48: =IF(AND(INTRO!$E$39="Non endémique",INTRO!$E$37="Non endémique"),"Non requis",IF(INTRO!$E$39="Non endémique","Traiter avec DEC",COUNTRY_INFO!Q48)) -> 0 | F48: =IF(INTRO!$E$39<>"Non endémique",COUNTRY_INFO!R48,"Non requis") -> 1 | G48: =IF(COUNTRY_INFO!H48=1, IF($E48=1,IF(ALB_MBD!$J48<>" ",COUNTRY_INFO!F48+COUNTRY_INFO!G48-ALB_MBD!$J48,COUNTRY_INFO!F48+COUNTRY_INFO!G48), 0),0) -> 0 | H48: =IF(INTRO!$E$39<>"Endémique",0, IF(AND(COUNTRY_INFO!$I48=1,$F48<>0),IF(COUNTRY_INFO!N48>=(COUNTRY_INFO!F48+COUNTRY_INFO!G48),COUNTRY_INFO!F48+COUNTRY_INFO!G48,COUNTRY_INFO!$N48), 0)) -> 36101 | J48: 36101 | K48: 0 | L48: 101082.8 | M48: 0 | N48: 101082.8 | P48: 101082.8 | Q48: 203
A49: =IF(INTRO!$E$39="Non endémique"," ",IF(COUNTRY_INFO!A49=0," ",COUNTRY_INFO!A49)) -> Congo | B49: =IF(INTRO!$E$39="Non endémique"," ",IF(COUNTRY_INFO!B49=0," ",COUNTRY_INFO!B49)) -> Pool | C49: =IF(INTRO!$E$39="Non endémique"," ",IF(COUNTRY_INFO!C49=0," ",COUNTRY_INFO!C49)) -> Mindouli | D49: =IF(INTRO!$E$39="Non endémique",0,IF(INTRO!$E$39="Endémique mais pas de CP",IF(COUNTRY_INFO!$H49=1,COUNTRY_INFO!F49+COUNTRY_INFO!G49,0),IF(COUNTRY_INFO!$H49=1,COUNTRY_INFO!F49+COUNTRY_INFO!G49,IF(COUNTRY_INFO!$I49=1,IF(COUNTRY_INFO!N49>=(COUNTRY_INFO!F49+COUNTRY_INFO!G49),COUNTRY_INFO!F49+COUNTRY_INFO!G49,COUNTRY_INFO!$N49),0)))) -> 26377 | E49: =IF(AND(INTRO!$E$39="Non endémique",INTRO!$E$37="Non endémique"),"Non requis",IF(INTRO!$E$39="Non endémique","Traiter avec DEC",COUNTRY_INFO!Q49)) -> 0 | F49: =IF(INTRO!$E$39<>"Non endémique",COUNTRY_INFO!R49,"Non requis") -> 1 | G49: =IF(COUNTRY_INFO!H49=1, IF($E49=1,IF(ALB_MBD!$J49<>" ",COUNTRY_INFO!F49+COUNTRY_INFO!G49-ALB_MBD!$J49,COUNTRY_INFO!F49+COUNTRY_INFO!G49), 0),0) -> 0 | H49: =IF(INTRO!$E$39<>"Endémique",0, IF(AND(COUNTRY_INFO!$I49=1,$F49<>0),IF(COUNTRY_INFO!N49>=(COUNTRY_INFO!F49+COUNTRY_INFO!G49),COUNTRY_INFO!F49+COUNTRY_INFO!G49,COUNTRY_INFO!$N49), 0)) -> 26377 | J49: 26377 | K49: 0 | L49: 73855.6 | M49: 0 | N49: 73855.6 | P49: 73855.6 | Q49: 148
A50: =IF(INTRO!$E$39="Non endémique"," ",IF(COUNTRY_INFO!A50=0," ",COUNTRY_INFO!A50)) -> Congo | B50: =IF(INTRO!$E$39="Non endémique"," ",IF(COUNTRY_INFO!B50=0," ",COUNTRY_INFO!B50)) -> Sangha | C50: =IF(INTRO!$E$39="Non endémique"," ",IF(COUNTRY_INFO!C50=0," ",COUNTRY_INFO!C50)) -> Ouesso | D50: =IF(INTRO!$E$39="Non endémique",0,IF(INTRO!$E$39="Endémique mais pas de CP",IF(COUNTRY_INFO!$H50=1,COUNTRY_INFO!F50+COUNTRY_INFO!G50,0),IF(COUNTRY_INFO!$H50=1,COUNTRY_INFO!F50+COUNTRY_INFO!G50,IF(COUNTRY_INFO!$I50=1,IF(COUNTRY_INFO!N50>=(COUNTRY_INFO!F50+COUNTRY_INFO!G50),COUNTRY_INFO!F50+COUNTRY_INFO!G50,COUNTRY_INFO!$N50),0)))) -> 62534 | E50: =IF(AND(INTRO!$E$39="Non endémique",INTRO!$E$37="Non endémique"),"Non requis",IF(INTRO!$E$39="Non endémique","Traiter avec DEC",COUNTRY_INFO!Q50)) -> 1 | F50: =IF(INTRO!$E$39<>"Non endémique",COUNTRY_INFO!R50,"Non requis") -> 0 | G50: =IF(COUNTRY_INFO!H50=1, IF($E50=1,IF(ALB_MBD!$J50<>" ",COUNTRY_INFO!F50+COUNTRY_INFO!G50-ALB_MBD!$J50,COUNTRY_INFO!F50+COUNTRY_INFO!G50), 0),0) -> 0 | H50: =IF(INTRO!$E$39<>"Endémique",0, IF(AND(COUNTRY_INFO!$I50=1,$F50<>0),IF(COUNTRY_INFO!N50>=(COUNTRY_INFO!F50+COUNTRY_INFO!G50),COUNTRY_INFO!F50+COUNTRY_INFO!G50,COUNTRY_INFO!$N50), 0)) -> 0 | J50: 0 | K50: 0 | L50: 0 | M50: 0 | N50: 0 | P50: 0 | Q50: 0
A51: =IF(INTRO!$E$39="Non endémique"," ",IF(COUNTRY_INFO!A51=0," ",COUNTRY_INFO!A51)) -> Congo | B51: =IF(INTRO!$E$39="Non endémique"," ",IF(COUNTRY_INFO!B51=0," ",COUNTRY_INFO!B51)) -> Sangha | C51: =IF(INTRO!$E$39="Non endémique"," ",IF(COUNTRY_INFO!C51=0," ",COUNTRY_INFO!C51)) -> Sembé-Souanké | D51: =IF(INTRO!$E$39="Non endémique",0,IF(INTRO!$E$39="Endémique mais pas de CP",IF(COUNTRY_INFO!$H51=1,COUNTRY_INFO!F51+COUNTRY_INFO!G51,0),IF(COUNTRY_INFO!$H51=1,COUNTRY_INFO!F51+COUNTRY_INFO!G51,IF(COUNTRY_INFO!$I51=1,IF(COUNTRY_INFO!N51>=(COUNTRY_INFO!F51+COUNTRY_INFO!G51),COUNTRY_INFO!F51+COUNTRY_INFO!G51,COUNTRY_INFO!$N51),0)))) -> 24101 | E51: =IF(AND(INTRO!$E$39="Non endémique",INTRO!$E$37="Non endémique"),"Non requis",IF(INTRO!$E$39="Non endémique","Traiter avec DEC",COUNTRY_INFO!Q51)) -> 1 | F51: =IF(INTRO!$E$39<>"Non endémique",COUNTRY_INFO!R51,"Non requis") -> 0 | G51: =IF(COUNTRY_INFO!H51=1, IF($E51=1,IF(ALB_MBD!$J51<>" ",COUNTRY_INFO!F51+COUNTRY_INFO!G51-ALB_MBD!$J51,COUNTRY_INFO!F51+COUNTRY_INFO!G51), 0),0) -> 0 | H51: =IF(INTRO!$E$39<>"Endémique",0, IF(AND(COUNTRY_INFO!$I51=1,$F51<>0),IF(COUNTRY_INFO!N51>=(COUNTRY_INFO!F51+COUNTRY_INFO!G51),COUNTRY_INFO!F51+COUNTRY_INFO!G51,COUNTRY_INFO!$N51), 0)) -> 0 | J51: 0 | K51: 0 | L51: 0 | M51: 0 | N51: 0 | P51: 0 | Q51: 0
A52: =IF(INTRO!$E$39="Non endémique"," ",IF(COUNTRY_INFO!A52=0," ",COUNTRY_INFO!A52)) -> Congo | B52: =IF(INTRO!$E$39="Non endémique"," ",IF(COUNTRY_INFO!B52=0," ",COUNTRY_INFO!B52)) ->  | C52: =IF(INTRO!$E$39="Non endémique"," ",IF(COUNTRY_INFO!C52=0," ",COUNTRY_INFO!C52)) ->  | D52: =IF(INTRO!$E$39="Non endémique",0,IF(INTRO!$E$39="Endémique mais pas de CP",IF(COUNTRY_INFO!$H52=1,COUNTRY_INFO!F52+COUNTRY_INFO!G52,0),IF(COUNTRY_INFO!$H52=1,COUNTRY_INFO!F52+COUNTRY_INFO!G52,IF(COUNTRY_INFO!$I52=1,IF(COUNTRY_INFO!N52>=(COUNTRY_INFO!F52+COUNTRY_INFO!G52),COUNTRY_INFO!F52+COUNTRY_INFO!G52,COUNTRY_INFO!$N52),0)))) -> 0 | E52: =IF(AND(INTRO!$E$39="Non endémique",INTRO!$E$37="Non endémique"),"Non requis",IF(INTRO!$E$39="Non endémique","Traiter avec DEC",COUNTRY_INFO!Q52)) -> 0 | F52: =IF(INTRO!$E$39<>"Non endémique",COUNTRY_INFO!R52,"Non requis") -> 0 | G52: =IF(COUNTRY_INFO!H52=1, IF($E52=1,IF(ALB_MBD!$J52<>" ",COUNTRY_INFO!F52+COUNTRY_INFO!G52-ALB_MBD!$J52,COUNTRY_INFO!F52+COUNTRY_INFO!G52), 0),0) -> 0 | H52: =IF(INTRO!$E$39<>"Endémique",0, IF(AND(COUNTRY_INFO!$I52=1,$F52<>0),IF(COUNTRY_INFO!N52>=(COUNTRY_INFO!F52+COUNTRY_INFO!G52),COUNTRY_INFO!F52+COUNTRY_INFO!G52,COUNTRY_INFO!$N52), 0)) -> 0 | J52: 0 | K52: 0 | L52: 0 | M52: 0 | N52: 0 | P52: 0 | Q52: 0
A53: =IF(INTRO!$E$39="Non endémique"," ",IF(COUNTRY_INFO!A53=0," ",COUNTRY_INFO!A53)) -> Congo | B53: =IF(INTRO!$E$39="Non endémique"," ",IF(COUNTRY_INFO!B53=0," ",COUNTRY_INFO!B53)) ->  | C53: =IF(INTRO!$E$39="Non endémique"," ",IF(COUNTRY_INFO!C53=0," ",COUNTRY_INFO!C53)) ->  | D53: =IF(INTRO!$E$39="Non endémique",0,IF(INTRO!$E$39="Endémique mais pas de CP",IF(COUNTRY_INFO!$H53=1,COUNTRY_INFO!F53+COUNTRY_INFO!G53,0),IF(COUNTRY_INFO!$H53=1,COUNTRY_INFO!F53+COUNTRY_INFO!G53,IF(COUNTRY_INFO!$I53=1,IF(COUNTRY_INFO!N53>=(COUNTRY_INFO!F53+COUNTRY_INFO!G53),COUNTRY_INFO!F53+COUNTRY_INFO!G53,COUNTRY_INFO!$N53),0)))) -> 0 | E53: =IF(AND(INTRO!$E$39="Non endémique",INTRO!$E$37="Non endémique"),"Non requis",IF(INTRO!$E$39="Non endémique","Traiter avec DEC",COUNTRY_INFO!Q53)) -> 0 | F53: =IF(INTRO!$E$39<>"Non endémique",COUNTRY_INFO!R53,"Non requis") -> 0 | G53: =IF(COUNTRY_INFO!H53=1, IF($E53=1,IF(ALB_MBD!$J53<>" ",COUNTRY_INFO!F53+COUNTRY_INFO!G53-ALB_MBD!$J53,COUNTRY_INFO!F53+COUNTRY_INFO!G53), 0),0) -> 0 | H53: =IF(INTRO!$E$39<>"Endémique",0, IF(AND(COUNTRY_INFO!$I53=1,$F53<>0),IF(COUNTRY_INFO!N53>=(COUNTRY_INFO!F53+COUNTRY_INFO!G53),COUNTRY_INFO!F53+COUNTRY_INFO!G53,COUNTRY_INFO!$N53), 0)) -> 0 | J53: 0 | K53: 0 | L53: 0 | M53: 0 | N53: 0 | P53: 0 | Q53: 0

Sheet SUMMARY
C1: Cette version sera utilisée par les pays endémiques à la Loase
B2: Formulaire de demande commune de médicaments pour CP v.3 (L)
B4: Ce formulaire constitue une demande officielle du Gouvernement à l'OMS pour l'approvisionnement des médicaments mentionnés ci-dessus. Ce formulaire peut-être soumis à n'importe quel moment, avant le 15 août de l'année en cours, pour une livraison de médicaments au courant de l'année suivante, mais au moins 6-8 mois avant l’intervention planifiée afin de laisser le temps nécessaire pour réviser et approuver la demande, placer la commande, élaborer les médicaments et les expédier vers les pays.
B6: Pays | C6: =IF(INTRO!$E$33<>0,INTRO!$E$33," ") -> Congo | G6: Année | H6: =IF(INTRO!$E$35<>0,INTRO!$E$35," ") -> 2019
B8: Informations concernant les médicaments CP demandés à l’OMS
B10: Le médicament | C10: Nombre de comprimés | G10: Nombre total de flacons
C11: Requis | D11: En stock | E11: En cours de demande | F11: Demandés | G11: Requis | H11: Demandés
B12: Albendazole pour FL | C12: 1299681 | D12: 0 | F12: =IF(C12>(D12+E12),C12-D12-E12, 0) -> 1299681 | G12: =IF($C12=0,0,IF($B12="Albendazole pour FL",IF($C12=(ALB_MBD!$U$4+ALB_MBD!$V$4),ALB_MBD!$W$4,ROUNDUP($C12/200,0)),IF($B12="Albendazole pour STH (EAS)",IF($C12=ALB_MBD!$N$4,ALB_MBD!$Z$4,ROUNDUP($C12/200,0)),IF($B12="Mebendazole (EAS)",IF($C12=ALB_MBD!$R$4,ALB_MBD!$AC$4,ROUNDUP($C12/150,0)),IF($B12="Praziquantel (EAS)",IF($C12=PZQ!$O$4,PZQ!$R$4,ROUNDUP($C12/1000,0)),IF($B12="Ivermectine",IF($C12=IVM!$N$4,IVM!$Q$4,$C12/500+0.49),0)))))) -> 6506 | H12: =IF($F12=0,0,IF(OR($B12="Albendazole pour FL",$B12="Albendazole pour STH (EAS)"),$G12-ROUNDUP(($E12+$D12)/200,0),IF($B12="Ivermectine",$G12-ROUNDUP(($E12+$D12)/500,0),IF($B12="Mebendazole (EAS)",$G12-ROUNDUP(($E12+$D12)/150,0),$G12-ROUNDUP(($E12+$D12)/1000,0))))) -> 6506
B13: Albendazole pour STH (EAS) | C13: 525751 | D13: 0 | F13: 525751 | G13: =IF($C13=0,0,IF($B13="Albendazole pour FL",IF($C13=(ALB_MBD!$U$4+ALB_MBD!$V$4),ALB_MBD!$W$4,ROUNDUP($C13/200,0)),IF($B13="Albendazole pour STH (EAS)",IF($C13=ALB_MBD!$N$4,ALB_MBD!$Z$4,ROUNDUP($C13/200,0)),IF($B13="Mebendazole (EAS)",IF($C13=ALB_MBD!$R$4,ALB_MBD!$AC$4,ROUNDUP($C13/150,0)),IF($B13="Praziquantel (EAS)",IF($C13=PZQ!$O$4,PZQ!$R$4,ROUNDUP($C13/1000,0)),IF($B13="Ivermectine",IF($C13=IVM!$N$4,IVM!$Q$4,$C13/500+0.49),0)))))) -> 2638 | H13: 2638
B14: Praziquantel (EAS) | C14: 301990 | D14: 0 | F14: 301990 | G14: =IF($C14=0,0,IF($B14="Albendazole pour FL",IF($C14=(ALB_MBD!$U$4+ALB_MBD!$V$4),ALB_MBD!$W$4,ROUNDUP($C14/200,0)),IF($B14="Albendazole pour STH (EAS)",IF($C14=ALB_MBD!$N$4,ALB_MBD!$Z$4,ROUNDUP($C14/200,0)),IF($B14="Mebendazole (EAS)",IF($C14=ALB_MBD!$R$4,ALB_MBD!$AC$4,ROUNDUP($C14/150,0)),IF($B14="Praziquantel (EAS)",IF($C14=PZQ!$O$4,PZQ!$R$4,ROUNDUP($C14/1000,0)),IF($B14="Ivermectine",IF($C14=IVM!$N$4,IVM!$Q$4,$C14/500+0.49),0)))))) -> 315 | H14: 315
B15: Ivermectine | C15: 2143178.8 | D15: 0 | F15: 2143178.8 | G15: =IF($C15=0,0,IF($B15="Albendazole pour FL",IF($C15=(ALB_MBD!$U$4+ALB_MBD!$V$4),ALB_MBD!$W$4,ROUNDUP($C15/200,0)),IF($B15="Albendazole pour STH (EAS)",IF($C15=ALB_MBD!$N$4,ALB_MBD!$Z$4,ROUNDUP($C15/200,0)),IF($B15="Mebendazole (EAS)",IF($C15=ALB_MBD!$R$4,ALB_MBD!$AC$4,ROUNDUP($C15/150,0)),IF($B15="Praziquantel (EAS)",IF($C15=PZQ!$O$4,PZQ!$R$4,ROUNDUP($C15/1000,0)),IF($B15="Ivermectine",IF($C15=IVM!$N$4,IVM!$Q$4,$C15/500+0.49),0)))))) -> 4295 | H15: 4295
C16: 0 | D16: 0 | F16: 0 | G16: =IF($C16=0,0,IF($B16="Albendazole pour FL",IF($C16=(ALB_MBD!$U$4+ALB_MBD!$V$4),ALB_MBD!$W$4,ROUNDUP($C16/200,0)),IF($B16="Albendazole pour STH (EAS)",IF($C16=ALB_MBD!$N$4,ALB_MBD!$Z$4,ROUNDUP($C16/200,0)),IF($B16="Mebendazole (EAS)",IF($C16=ALB_MBD!$R$4,ALB_MBD!$AC$4,ROUNDUP($C16/150,0)),IF($B16="Praziquantel (EAS)",IF($C16=PZQ!$O$4,PZQ!$R$4,ROUNDUP($C16/1000,0)),IF($B16="Ivermectine",IF($C16=IVM!$N$4,IVM!$Q$4,$C16/500+0.49),0)))))) -> 0 | H16: 0
C17: 0 | D17: 0 | F17: 0 | G17: =IF($C17=0,0,IF($B17="Albendazole pour FL",IF($C17=(ALB_MBD!$U$4+ALB_MBD!$V$4),ALB_MBD!$W$4,ROUNDUP($C17/200,0)),IF($B17="Albendazole pour STH (EAS)",IF($C17=ALB_MBD!$N$4,ALB_MBD!$Z$4,ROUNDUP($C17/200,0)),IF($B17="Mebendazole (EAS)",IF($C17=ALB_MBD!$R$4,ALB_MBD!$AC$4,ROUNDUP($C17/150,0)),IF($B17="Praziquantel (EAS)",IF($C17=PZQ!$O$4,PZQ!$R$4,ROUNDUP($C17/1000,0)),IF($B17="Ivermectine",IF($C17=IVM!$N$4,IVM!$Q$4,$C17/500+0.49),0)))))) -> 0 | H17: 0
B19: Nombre de personnes devant être traitées avec le médicament donné
B21: Veuillez sélectionner la maladie | G21: 1er tour | H21: 2ème tour
B22: Filariose lymphatique | C22: Ces chiffres sont estimés uniquement pour les goupes d'âge ciblés pour le traitement avec les médicaments donnés, dans les régions où le traitement de maladies spécifiques est requis | G22: 783247
B23: Géohelminthiases | G23: 446894 | H23: 214752
B24: Schistosomiase | G24: 120796
B25: Onchocercose | G25: 647345 | H25: 0
B29: Informations sur les interventions CP planifiées
B31: Le médicament | C31: Veuillez sélectionner une date (mois et année) pour la 1ère tournée de CP | E31: Veuillez sélectionner une date (mois et année) pour la 2ème tournée de CP | G31: Date à laquelle les médicaments devraient atteindre l’entrepôt national
B32: Albendazole pour FL | C32: Avril | D32: 2019 | E32: Octobre | F32: 2019 | G32: Février | H32: 2019
B33: Albendazole pour STH (EAS) | C33: Mai | D33: 2019 | E33: Novembre | F33: 2019 | G33: Février | H33: 2019
B34: Praziquantel (EAS) | C34: Novembre | D34: 2019 | G34: Février | H34: 2019
B35: Ivermectine | C35: Septembre | D35: 2019 | G35: Mai | H35: 2019
B39: Informations sur les médicaments de chimiothérapie préventive pour le traitement de populations non ciblées par la donation en cours via l’OMS
B41: Le médicament | C41: Groupe d'âge | D41: # de personnes | E41: # de comprimés | F41: Source | H41: Statut
B42: Praziquantel (EAS) | C42: Adults | D42: 64759 | E42: =+D42*2.5 -> 161897.5 | F42: Absence de partenaires | H42: Demandés
B53: Récapitulatif - Checklist
B54: Submission
B55: Que faut-il soumettre ?
B56: L'approvisionnement des médicaments demandés doit être basé sur des données épidémiologiques à jour, des plans d'utilisation des médicaments spécifiques et sur la capacité de mise en oeuvre. La liste suivante permet d'assurer que tous les formulaires et toutes les informations sont fournis à l'OMS (en format électronique).
B57: Formulaire de demande commune de médicaments pour chimioprévention
B58: Formulaire de rapport commun
B59: Déclaration des données épidémiologiques pour la CP
B61: Disponibilité de financement pour la mise en oeuvre de tournées pendant l’année pour laquelle les medicaments ont été demandés
B63: Maladies ciblées pour la mise en oeuvre | C63: # de traitements | D63: Financement assuré pour | E63: Origine | H63: Montant
B64: =B22 -> Filariose lymphatique | C64: =SUM(G22:H22) -> 783247 | E64: ESPEN/OPC/Sightsavers
B65: =B23 -> Géohelminthiases | C65: =SUM(G23:H23) -> 661646 | E65: The End Fund
B66: =B24 -> Schistosomiase | C66: =SUM(G24:H24) -> 120796 | E66: The End Fund
B67: =B25 -> Onchocercose | C67: =SUM(G25:H25) -> 647345 | E67: ESPEN/OPC/Sightsavers
B69: Qui doit remplir le formulaire ?
B70: Le Coordonnateur national MTN doit compiler toutes les informations nécessaires pour compléter le formulaire de demande. En l'absence d'un coordonnateur, les gestionnaires de programmes spécifiques devraient coordonner leurs sections respectives. Une fois finalisée, chaque demande individuelle doit être approuvée par le Ministère de la Santé.
B72: Informations concernant la (les) personne(s) ayant rempli le formulaire
B74: Titre/fonction | C74: Nom | E74: Téléphone | G74: Email | H74: Date
B75: Gestionnaire de données | C75: HEMILEMBOLO Marlhand | E75: (+242)055925302 | G75: emimarlhand@gmail.com | H75: 30 juin 2018
B76: Coordonnateur MTN/CP | C76: MISSAMOU François | E76: (+242)066680563 | G76: francmissamou2009@gmail.com | H76: 2 juillet 2018
B80: L’OMS recommende que tous les effets secondaires graves suspectés d’être associés à l’ingestion de médicaments de CP soient rapportés en suivant les lignes directrices nationales de pharmacovigilance. En l’absence d’un système de pharmacovigilance national, contactez le département de Contrôle des Maladies Tropicales Négligées pour être conseillé.
B81: L’OMS s’est engagée à rendre possible la donation de médicaments en fournissant gratuitement: a) albendazole, mebendazole et praziquantel à l’entrepôt national du Ministère de la Santé et b) diethylcarbamazine au port d’entrée du pays receveur.
B82: L’institution soumettant la présente requête est responsable de: a) l’organisation du déchargement des médicaments du camion, du stockage dans l’entrepôt national et de l’expédition vers les centres où aura lieu la distribution finale; b) de l’enregistrement, si nécessaire, des médicaments donnés, auprès des autorités nationales en charge; et de c) de l’information de n’importe quels changements ayant trait à leurs campagnes de traitement (par exemple le report d’une date planifiée de distribution en masse de médicaments, le remplacement d’un coordonateur MTN, etc.).
B83: Nom et signature du Coordonnateur MTN ou du Représentant du Ministère de la Santé | D83: Dr MISSAMOU François
B84: Date | D84: 2018-07-02
B86: Si vous avez plus d'un destinataire final pour les médicaments de chimioprévention demandés, veuillez compléter les informations de la rubrique "Informations concernant l'envoi et le destinataire" dans la feuille de travail SHIPMENT.
B87: Veuillez envoyer le rapport national (signé et sous format électronique) au représentant de I'OMS du pays en mettant en copie:
B88: Siège de l'OMS | C88: PC_JointForms@who.int
B89: Bureau régional de l'OMS | C89: Conseiller régional MTN
B90: Mectizan donation programme | C90: Dr Yao Sodahlon, email: ysodahlon@taskforce.org
B92: Veuillez noter que votre demande sera examinée par un panel d'experts indépendants (Comité ad hoc d’évaluation conjointe). Les informations contenues dans ce formulaire, le rapport commun d'activités (ou rapport national d'activités) et le plan d'action annuel sont essentiels à l'OMS pour assurer un usage optimal des médicaments. Dans le cadre de ses activités courantes de suivi et d'évaluation, et afin d'honorer ses obligations contractuelles envers les bailleurs de fonds et autres partenaires, l'OMS et ses agents affiliés se réservent le droit d'inspecter, périodiquement, les stocks de médicaments au niveau national.

Sheet SHIPMENT
C1: Cette version sera utilisée par les pays endémiques à la Loase
B2: Formulaire de demande commune de médicaments pour CP v.3 (L)
B4: Pays | C4: =IF(INTRO!$E$33<>0,INTRO!$E$33," ") -> Congo | G4: Année | H4: =IF(INTRO!$E$35<>0,INTRO!$E$35," ") -> 2019
B6: Informations sur l'envoi et le destinataire
C8: Destinataire | F8: Destinataire final si différent du destinaire précédent
B9: Nom | C9: Dr FATOUMATA DIALLO | F9: Dr François MISSAMOU
B10: Département/Unité | C10: Brazzaville | F10: Brazzaville
B11: Organisation | C11: Représentation OMS Congo | F11: Ministère de la Santé et de la Population du Congo
B12: Téléphone | F12: (+242) 066680563/ 055254941
B13: Fax
B14: E-mail | F14: francmissamou2009@gmail.com
B15: Adresse postale | F15: BP 1066 Brazzaville
C17: Destinataire | F17: Destinataire final si différent du destinaire précédent
B18: Nom
B19: Département/Unité
B20: Organisation
B21: Téléphone
B22: Fax
B23: E-mail
B24: Adresse postale
C26: Destinataire | F26: Destinataire final si différent du destinaire précédent
B27: Nom
B28: Département/Unité
B29: Organisation
B30: Téléphone
B31: Fax
B32: E-mail
B33: Adresse postale
B35: Information concernant les obligations légales d’importation
B37: Est le permis d'importation nécessaire? | H37: No
B38: Combien de temps cela prend-il pour obtenir le permis d’importation?
B39: Avez vous besoin que certains documents soient remis en même temps que la demande de permis d’importation?
B40: Si oui, merci de bien vouloir spécifier lesquels ici
B41: Est-ce que le destinataire doit procéder au dédouanement avant que l’expédition puisse avoir lieu? | H41: No
B42: Y a-t-il des informations supplémentaires qui pourraient être utiles afin d’assurer un dédouanement et une livraison rapide des médicaments dans votre pays? | H42: Oui
B43: Aviser les destinataires sur l'envoi des médicaments
B46: Remarques supplémentaires éventuelles liées à cette requête
